{"text_format":"1","workbook":"xlsx","n_sheets":11,"sheets":["Prompt","C100","C101","C200","C300","C336","C400","C500","C700","C800","Enviar"],"not_rendered":{"charts":0,"images":7,"macros":1,"external_links":0,"defined_names":1,"comments":2,"pivot_tables":0},"unopened":[],"bounds":{"document_bytes":16777216,"sheet_cells":100000,"rows_first":2000,"rows_last":500,"rows_between":2000,"halvings":0,"cell_chars":16384,"cell_head_chars":4096},"cells_cut":0,"cells_raw":0,"read":"whole","date_system":"1900"}

{"sheet":"Prompt","index":0,"n_rows":79,"n_cols":4,"rows_kept":79,"cut":false,"hidden":true,"merged":[[1,3,2,6],[4,1,6,8],[43,1,44,8],[78,1,79,8],[9,1,10,8]]}
[]
[null,null,null,"¡ATENCIÓN!"]
[]
[]
[null,"Para hacer uso de las funcionalidades de esta Cédula Electrónica debe habilitar macros"]
[]
[]
[]
[]
[null,"Si utiliza Excel 2013 siga el siguiente procedimiento:"]
[]
[]
[]
[]
[]
[]
[]
[]
[]
[]
[]
[]
[]
[]
[]
[]
[]
[]
[]
[]
[]
[]
[]
[]
[]
[]
[]
[]
[]
[]
[]
[]
[]
[null,"Si utiliza Excel 2007 siga el siguiente procedimiento:"]
[]
[]
[]
[]
[]
[]
[]
[]
[]
[]
[]
[]
[]
[]
[]
[]
[]
[]
[]
[]
[]
[]
[]
[]
[]
[]
[]
[]
[]
[]
[]
[]
[]
[]
[null,"Si utiliza Excel 2000, 2002, 2003 siga el siguiente procedimiento:"]

{"sheet":"C100","index":1,"n_rows":357,"n_cols":38,"rows_kept":357,"cut":false,"hidden":false,"merged":[[279,28,279,35],[313,29,313,36],[329,29,329,36],[108,12,108,15],[113,12,113,15],[140,11,140,12],[140,13,140,15],[137,11,139,12],[141,11,141,12],[142,11,142,12],[137,13,139,15],[141,13,141,15],[142,13,142,15],[201,16,201,17],[211,27,211,34],[229,15,229,16],[230,28,230,36],[231,28,231,36],[241,5,241,16],[241,17,241,18],[242,17,243,18],[244,17,245,18],[228,15,228,16],[171,34,171,35],[337,23,339,28],[337,30,339,32],[337,33,339,35],[348,25,348,29],[350,7,350,12],[354,32,354,33],[355,32,355,33],[356,32,356,33],[289,7,289,15],[304,9,304,16],[324,7,325,8],[324,9,325,14],[324,16,324,18],[325,16,325,18],[337,5,339,11],[337,13,339,15],[337,16,339,18],[328,11,328,15],[329,11,329,15],[172,34,172,35],[185,16,185,17],[141,16,141,19],[142,16,142,19],[117,32,117,34],[116,35,117,36],[123,25,123,31],[116,32,116,34],[194,8,194,16],[137,3,139,10],[137,16,140,19],[47,18,47,19],[48,6,48,7],[47,9,47,12],[47,14,47,15],[46,18,46,19],[48,18,48,19],[46,6,46,7],[65,16,65,17],[66,16,66,17],[67,16,67,17],[68,16,68,17],[108,34,108,37],[109,34,109,37],[110,34,110,37],[111,34,111,37],[87,34,87,35],[88,34,88,35],[89,34,89,35],[90,34,90,35],[101,30,101,37],[87,25,87,33],[46,21,46,24],[47,33,47,34],[46,3,46,4],[102,10,102,18],[75,28,75,36],[46,14,46,15],[46,9,46,12],[47,6,47,7],[45,18,45,19],[45,33,45,34],[47,3,47,4],[48,33,48,34],[48,30,48,31],[48,26,48,27],[47,26,47,27],[47,21,47,24],[47,30,47,31],[46,26,46,27],[46,30,46,31],[45,14,45,15],[48,14,48,15],[48,21,48,24],[48,9,48,12],[48,3,48,4],[45,30,45,31],[45,26,45,27],[44,30,44,31],[1,7,1,31],[2,7,2,31],[37,2,37,38],[44,18,44,19],[44,9,44,12],[2,34,4,37],[43,3,43,4],[44,14,44,15],[43,30,43,36],[43,18,43,27],[30,30,30,37],[30,11,30,25],[3,7,3,31],[43,6,43,15],[44,26,44,27],[44,6,44,7],[45,3,45,4],[26,11,26,15],[45,6,45,7],[45,9,45,12],[280,9,280,17],[82,11,82,13],[58,11,58,13],[1,34,1,37],[246,17,247,18],[248,17,249,18],[250,17,250,18],[251,17,252,18],[253,17,254,18],[255,17,256,18],[257,17,257,18],[257,33,257,35],[258,17,258,18],[259,17,259,18],[260,17,261,18],[46,33,46,34],[122,9,122,17],[26,34,26,37],[28,11,28,37],[44,21,44,24],[67,28,67,36],[81,30,81,37],[44,33,44,34],[45,21,45,24]]}
[]
[null,null,null,null,null,null,null,"CENSO EDUCATIVO 2023",null,null,null,null,null,null,null,null,null,null,null,null,null,null,null,null,null,null,null,null,null,null,null,null,null,null,"CÉDULA"]
[null,null,null,null,null,null,null,"EDUCACIÓN BÁSICA ALTERNATIVA",null,null,null,null,null,null,null,null,null,null,null,null,null,null,null,null,null,null,null,null,null,null,null,null,null,null,"4AI"]
[null,null,null,null,null,null,null,"(INICIAL - INTERMEDIO)"]
[null,null,"Version :",null,"2 - (32 y 64 bits)"]
[null,null,"INSTRUCCIONES DEL FORMATO ELECTRÓNICO "]
[]
[]
[]
[]
[]
[]
[]
[]
[]
[]
[]
[]
[]
[]
[]
[]
[]
[null,null,"IDENTIFICACIÓN DEL SERVICIO EDUCATIVO"]
[]
[]
[null,null,null,"1. CÓDIGO MODULAR :",null,null,null,null,null,null,null,null,null,null,null,null,null,null,null,null,null,null,null,null,null,null,null,null,null,null,null,null,"2. CÓDIGO DE LOCAL EDUCATIVO :"]
[]
[null,null,null,"3. NOMBRE DEL SERVICIO/NIVEL :",null,null,null,null,null,null,null,""]
[]
[null,null,null,"4. DISTRITO :",null,null,null,null,null,null,null,null,null,null,null,null,null,null,null,null,null,null,null,null,null,null,null,"LOCALIDAD :"]
[]
[]
["GESTIÓN"]
[{"$f":"CONCATENATE(TRIM(UPPER(O35)),TRIM(UPPER(X35)),TRIM(UPPER(AG35)))","v":""},null,null,"Esta Institución Educativa es de Gestión : ",null,null,null,null,null,null,null,null,null,null,null," 1 - Pública de gestión directa",null,null,null,null,null,null,null,null," 2 - Pública de gestión privada",null,null,null,null,null,null,null,null," 3 - Privada"]
[]
[]
[null,null,"100. CARACTERÍSTICA DEL SERVICIO EDUCATIVO"]
[]
[null,null,null,"A. CARACTERÍSTICA DE LA ENSEÑANZA"]
[null,null,null,"101.A INDIQUE, ¿CUÁNTOS PERÍODOS PROMOCIONALES HA PREVISTO EN EL PRESENTE AÑO?"]
[null,null,null,"Anote la respuesta en los casilleros correspondientes"]
[]
[null,null,null,{"$f":"SUM(D46:E49)","v":0},null,null,"INICIO (*)",null,null,null,null,null,null,null,null,null,null,null,"FINALIZACIÓN (*)",null,null,null,null,null,null,null,null,null,null,null,"TURNO"]
[null,null,null,"Periodo",null,null,"Dia",null,null,"Mes",null,null,null,null,"Año",null,null,null,"Dia",null,null,"Mes",null,null,null,null,"Año",null,null,null,"Mañana",null,null,"Tarde",null,null,"Noche"]
[{"$f":"COUNTIF($D$46:$E$49,$D46)","v":0},null,null,null,null,null,null,null,null,null,null,null,null,null,null,null,{"$f":"IF(AND(G46<>\"\",J46<>\"\",O46<>\"\"),0,1)","v":1},null,null,null,null,null,null,null,null,null,null,null,{"$f":"IF(AND(S46<>\"\",V46<>\"\",AA46<>\"\"),0,1)","v":1},null,null,null,null,null,null,null,null,{"$f":"IF(OR(AE46<>\"\",AH46<>\"\",AK46<>\"\"),0,1)","v":1}]
[{"$f":"COUNTIF($D$46:$E$49,$D47)","v":0},null,null,null,null,null,null,null,null,null,null,null,null,null,null,null,{"$f":"IF(AND(G47<>\"\",J47<>\"\",O47<>\"\"),0,1)","v":1},null,null,null,null,null,null,null,null,null,null,null,{"$f":"IF(AND(S47<>\"\",V47<>\"\",AA47<>\"\"),0,1)","v":1},null,null,null,null,null,null,null,null,{"$f":"IF(OR(AE47<>\"\",AH47<>\"\",AK47<>\"\"),0,1)","v":1}]
[{"$f":"COUNTIF($D$46:$E$49,$D48)","v":0},null,null,null,null,null,null,null,null,null,null,null,null,null,null,null,{"$f":"IF(AND(G48<>\"\",J48<>\"\",O48<>\"\"),0,1)","v":1},null,null,null,null,null,null,null,null,null,null,null,{"$f":"IF(AND(S48<>\"\",V48<>\"\",AA48<>\"\"),0,1)","v":1},null,null,null,null,null,null,null,null,{"$f":"IF(OR(AE48<>\"\",AH48<>\"\",AK48<>\"\"),0,1)","v":1}]
[{"$f":"COUNTIF($D$46:$E$49,$D49)","v":0},null,null,null,null,null,null,null,null,null,null,null,null,null,null,null,{"$f":"IF(AND(G49<>\"\",J49<>\"\",O49<>\"\"),0,1)","v":1},null,null,null,null,null,null,null,null,null,null,null,{"$f":"IF(AND(S49<>\"\",V49<>\"\",AA49<>\"\"),0,1)","v":1},null,null,null,null,null,null,null,null,{"$f":"IF(OR(AE49<>\"\",AH49<>\"\",AK49<>\"\"),0,1)","v":1}]
[null,null,null,"(*) Inicio y finalización puede corresponder al 2020 y 2021 respectivamente."]
[]
[]
[null,null,null,"102.A ¿ EL CEBA TIENE PERIFÉRICOS A CARGO ?",null,null,null,null,null,null,null,null,null,null,null,null,null,null,null,null,null,null,"104.A ¿CUÁNTOS PERIFÉRICOS FUNCIONAN DURANTE LA SEMANA?"]
[null,null,null,null,null,null,null,null,null,null,null,null,null,null,null,null,null,null,null,null,null,null,null,"Marque con un aspa “X” los días y anote en los casilleros el número de"]
[{"$f":"CONCATENATE(F55,M55)","v":""},null,null,null,"Sí",null,null,null,null,null,null,"No",null,null,null,"Pase a la pregunta 105.A",null,null,null,null,null,null,null,"periféricos según corresponda"]
[]
[null,null,null,"103.A ¿ CUÁNTOS PERIFÉRICOS ESTÁN ASOCIADOS AL CEBA ?",null,null,null,null,null,null,null,null,null,null,null,null,null,null,null,null,null,null,null,null,null,null,null,null,null,"Lu","Ma","Mi","Ju","Vi","Sa","Do"]
[null,null,null,null,null,null,null,null,null,null,null,null,null,null,null,null,null,null,null,null,null,null,null,null,"Dias de la semana"]
[null,null,null,null,null,"Cuantos",null,null,null,null,null,null,null,null,null,null,null,null,null,null,null,null,null,null,"Nº de Perifericos"]
[]
[]
[null,null,null,"105.A. ¿ESTE SERVICIO/NIVEL EDUCATIVO BRINDA EL SERVICIO DE ALIMENTACIÓN",null,null,null,null,null,null,null,null,null,null,null,null,null,null,null,null,null,null,"114.A ¿EL CEBA HA ELABORADO MATERIALES EDUCATIVOS PROPIOS COMO?"]
[null,null,null,null,"QUIOSCO Y/O COMEDOR?",null,null,null,null,null,null,null,null,null,null,null,null,null,null,null,null,null,null,"Marque con una “X”, una o más opciones"]
[]
[null,null,null,null,null,null,null,null,null,"Precise si cuenta con los siguientes servicios:",null,null,null,null,null,null,null,null,null,null,null,null,null,null,null,"Módulos de Auto Aprendizaje"]
[null,null,null,null,"Sí",null,null,null,null,"Servicios",null,null,null,null,null,null,"Sí - No",null,null,null,null,null,null,null,null,"Textos"]
[null,null,null,null,null,null,null,null,null,1,null,"Agua",null,null,null,null,null,null,null,null,null,null,null,null,null,"Fascículos"]
[null,null,null,null,null,null,null,null,null,2,null,"Desague",null,null,null,null,null,null,null,null,null,null,null,null,null,"Otros"]
[null,null,null,null,"No",null,null,null,null,3,null,"Electricidad"]
[null,null,null,null,null,null,null,null,null,null,null,null,null,null,null,null,null,{"$f":"COUNTIF(Q67:Q69,\"SI\")+COUNTIF(Q67:Q69,\"NO\")","v":0},null,null,null,null,"115.A EL LOCAL DONDE FUNCIONA EL CEBA REFERENCIAL ES:"]
[null,null,null,"106.A. ¿REALIZÓ LA RESERVA COMO MÍNIMO DE (02) VACANTES POR CADA AULA",null,null,null,null,null,null,null,null,null,null,null,null,null,null,null,null,null,null,null,"Marque con un aspa “X” solo un casillero"]
[null,null,null,null,"PARA ESTUDIANTES CON NECESIDADES EDUCATIVAS ESPECIALES ASOCIADA"]
[null,null,null,null,"A DISCAPACIDAD LEVE O MODERADA?",null,null,null,null,null,null,null,null,null,null,null,null,null,null,null,null,null,null,null,null,"Propio"]
[null,null,null,null,null,null,null,null,null,null,null,null,null,null,null,null,null,null,null,null,null,null,null,null,null,"Alquilado"]
[null,null,null,null,"Sí",null,null,null,null,null,null,"No",null,null,null,null,null,null,null,null,null,null,null,null,null,"Prestado"]
[null,null,null,null,null,null,null,null,null,null,null,null,null,null,null,null,null,null,null,null,null,null,null,null,null,"Otros"]
[null,null,null,"107.A. ¿EL CEBA CUENTA CON CÍRCULOS DE APRENDIZAJE?"]
[null,null,null,null,null,null,null,null,null,null,null,null,null,null,null,null,null,null,null,null,null,null,"116.A EL LOCAL QUE OCUPA EL CEBA REFERENCIAL ES:"]
[null,null,null,null,"Sí",null,null,null,null,null,null,"No",null,null,null,"Pase a la pregunta 110.A",null,null,null,null,null,null,null,"Marque con un aspa “X” solo un casillero"]
[]
[null,null,null,"108.A ¿CUÁNTOS CÍRCULOS DE APRENDIZAJE ESTÁN ADSCRITOS AL CEBA?",null,null,null,null,null,null,null,null,null,null,null,null,null,null,null,null,null,null,null,null,null,"De uso exclusivo"]
[null,null,null,null,null,null,null,null,null,null,null,null,null,null,null,null,null,null,null,null,null,null,null,null,null,"De uso compartido"]
[null,null,null,null,null,"Cuántos"]
[null,null,null,null,null,null,null,null,null,null,null,null,null,null,null,null,null,null,null,null,null,null,"117.A. ¿EL SERVICIO/NIVEL EDUCATIVO, HA DESARROLLADO UNA O ALGUNAS"]
[null,null,null,"109.A. ¿CUÁNTOS CÍRCULOS DE APRENDIZAJE FUNCIONAN DURANTE LA SEMANA?",null,null,null,null,null,null,null,null,null,null,null,null,null,null,null,null,null,null,null,"DE LAS ACTIVIDADES PROPUESTAS PARA LA IMPLEMENTACIÓN DE LA EIT?"]
[null,null,null,null,"Marque con un aspa “X” los dias y anote en los casilleros el número de",null,null,null,null,null,null,null,null,null,null,null,null,null,null,null,null,null,null,"Educación Intercultural para Todos y Todas"]
[null,null,null,null,"círculos de aprendizaje según corresponda"]
[null,null,null,null,null,null,null,null,null,null,null,null,"Lu","Ma","Mi","Ju","Vi","Sa","Do",null,null,null,null,null,null,"Activivades EIT",null,null,null,null,null,null,null,null,"Si - No"]
[null,null,null,null,"Dias de la semana",null,null,null,null,null,null,null,null,null,null,null,null,null,null,null,null,null,null,null,"01","Descubriendo nuevos orígenes"]
[null,null,null,null,null,null,null,null,null,null,null,null,null,null,null,null,null,null,null,null,null,null,null,null,"02","Encuentro con nuestra diversidad"]
[null,null,null,null,"Nº de Círculos de Aprendizaje",null,null,null,null,null,null,null,null,null,null,null,null,null,null,null,null,null,null,null,"03","Feria de la diversidad"]
[null,null,null,null,null,null,null,null,null,null,null,null,null,null,null,null,null,null,null,null,null,null,null,null,null,null,null,null,null,null,null,null,null,null,{"$f":"COUNTIF(AI89:AJ91,\"SI\") + COUNTIF(AI89:AJ91,\"NO\")","v":0}]
[null,null,null,"110.A ¿EL CEBA TIENE CONVENIO CON...?",null,null,null,null,null,null,null,null,null,null,null,null,null,null,null,null,null,null,"118.A EN LOS ÚLTIMOS TRES MESES, ¿SE COORDINÓ U OFRECIO ALGÚN PROGRAMA"]
[null,null,null,null,"Marque con una “X”, una o más opciones",null,null,null,null,null,null,null,null,null,null,null,null,null,null,null,null,null,null,"O SERVICIO, CÓMO?:",null,null,null,null,"Marque con una “X”, una o más opciones"]
[]
[null,null,null,null,null,null,"Intitutos o Escuelas de Educación Superior",null,null,null,null,null,null,null,null,null,null,null,null,null,null,null,null,null,null,"Programa Qali Warma"]
[null,null,null,null,null,null,"Centro de Educación Técnico Productiva (CETPRO)",null,null,null,null,null,null,null,null,null,null,null,null,null,null,null,null,null,null,"Campaña de vacunación"]
[null,null,null,null,null,null,"Instituto Nacional Penitenciario (INPE)",null,null,null,null,null,null,null,null,null,null,null,null,null,null,null,null,null,null,"Control de crecimiento y desarrollo"]
[null,null,null,null,null,null,"Gobierno Local",null,null,null,null,null,null,null,null,null,null,null,null,null,null,null,null,null,null,"SAANEE"]
[null,null,null,null,null,null,"Gobierno Regional",null,null,null,null,null,null,null,null,null,null,null,null,null,null,null,null,null,null,"Programa de Intervención temprana (PRITE)"]
[null,null,null,null,null,null,"Empresas",null,null,null,null,null,null,null,null,null,null,null,null,null,null,null,null,null,null,"Servicio de Apoyo Educativo Virtual (SAEV)"]
[null,null,null,null,null,null,"Centros juveniles de diagnóstico y rehabilitación (CJDR)",null,null,null,null,null,null,null,null,null,null,null,null,null,null,null,null,null,null,"Otro especifique"]
[null,null,null,null,null,null,"Otro  - especificar",null,null,null,null,null,null,null,null,null,null,null,null,null,null,null,null,null,null,"Ninguno"]
[null,null,null,null,null,null,"Ninguno"]
[null,null,null,null,null,null,null,null,null,null,null,null,null,null,null,null,null,null,null,null,null,null,"119.A. DURANTE EL AÑO 2022 ¿QUÉ ACTIVIDADES CON FAMILIAS SE HAN"]
[null,null,null,"111.A ¿EL CEBA TIENE EL CONSEJO DE PARTICIPACIÓN DE ESTUDIANTES",null,null,null,null,null,null,null,null,null,null,null,null,null,null,null,null,null,null,null,"REALIZADO DESDE ESTE SERVICIO/NIVEL EDUCATIVO?"]
[null,null,null,null,"(COPAE) RECONOCIDO CON RESOLUCIÓN DIRECTORAL?",null,null,null,null,null,null,null,null,null,null,null,null,null,null,null,null,null,null,"Marque con una “X” Si o No realizó cada actividad"]
[null,null,null,null,null,null,null,null,null,null,null,null,null,null,null,null,null,null,null,null,null,null,null,"Entidad que Organizó",null,null,null,null,null,null,null,{"$f":"COUNTIF(AG109:AH112,\"X\")","v":0}," SI"," NO","Nro. de actividades"]
[null,null,null,null,"Sí",null,null,null,null,null,null,"Nº de resolución : ","",null,null,null,null,"No",null,null,null,null,null,1,"Jornadas con familias"]
[null,null,null,null,null,null,null,null,null,null,null,null,null,null,null,null,null,null,null,null,null,null,null,2,"Encuentros familiares"]
[null,null,null,"112.A. ¿EL CEBA TIENE EL CONSEJO EDUCATIVO INSTITUCIONAL (CONEI)",null,null,null,null,null,null,null,null,null,null,null,null,null,null,null,null,null,null,null,3,"Reuniones informativas con familias"]
[null,null,null,null,"RECONOCIDO CON RESOLUCIÓN DIRECTORAL?",null,null,null,null,null,null,null,null,null,null,null,null,null,null,null,null,null,null,4,"Talleres con familias"]
[]
[null,null,null,null,"Sí",null,null,null,null,null,null,"Nº de resolución : ","",null,null,null,null,"No",null,null,null,null,"120.A. EL CEBA REFERENCIAL O ALGÚN PERIFÉRICO, ¿ATIENDE LA POBLACIÓN"]
[null,null,null,null,null,null,null,null,null,null,null,null,null,null,null,null,null,null,null,null,null,null,null,"MATRICULADA EN:?",null,null,null,null,"Marque con una “X” uno o más casilleros"]
[null,null,null,"113.A. EL CEBA HA IMPLEMENTADO LAS PROPUESTAS PEDAGÓGICAS"]
[null,null,null,null,"SIGUIENTES :",null,null,null,null,null,null,null,null,null,null,null,null,null,null,null,null,null,null,"Centro / Dependencia",null,null,null,null,null,null,null,null,"CEBA",null,null,"Periférico"]
[null,null,null,null,"Marque con una “X”, una o más opciones",null,null,null,null,null,null,null,null,null,null,null,null,null,null,null,null,null,null,null,null,null,null,null,null,null,null,null,"Referencial"]
[null,null,null,null,null,null,null,null,null,null,null,null,null,null,null,null,null,null,null,null,null,null,1,"Centro Penitenciario"]
[null,null,null,null,null,null,"Personas Adulto Mayor (PAM)",null,null,null,null,null,null,null,null,null,null,null,null,null,null,null,2,"Muelle o Caleta"]
[null,null,null,null,null,null,"Personas Privadas de Libertad (PPL)",null,null,null,null,null,null,null,null,null,null,null,null,null,null,null,3,"Dependencia de FF.AA. (cuarteles)"]
[null,null,null,null,null,null,"Personas dedicadas a la Pesca Artesanal",null,null,null,null,null,null,null,null,null,null,null,null,null,null,null,4,"Centro de Adulto Mayor"]
[{"$f":"COUNTIF(AH119:AK124,\"X\")","v":0},null,null,null,null,null,"Otros",null,null,null,null,null,null,null,null,null,null,null,null,null,null,null,5,"Centros Juveniles de Diagnóstico"]
[{"$f":"CONCATENATE(AH124,AK124)","v":""},null,null,null,null,null,null,null,null,null,null,null,null,null,null,null,null,null,null,null,null,null,6,"Otro"]
[]
[]
[null,null,null,"B. TUTORÍA , ORIENTACIÓN EDUCATIVA Y CONVIVENCIA ESCOLAR"]
[null,null,"101.B  EN ESTE SERVICIO/NIVEL EDUCATIVO ¿SE DESARROLLAN PROGRAMAS QUE",null,null,null,null,null,null,null,null,null,null,null,null,null,null,null,null,null,null,"107.B. EL SERVICIO/NIVEL EDUCATIVO, ¿CUENTA CON NORMAS DE CONVIVENCIA"]
["Frecuencia",null,null,null,"PROMUEVAN LA ÉTICA INTEGRIDAD Y VALORES?",null,null,null,null,null,null,null,null,null,null,null,null,null,null,null,null,null,null,"ESCOLAR ACTUALIZADAS PARA EL AÑO 2023?"]
["1: Semanal"]
["2: Quincenal",null,null,null,"Sí",null,null,null,null,null,null," No  ",null,null,null,null,null,null,null,null,null,null,null," Sí",null,null,null,null,null,null," No",null,null,null,"Pase a la pregunta 111.B"]
["3: Mensual"]
["4: Bimestral",null,null,null,null,null,null,null,null,null,null,null,null,null,null,null,null,null,null,null,null,null,null,null,null,null,"¿Están incorporadas al reglamento interno?"]
["5: Trimestral",null,"102.B   INDIQUE,  ¿CON CUALES DE LOS SIGUIENTES COMITÉS CUENTA ESTE SERVICIO"]
["6: Semestral",null,null,null,"NIVEL EDUCATIVO Y CON QUE FRECUENCIA SE REUNEN?",null,null,null,null,null,null,null,null,null,null,null,null,null,null,null,null,null,null,null,null,null,null," Sí",null,null,null,null,null," No"]
["7: No se reúnen",null,null,null,"Selecciones SI o No en la o las alternativas que correspondan"]
[null,null,null,null,null,null,null,null,null,null,null,null,null,null,null,null,null,null,null,null,null,"108.B  ¿LAS NORMAS DE CONVIVENCIA ESCOLAR INCLUYEN NORMAS RELACIONADAS"]
[null,null,null,"Detalle de los comités en el  Servicio/Nivel Educativo",null,null,null,null,null,null,null,"Cuenta con este comité",null,"¿Está conformado mediante (RD)?",null,null,"Frecuencia de las reuniones",null,null,null,null,null,null,"A LA GESTIÓN DE BIENESTAR EN EL RETORNO A LA SEMIPRESENCIALIDAD O"]
[null,null,null,null,null,null,null,null,null,null,null,null,null,null,null,null,null,null,null,null,null,null,null,"PRESENCIALIDAD ?"]
[]
[null,null,null,null,null,null,null,null,null,null,{"$f":"COUNTIF(L142:M143,\"SI\")+COUNTIF(L142:M143,\"NO\")","v":0},"SI - NO",null,"SI - NO",null,null,null,null,null,null,null,null,null,"Sí",null,null,null,null,null,null," No "]
[null,null,null,1,"Comité de Tutoría"]
[null,null,null,2,"Comité de Gestión del Bienestar",null,null,null,null,null,null,null,null,null,null,null,null,null,null,null,null,"109.B. ¿LAS NORMAS DE CONVIVENCIA ESCOLAR HAN SIDO CONSTRUIDAS CON LA"]
[null,null,null,null,null,null,null,null,null,null,null,null,null,null,null,null,null,null,null,null,null,null,null,"PARTICIPACIÓN DE REPRESENTANTES DE LAS/LOS ESTUDIANTES?"]
[]
[null,null,"103.B  EL SERVICIO/NIVEL EDUCATIVO, ¿CUENTA CON PLAN DE TUTORÍA,",null,null,null,null,null,null,null,null,null,null,null,null,null,null,null,null,null,null,null,null,"Sí",null,null,null,null,null,null," No  "]
[null,null,null,null,"ORIENTACIÓN EDUCATIVA Y CONVIVENCIA ESCOLAR?"]
[null,null,null,null,null,null,null,null,null,null,null,null,null,null,null,null,null,null,null,null,null,"110.B. ¿EL SERVICIO/NIVEL EDUCATIVO CUENTA CON AL MENOS UNA/UN"]
[null,null,null,null,"Sí",null,null,null,null,null,null," No  ",null,null,null,"Pase a la pregunta 107.B",null,null,null,null,null,null,null,"RESPONSABLE DE CONVIVENCIA ESCOLAR ASIGNADO PARA EL AÑO 2023?"]
[]
[null,null,null,null,null,null,null,null,null,null,null,null,null,null,null,null,null,null,null,null,null,null,null,"Sí",null,null,null,null,null,null," No  "]
[null,null,"104.B  ¿EL PLAN DE TUTORÍA, ORIENTACIÓN EDUCATIVA Y CONVIVENCIA ESCOLAR"]
[null,null,null,null,"PRESENTA AL MENOS UNA ACTIVIDAD RELACIONADA A LA GESTIÓN DE",null,null,null,null,null,null,null,null,null,null,null,null,null,null,null,null,null,null,null,null,null,"¿Se encuentra registrado en el portal SíseVe?"]
[null,null,null,null,"BIENESTAR EN EL RETORNO A LA SEMIPRESENCIALIDAD O PRESENCIALIDAD?"]
[null,null,null,null,null,null,null,null,null,null,null,null,null,null,null,null,null,null,null,null,null,null,null,null,null,null,null,"Sí  ",null,null,null,null,null,"No"]
[null,null,null,null,"Sí",null,null,null,null,null,null," No  "]
[null,null,null,null,null,null,null,null,null,null,null,null,null,null,null,null,null,null,null,null,null,"111.B  EL SERVICIO/NIVEL EDUCATIVO, ¿CUENTA CON LIBRO DE REGISTRO DE"]
[null,null,null,null,null,null,null,null,null,null,null,null,null,null,null,null,null,null,null,null,null,null,null,"INCIDENCIAS  SOBRE VIOLENCIA Y ACOSO ESCOLAR EN EL MARCO DE"]
[null,null,"105.B  ¿SE HA ACTUALIZADO EL PLAN DE TUTORÍA, CON RELACIÓN A LO",null,null,null,null,null,null,null,null,null,null,null,null,null,null,null,null,null,null,null,null,"LA LEY 29719?"]
[null,null,null,"","ELABORADO  EN EL AÑO 2022?",null,null,null,null,null,null,null,null,null,null,null,null,null,null,null,null,null,null,"Sí",null,null,null,null,null,null," No  ",null,null,null,"Pase a la pregunta 113.B"]
[]
[null,null,null,null,"Sí",null,null,null,null,null,null," No  ",null,null,null,null,null,null,null,null,null,null,null,null,null,null,"¿El libro de registro se encuentra en un lugar visible?"]
[]
[null,null,null,null,null,null,null,null,null,null,null,null,null,null,null,null,null,null,null,null,null,null,null,null,null,null,null,"Sí  ",null,null,null,null,null,"No"]
[null,null,"106.B  LOS DOCENTES TUTORES, ¿CUENTAN CON UN PLAN TUTORIAL DE AULA"]
[null,null,null,null,"PARA ESTE AÑO 2023?",null,null,null,null,null,null,null,null,null,null,null,null,null,null,null,null,"112.B. EN EL AÑO 2022, ¿SE HIZO USO DEL LIBRO DE REGISTRO DE INCIDENCIAS?"]
[]
[null,null,null,null,"Marque con una “X”, una opción",null,null,null,null,null,null,null,null,null,null,null,null,null,null,null,null,null,null,"Sí",null,null,null,null,null,null," No  "]
[null,null,null,null,null,"1 - Sí, todos los docentes"]
[null,null,null,null,null,"2 - Sí, algunos docentes",null,null,null,null,null,null,null,null,null,null,null,null,null,null,null,null,null,null,null,"¿Cuántas incidencias se registraron en el año 2022?"]
[null,null,null,null,null,"3 - Ninguno"]
[null,null,null,null,null,null,null,null,null,null,null,null,null,null,null,null,null,null,null,null,null,null,null,null,null,"Anote la fecha de la última",null,null,null,null,null,null,null,"DÍA","MES",null,"AÑO"]
[null,null,null,null,null,null,null,null,null,null,null,null,null,null,null,null,null,null,null,null,null,null,null,null,null,"incidencia registrada en el año 2022",null,null,null,null,null,null,null,null,null,null,2022]
[]
[]
[null,null,"113.B  USTED, SEÑOR(A) DIRECTOR(A), ¿CONOCE EL PORTAL SÍSEVE?",null,null,null,null,null,null,null,null,null,null,null,null,null,null,null,null,null,null,"117.B. SEÑOR(A) DIRECTOR(A), EN EL AÑO 2022, ¿SE APLICARON LOS PROTOCOLOS"]
[null,null,null,null,null,null,null,null,null,null,null,null,null,null,null,null,null,null,null,null,null,null,null,"PARA LA ATENCIÓN DE LOS CASOS DE VIOLENCIA EN EL SERVICIO/NIVEL"]
[null,null,null,null," Sí",null,null,null,null,null,null," No  ",null,null,null,"Pase a la pregunta 116.B",null,null,null,null,null,null,null,"EDUCATIVO QUE FUERON ACTUALIZADOS PARA LA EDUCACIÓN A DISTANCIA?"]
[]
[null,null,null,null,null,null,null,"¿Ha sido capacitado por algún integrante de la UGEL/DRE",null,null,null,null,null,null,null,null,null,null,null,null,null,null,null,"Sí",null,null,null,null,null,null,"No  "]
[null,null,null,null,null,null,null,"en el uso del Portal SíseVe? "]
[null,null,null,null,null,null,null,null," Sí   ",null,null,null,null,null," No  ",null,null,null,null,null,null,"118.B. ESTE SERVICIO/NIVEL EDUCATIVO, ¿RECIBE ASISTENCIA TÉCNICA PARA LA"]
[null,null,null,null,null,null,null,null,null,null,null,null,null,null,null,null,null,null,null,null,null,null,null,"PROMOCIÓN DE LA CONVIVENCIA ESCOLAR, LA PREVENCIÓN Y ATENCIÓN"]
[null,null,"114.B. EL SERVICIO/NIVEL EDUCATIVO, ¿SE ENCUENTRA AFILIADO AL SÍSEVE?",null,null,null,null,null,null,null,null,null,null,null,null,null,null,null,null,null,null,null,null,"DE LA VIOLENCIA ESCOLAR?"]
[]
[null,null,null,null,"Sí",null,null,"¿Cuántos casos han sido reportados?",null,null,null,null,null,null,null,null,null,null,null,null,null,null,null," Sí",null,null,null,null,null,null," No  "]
[]
[null,null,null,null,"No",null,null,"¿Porque razón el servicio y/o nivel educativo",null,null,null,null,null,null,null,null,null,null,null,null,null,"119.B ¿USTED HA RECURRIDO A LA UGEL/DRE SOLICITANDO ORIENTACIONES PARA"]
[null,null,null,null,null,null,null,"no está afiliado al SÍSEVE?",null,null,null,null,null,null,null,null,null,null,null,null,null,null,"MEJORAR LA CONVIVENCIA EN SU SERVICIO/NIVEL EDUCATIVO?"]
[null,null,null,null,null,null,null,null,null,null,null,null,null,null,null,null,null,null,null,null,null,null,"Orientaciones para la prevención de la violencia, atención de casos y promoción de la convivencia"]
[null,null,null,null,null,null,"Marque con una “X”, una opción",null,null,null,null,null,null,null,null,null,null,null,null,null,null,null,null,"Sí",null,null,null,null,null,null,"No  "]
[null,null,null,null,null,null,"Por falta de internet"]
[null,null,null,null,null,null,"Lo conoce y no le parece importante afiliarse",null,null,null,null,null,null,null,null,null,null,null,null,null,null,null,null,null,null,null,"¿Usted ha recibido alguna información y/o capacitación?"]
[null,null,null,null,null,null,"Le parece importante, pero no lo ve necesario para su I.E.",null,null,null,null,null,null,null,null,null,null,null,null,null,null,null,null,null,null,null,null," Sí   ",null,null,null,null,null,null," No  "]
[null,null,null,null,null,null,"Otro"]
[null,null,null,null,null,null,null,null,null,null,null,null,null,null,null,null,null,null,null,null,null,"120.B. ¿EL SERVICIO/NIVEL EDUCATIVO CUENTA CON UN MAPA O DIRECTORIO DE"]
[null,null,null,null,null,null,null,null,null,null,null,null,null,null,null,null,null,null,null,null,null,null,null,"ALIADOS ESTRATÉGICOS PARA LA PREVENCIÓN Y ATENCIÓN DE CASOS DE"]
[null,null,"115.B. EN EL AÑO 2022, ¿UD. HA REPORTADO ALGUNA INCIDENCIA EN EL",null,null,null,null,null,null,null,null,null,null,null,null,null,null,null,null,null,null,null,null,"VIOLENCIA ESCOLAR?"]
[null,null,null,null,"PORTAL SÍSEVE ?"]
[null,null,null,null,"Sistema Especializado en Reporte de casos sobre Violencia Escolar",null,null,null,null,null,null,null,null,null,null,null,null,null,null,null,null,null,null," Sí",null,null,null,null,null,null," No  ",null,null,null,"Pase a la pregunta 101.C"]
[]
[null,null,null,null,"Sí",null,null,null,"Para el año 2022, ¿Cuántos casos"]
[null,null,null,null,null,null,null,null,"fueron reportados?",null,null,null,null,null,null,null,null,null,null,null,null,null,null,"En caso de que cuente con un mapa o directorio de aliados estratégicos, "]
[null,null,null,null,"No",null,null,null,null,null,null,null,null,null,null,null,null,null,null,null,null,null,null,"por favor, indique quiénes lo conforman:"]
[null,null,null,null,null,null,null,null,null,null,null,null,null,null,null,null,null,null,null,null,null,null,null,"Marque con una “X”, una o más opciones"]
[null,null,null,null,null,null,null,null,null,null,null,null,null,null,null,null,null,null,null,null,null,null,null,null,null,"DEMUNA"]
[null,null,"116.B. USTED, SEÑOR(A) DIRECTOR(A), ¿CONOCE LOS PROTOCOLOS PARA LA",null,null,null,null,null,null,null,null,null,null,null,null,null,null,null,null,null,null,null,null,null,null,"Defensoría del pueblo"]
[null,null,null,null,"ATENCIÓN DE LOS CASOS DE VIOLENCIA EN ESTE SERVICIO/NIVEL EDUCATIVO",null,null,null,null,null,null,null,null,null,null,null,null,null,null,null,null,null,null,null,null,"Centro de emergencia Mujer (CEM)"]
[null,null,null,null,null,null,null,null,null,null,null,null,null,null,null,null,null,null,null,null,null,null,null,null,null,"Centro o posta de salud"]
[null,null,null,null,"Sí",null,null,null,null,null,null,"No  ",null,null,null,null,null,null,null,null,null,null,null,null,null,"Iglesia"]
[null,null,null,null,null,null,null,null,null,null,null,null,null,null,null,null,null,null,null,null,null,null,null,null,null,"Comisaría"]
[null,null,null,null,null,null,null,"¿Ha sido capacitado por algún integrante de la UGEL/DRE en el uso",null,null,null,null,null,null,null,null,null,null,null,null,null,null,null,null,null,"Otro"]
[null,null,null,null,null,null,null,"de los Protocolos para la atención de los casos de violencia en la "]
[null,null,null,null,null,null,null,"Institución Educativa?",null,null,null,null,null,null,null,null,null,null,null,null,null,"121.B  ¿EL SERVICIO/NIVEL EDUCATIVO HA REALIZADO ALGUNA ACTIVIDAD"]
[null,null,null,null,null,null,null,null,null,null,null,null,null,null,null,null,null,null,null,null,null,null,null,"COORDINADA CON ALGUNO DE LOS ALIADOS ESTRATÉGICOS?"]
[null,null,null,null,null,null,null,null,"Sí",null,null,null,null,null,"No  "]
[null,null,null,null,null,null,null,null,null,null,null,null,null,null,null,null,null,null,null,null,null,null,null,"Sí",null,null,null,null,null,null,"No  "]
[]
[]
["Dias",null,null,"C. ACOMPAÑAMIENTO Y SOPORTE PEDAGÓGICO"]
[1,null,null,"101.C DESDE EL INICIO DEL AÑO ESCOLAR 2023 HASTA LA FECHA DE REPORTE",null,null,null,null,null,null,null,null,null,null,null,null,null,null,null,null,null,null,"103.C EL SERVICIO/NIVEL EDUCATIVO, EN EL AÑO 2020 Y HASTA EL REPORTE"]
[2,null,null,"DEL CENSO EDUCATIVO EL SERVICIO/NIVEL EDUCATIVO, ¿HA RECIBIDO",null,null,null,null,null,null,null,null,null,null,null,null,null,null,null,null,null,null,null,"DEL CENSO EDUCATIVO 2022, ¿HA RECIBIDO ALGÚN TIPO DE"]
[3,null,null,"COMUNICACIÓN O PARTICIPACIÓN PRESENCIAL O VIRTUAL/REMOTA DEL",null,null,null,null,null,null,null,null,null,null,null,null,null,null,null,null,null,null,null,"ACOMPAÑAMIENTO DIRIGIDO AL DIRECTIVO?"]
[4,null,null,"ESPECIALISTA PEDAGÓGICO DE LA UGEL, CON LA FINALIDAD DE BRINDAR"]
[5,null,null,"ASISTENCIA TÉCNICA?",null,null,null,null,null,null,null,null,null,null,null,null,null,null,null,null,null,null,null,"Sí",null,null,null,null,null,null,"No  "]
[6]
[7,null,null,null,"Sí",null,null,null,null,"¿Cuántas veces?",null,null,null,null,null,null,null,null,null,null,null,null,null,null,null,"¿Que Institución le brindó el acompañamiento?"]
[8,null,null,null,null,null,null,null,null,"Seleccione solo una opción para cada caso",null,null,null,null,null,null,null,null,null,null,null,null,null,null,null,"Marque con una “X”, una o más opciones"]
[9,null,null,null,null,null,null,null,null,null,"Presencial:",null,null,null,null,null,null,null,null,null,null,null,null,null,null,"DRE"]
[10,null,null,null,null,null,null,null,null,null,"Virtual/Remota:",null,null,null,null,null,null,null,null,null,null,null,null,null,null,"UGEL"]
[11,null,null,null,null,null,null,null,null,null,null,null,null,null,null,null,null,null,null,null,null,null,null,null,null,"MINEDU"]
[12,null,null,null," No  ",null,null,null,null,"Pase a la pregunta 103.C",null,null,null,null,null,null,null,null,null,null,null,null,null,null,null,"OTROS"]
[13]
[14,null,null,null,null,null,null,null,null,null,null,null,null,null,null,null,null,null,null,null,null,null,"104.C DURANTE EL AÑO 2022, EL EQUIPO DIRECTIVO DE ESTE NIVEL/SERVICO"]
[15,null,null,null,null,null,null,null,null,null,null,null,null,null,null,null,null,null,null,null,null,null,null,"EDUCATIVO ¿HA AREALIZADO EL MONITOREO A LA PRÁCTICA"]
[16,null,null,"102.C ¿CUÁLES DE LAS SIGUIENTES ACCIONES HA REALIZADO EL ESPECIALISTA ",null,null,null,null,null,null,null,null,null,null,null,null,null,null,null,null,null,null,null,"PEDAGÓGICA DE LOS DOCENTES?"]
[17,null,null,"PEDAGÓGICO AL MOMENTO DE BRINDAR LA ASISTENCIA TÉCNICA AL"]
[18,null,null,"SERVICIO/NIVEL EDUCATIVO?",null,null,null,null,null,null,null,null,null,null,null,null,null,null,null,null,null,null,null,"Sí",null,null,null,null,null,null,"No",null,null,null,"Pase a la pregunta 106.C"]
[19]
[20,null,null,null,"Seleccione “Si” o “No” según corresponda en cada acción"]
[21,null,null,null,null,null,null,null,null,null,null,null,null,null,null,null,null,null,null,null,null,null,null,"¿A cuántos",null,null,null,null,null,"Marque con una “X” una opción"]
[22,null,null,null,"NRO","ACCIONES",null,null,null,null,null,null,null,null,null,null,null," SI - NO",null,null,null,null,null,"docentes?",null,null,null,null,null,null,"Todos los docentes"]
[23,null,null,null,1,"Pregunto sobre las necesidades y demandas pedagógicas",null,null,null,null,null,null,null,null,null,null,null,null,null,null,null,null,null,null,null,null,null,null,null,null,"Más del 50% de docentes"]
[24,null,null,null,null,"del servicio/nivel educativo",null,null,null,null,null,null,null,null,null,null,null,null,null,null,null,null,null,null,null,null,null,null,null,null,"Menos del 50% de docentes"]
[25,null,null,null,2,"Observó alguna sesión o actividades de aprendizaje, ya sea"]
[26,null,null,null,null,"de manera presencial o virtual/remota",null,null,null,null,null,null,null,null,null,null,null,null,null,null,null,null,null,null,null,"¿Con qué frecuencia monitorea a cada docente"]
[27,null,null,null,3,"Sostuvó un clima de confianza y proximidad durante sus",null,null,null,null,null,null,null,null,null,null,null,null,null,null,null,null,null,null,null,"durante el año escolar?"]
[28,null,null,null,null,"acciones de asistencia técnica con este servicio educativo"]
[29,null,null,null,4,"Generó algún espacio para que el director(a) del servicio",null,null,null,null,null,null,null,null,null,null,null,null,null,null,null,null,null,null,null,null,null,null,null,null,"Al menos 1 vez al año"]
[30,null,null,null,null,"educativo autoevalúe su práctica",null,null,null,null,null,null,null,null,null,null,null,null,null,null,null,null,null,null,null,null,null,null,null,null,"2 veces al año"]
[31,null,null,null,5,"Escuchó y respondió las dudas y consultas realizadas",null,null,null,null,null,null,null,null,null,null,null,null,null,null,null,null,null,null,null,null,null,null,null,null,"3 vces al año"]
[null,null,null,null,6,"Las orientaciones brindadas atendieron las necesidades y",null,null,null,null,null,null,null,null,null,null,null,null,null,null,null,null,null,null,null,null,null,null,null,null,"4 veces 2 veces al año"]
["Meses",null,null,null,null,"demandas señaladas"]
["01: Enero",null,null,null,7,"Brindó orientaciones para la mejora de las prácticas pedagógicas",null,null,null,null,null,null,null,null,null,null,null,null,null,null,null,null,"105.C DURANTE EL AÑO 2022, ¿CUÁNTAS REUNIONES EN PROMEDIO POR"]
["02: Febrero",null,null,null,null,"y de gestión acorde al enfoque por competencias.",null,null,null,null,null,null,null,null,null,null,null,null,null,null,null,null,null,"SEMANA DE TRABAJO COLEGIADO O FORMACIÓN REALIZÓ CON EL"]
["03: Marzo",null,null,null,8,"Sugirió estrategias pedagógicas contextualizadas para",null,null,null,null,null,null,null,null,null,null,null,null,null,null,null,null,null,"PRESONAL DE ESTE NIVEL/SERVICO EDUCATIVO?"]
["04: Abril",null,null,null,null,"mejorar las prácticas docentes"]
["05: Mayo",null,null,null,9,"Dio a conocer las fortalezas del servicio / nivel educativo",null,null,null,null,null,null,null,null,null,null,null,null,null,null,null,null,null,null,"N° de reuniones promedio por semana"]
["06: Junio",null,null,null,10,"Durante las orientaciones utiliza alguna herramienta …"]
["07: Julio",null,null,null,11,"Se asumieron compromisos y/o acuerdos para la mejora",null,null,null,null,null,null,null,null,null,null,null,null,null,null,null,null,"106.C. EN EL PRESENTE AÑO, EL PERSONAL DIRECTIVO DE ESTE SERVICIO/NIVEL"]
["08: Agosto",null,null,null,12,"Brindó orientaciones y/o acompañamientos periódicos para",null,null,null,null,null,null,null,null,null,null,null,null,null,null,null,null,null,"EDUCATIVO ¿BRINDA SOPORTE Y APOYO A LOS DOCENTES EN TORNO A SU"]
["09: Septiembre",null,null,null,null,"la implementación de la metodología CAP en la IE.",null,null,null,null,null,null,null,null,null,null,null,null,null,null,null,null,null,"DESEMPEÑO EN EL MARCO DEL ACOMPAÑAMIENTO PEDAGÓGICO Y ESPACIOS"]
["10: Octubre",null,null,null,null,null,null,null,null,null,null,null,null,null,null,null,null,{"$f":"COUNTIF(R243:R262,\"SI\") + COUNTIF(R243:R262,\"NO\")","v":0},null,null,null,null,null,"DE TRABAJO COLEGIADO?"]
["11: Noviembre"]
["12: Diciembre",null,null,null,null,null,null,null,null,null,null,null,null,null,null,null,null,null,null,null,null,null,null,"Sí",null,null,null,null,null,null,"No",null,null,null,"Pase a la pregunta 108.C"]
["01: Enero"]
[]
["Años",null,null,"107.C ¿QUÉ TEMAS HAN SIDO ABORDADOS MAYORITARIAMENTE POR EL EQUIPO",null,null,null,null,null,null,null,null,null,null,null,null,null,null,null,null,null,null,"112.C. ¿QUÉ TEMÁTICAS SE HAN ABORDADO EN LAS ASISTENCIAS PEDAGÓGICAS"]
[2021,null,null,null,"DIRECTIVO DURANTE LAS SESIONES DE SOPORTE Y APOYO A LOS DOCENTES",null,null,null,null,null,null,null,null,null,null,null,null,null,null,null,null,null,null,"QUE HA RECIBIDO POR PARTE DE LOS ESPECIALISTAS DE DRE/UGEL?"]
[2022,null,null,null,"EN EL MARCO DEL ACOMPAÑAMIENTO PEDAGÓGICO Y ESPACIOS DE TRABAJO",null,null,null,null,null,null,null,null,null,null,null,null,null,null,null,null,null,null,"Marque con una  “X” una o más opciones"]
[2023,null,null,null,"COLEGIADO?",null,null,"Marque con un aspa “X” una o más opciones"]
[null,null,null,null,null,null,null,null,null,null,null,null,null,null,null,null,null,null,null,null,null,null,null,null,null,"Planificación curricular"]
[null,null,null,null,null,"Planificación curricular",null,null,null,null,null,null,null,null,null,null,null,null,null,null,null,null,null,null,null,"Metodología y estrategias didácticas"]
[null,null,null,null,null,"Conducción de los aprendizajes",null,null,null,null,null,null,null,null,null,null,null,null,null,null,null,null,null,null,null,"Retroalimentación, criterios e instrumentos de evaluación"]
[null,null,null,null,null,"Como brindar acompañamiento socioafectivo y cognitivo",null,null,null,null,null,null,null,null,null,null,null,null,null,null,null,null,null,null,null,"Soporte emocional"]
[null,null,null,null,null,"Uso de los recursos y materiales educativos para atender la diversidad",null,null,null,null,null,null,null,null,null,null,null,null,null,null,null,null,null,null,null,"Experiencias pedagógicas innovadoras"]
[null,null,null,null,null,"Evaluación formativa y retroalimentación",null,null,null,null,null,null,null,null,null,null,null,null,null,null,null,null,null,null,null,"Acompañamiento pedagógico"]
[null,null,null,null,null,"Fortalecimiento del uso de TIC",null,null,null,null,null,null,null,null,null,null,null,null,null,null,null,null,null,null,null,"Implementación de Refuerzo Escolar"]
[null,null,null,null,null,"Competencia de las áreas curriculares",null,null,null,null,null,null,null,null,null,null,null,null,null,null,null,null,null,null,null,"Atención Diferenciada"]
[null,null,null,null,null,"Conclusiones descriptivas",null,null,null,null,null,null,null,null,null,null,null,null,null,null,null,null,null,null,null,"Otros"]
[null,null,null,null,null,"Otros temas",null,null,null,null,null,null,null,null,null,null,null,null,null,null,null,null,null,null,null,"Ninguna"]
[]
[null,null,null,"108.C EL SERVICIO/NIVEL EDUCATIVO, ¿ DESARROLLA LAS SIGUIENTES"]
[null,null,null,null,"ESTRATEGIAS DE ACOMPAÑAMIENTO?",null,null,null,null,null,null,null,null,null,null,null,null,null,null,null,null,null,"113.C. SEÑOR(A) DIRECTOR(A), ¿UD. CONOCE EL SISTEMA INTEGRADO DE"]
[null,null,null,null,null,null,null,null,null,null,null,null,null,null,null,"¿Cuántos?",null,null,null,null,null,null,null,"FORMACIÓN DOCENTE EN SERVICIO (SIFODS)?"]
[null,null,null,null,null,null,null,null,null,null,null,null,null,null,null,null,"De 1 a 4 por área"]
[null,null,null,null,null,"Visita en aula",null,null,null,null,null,null,null,null,null,null,"De 4 a 8 por área",null,null,null,null,null,null,"Sí",null,null,null,null,null,null," No  "]
[null,null,null,null,null,"Grupos de Interaprendizaje (GIA)",null,null,null,null,null,null,null,null,null,null,"Más de 8 por área"]
[null,null,null,null,null,"Talleres",null,null,null,null,null,null,null,null,null,null,null,null,null,null,null,null,null,null,null,null,"¿Qué módulo(s) ha utilizado del SIFODS?"]
[null,null,null,null,null,"Otros",null,null,null,null,null,null,null,null,null,null,null,null,null,null,null,null,null,null,null,null,"Marque con una “X”, una o más opciones"]
[]
[null,null,null,"109.C. EL SERVICIO/NIVEL EDUCATIVO, ¿INFORMÓ A LAS FAMILIAS SOBRE EL",null,null,null,null,null,null,null,null,null,null,null,null,null,null,null,null,null,null,null,null,null,null,null,"File Docente"]
[null,null,null,null,"PROGRESO DE LOS ESTUDIANTES?",null,null,null,null,null,null,null,null,null,null,null,null,null,null,null,null,null,null,null,null,null,null,"Docente al Día"]
[null,null,null,null,null,null,null,null,null,null,null,null,null,null,null,null,null,null,null,null,null,null,null,null,null,null,null,"Portafolio de la Oferta Formativa"]
[null,null,null,null,"Sí",null,null,null,null,null,null,null," No  ",null,null,null,null,null,null,null,null,null,null,null,null,null,null,"Centro de Recursos"]
[null,null,null,null,null,null,null,null,null,null,null,null,null,null,null,null,null,null,null,null,null,null,null,null,null,null,null,"Guías docentes AeC"]
[null,null,null,null,null,null,"¿Con qué frecuencia?",null,null,null,null,null,null,null,null,null,null,null,null,null,null,null,null,null,null,null,null,"Asistencia Virtual Docente"]
[null,null,null,null,null,null,null,null,null,null,null,null,null,null,null,null,null,null,null,null,null,null,null,null,null,null,null,"Comunidades"]
[null,null,null,null,null,"Marque con una “X”, una opción",null,null,null,null,null,null,null,null,null,null,null,null,null,null,null,null,null,null,null,null,null,"Entorno Personal"]
[]
[null,null,null,null,null,null,"Mensual"]
[null,null,null,null,null,null,"Cada 2 meses"]
[null,null,null,null,null,null,"Cada 3 meses",null,null,null,null,null,null,null,null,null,null,null,null,null,null,null,"114.C. SEÑOR(A) DIRECTOR(A), ¿CÓMO HA IDENTIFICADO LAS NECESIDADES"]
[null,null,null,null,null,null,"Cada 6 meses",null,null,null,null,null,null,null,null,null,null,null,null,null,null,null,null,"FORMATIVAS PARA EL PERSONAL DOCENTE DE ESTE SERVICIO/NIVEL"]
[null,null,null,null,null,null,"Otros",null,null,null,null,null,null,null,null,null,null,null,null,null,null,null,null,"EDUCATIVO?"]
[]
[null,null,null,"110.C ¿HA VISITADO EL PORTAL WEB PARA DIRECTIVOS EN LOS ÚLTIMOS TRES",null,null,null,null,null,null,null,null,null,null,null,null,null,null,null,null,null,null,null,"Sí",null,null,null,null,null,null," No  "]
[null,null,null,null,"MESES?"]
[null,null,null,null,null,null,null,null,null,null,null,null,null,null,null,null,null,null,null,null,null,null,null,null,null,null,"¿Cómo identificó las necesidades formativas?"]
[null,null,null,null,"Sí",null,null,null,null,null,null,null,"No",null,null,null,null,null,null,null,null,null,null,null,null,null,"Marque con una “X”, una o más opciones"]
[null,null,null,null,null,null,null,null,null,null,null,null,null,null,null,null,null,null,null,null,null,null,null,null,null,null,null,"Observación en aula"]
[null,null,null,null,null,null,"¿La información encontrada en el portal web para directivos",null,null,null,null,null,null,null,null,null,null,null,null,null,null,null,null,null,null,null,null,"Cuestionario de autodiagnóstico"]
[null,null,null,null,null,null,"le resulto de utilidad?",null,null,null,null,null,null,null,null,null,null,null,null,null,null,null,null,null,null,null,null,"Monitoreo pedagógico"]
[null,null,null,null,null,null,null,null,null,null,null,null,null,null,null,null,null,null,null,null,null,null,null,null,null,null,null,"Otros"]
[null,null,null,null,null,null,null,null,"Sí",null,null,null,null,null,"No"]
[]
[null,null,null,"111.C. SEÑOR(A) DIRECTOR(A), DURANTE EL AÑO 2022 Y HASTA EL MOMENTO DEL",null,null,null,null,null,null,null,null,null,null,null,null,null,null,null,null,null,null,"115.C. SEÑOR(A) DIRECTOR (A), ¿EN ESTE SERVICIO/NIVEL EDUCATIVO HA"]
[null,null,null,null,"CENSO EDUCATIVO 2023, EN SU CONDICIÓN DE DIRECTOR(A), ¿USTED HA",null,null,null,null,null,null,null,null,null,null,null,null,null,null,null,null,null,null,"GESTIONADO ALGÚN TIPO DE ACCIÓN FORMATIVA PARA ATENDER DICHAS"]
[null,null,null,null,"RECIBIDO ALGÚN TIPO DE ASISTENCIA PEDAGÓGICA?",null,null,null,null,null,null,null,null,null,null,null,null,null,null,null,null,null,null,"NECESIDADES DEL PERSONAL DOCENTE DE ESTE SERVICIO/NIVEL EDUCATIVO?"]
[]
[null,null,null,null," Sí",null,null,null,null,null,null," No  ",null,null,null,"Pase a la pregunta 113.C",null,null,null,null,null,null,null,"Sí",null,null,null,null,null,null," No  "]
[]
[null,null,null,null,null,null,null,"Marque con una “X”, una o más opciones",null,null,null,null,null,null,null,null,null,null,null,null,null,null,null,null,null,null,"¿Qué tipo de acciones formativas gestionó para atender"]
[null,null,null,null,null,null,null,null,null,null,null,null,null,null,null,null,null,null,null,null,null,null,null,null,null,null,"dichas necesidades del personal docente de este Servicio"]
[null,null,null,null,null,null,null,"Nro.",null,"Institución",null,null,null,null,null,null,"PEDA-",null,null,null,null,null,null,null,null,null,"Nivel Educativo?"]
[null,null,null,null,null,null,null,null,null,null,null,null,null,null,null,0,"GÓGICO"]
[null,null,null,null,null,null,null,1,null,"DRE",null,null,null,null,null,null,null,null,null,null,null,null,null,null,null,null,"Marque con una “X”, una o más opciones"]
[null,null,null,null,null,null,null,2,null,"UGEL",null,null,null,null,null,null,null,null,null,null,null,null,null,null,null,null,null,"Cursos virtuales"]
[null,null,null,null,null,null,null,3,null,"MINEDU",null,null,null,null,null,null,null,null,null,null,null,null,null,null,null,null,null,"Programas formativos"]
[null,null,null,null,null,null,null,4,null,"Otros",null,null,null,null,null,null,null,null,null,null,null,null,null,null,null,null,null,"Otros"]
[]
[]
[null,null,null,"116.C. EN LOS ÚLTIMOS DOCE (12) MESES, ¿ESTE SERVICIO/NIVEL EDUCATIVO",null,null,null,null,null,null,null,null,null,null,null,null,null,null,null,null,null,null,"117.C. SEÑALE MARCANDO CON UNA \"X\" SI EN LOS ÚLTIMOS 12 MESES HA CONTADO"]
[null,null,null,null,"CONTÓ CON ALGÚN PROYECTO DE INNOVACIÓN EDUCATIVA O BUENA",null,null,null,null,null,null,null,null,null,null,null,null,null,null,null,null,null,null,"CON ALIADOS ESTRATÉGICOS QUE LE HAN BENEFICIADO CON ALGÚN"]
[null,null,null,null,"PRÁCTICA PEDAGÓGICA ENMARCADOS EN ALGUNA DE LAS SIGUIENTES",null,null,null,null,null,null,null,null,null,null,null,null,null,null,null,null,null,null,"INCENTIVO ECONÓMICO PARA LA IMPLEMENTACIÓN Y/O SOSTENIBILIDAD"]
[null,null,null,null,"TEMÁTICAS/EJES?",null,null,null,null,null,null,null,null,null,null,null,null,null,null,null,null,null,null,"DE SU INNOVACIÓN O BUENA PRÁCTICA PEDAGÓGICA"]
[]
[null,null,null,null,null,"Temática / Eje",null,null,null,null,null,null,null,"Innovación educativa",null,null,"Buena práctica pedagógica",null,null,null,null,null,null,"Aliados Estratégicos",null,null,null,null,null,null,"Innovación educativa",null,null,"Buena práctica pedagógica"]
[]
[]
[null,null,null,null,null,null,null,null,null,null,null,null,null,"SI","-","NO","SI","-","NO",null,null,null,null,null,null,null,null,null,null,null,"SI","-","NO","SI","-","NO"]
[null,null,"",{"$f":"CONCATENATE(N342,P342,Q342,S342)","v":""},1,"Gestión escolar",null,null,null,null,null,null,null,null,null,null,null,null,null,null,null,{"$f":"CONCATENATE(AE342,AG342,AH342,AJ342)","v":""},1,"Gobierno regional"]
[null,null,"",{"$f":"CONCATENATE(N343,P343,Q343,S343)","v":""},2,"Mejoramiento del Servicio Educativo",null,null,null,null,null,null,null,null,null,null,null,null,null,null,null,{"$f":"CONCATENATE(AE343,AG343,AH343,AJ343)","v":""},2,"DRE/UGEL",null,null,null,null,null,null,""]
[null,null,"","",3,"Humanidades",null,null,null,null,null,null,null,null,null,null,null,null,null,null,null,"",3,"Gobierno local",null,null,null,null,null,null,""]
[null,null,"","",4,"Ciencias",null,null,null,null,null,null,null,null,null,null,null,null,null,null,null,"",4,"Aliados privados",null,null,null,null,null,null,""]
[null,null,"","",5,"Medio ambiente",null,null,null,null,null,null,null,null,null,null,null,null,null,null,null,"",5,"MINEDU-FONDEP",null,null,null,null,null,null,""]
[null,null,"","",6,"Violencia escolar (Bullying, acoso)",null,null,null,null,null,null,null,null,null,null,null,null,null,null,null,"",6,"Padres y madres de familia",null,null,null,null,null,null,""]
[null,null,"","",7,"Emprendimientos, productivos",null,null,null,null,null,null,null,null,null,null,null,null,null,null,null,"",7,"Recursos propios de la IE",null,null,null,null,null,null,""]
[null,null,"","",8,"Inclusión",null,null,null,null,null,null,null,null,null,null,null,null,null,null,null,"",8,"Otro",null,null,null,null,null,null,""]
[null,null,"","",9,"Nuevas tecnologías",null,null,null,null,null,null,null,null,null,null,null,null,null,null,null,"",null,null,null,null,null,null,null,null,null,{"$f":"COUNTIF(AE342:AG349,\"X\")","v":0},null,null,{"$f":"COUNTIF(AH342:AJ349,\"X\")","v":0}]
[null,null,"","",10,"Otro",null,null,null,null,null,null,null,null,null,null,null,null,null,null,null,null,"118.C. EN LOS ÚLTIMOS CINCO (05) AÑOS, ¿ALGUNA VEZ EN ESTE SERVICIO/NIVEL"]
[null,null,null,null,null,null,null,null,null,null,null,null,null,null,{"$f":"COUNTIF(N342:P351,\"X\")","v":0},null,null,{"$f":"COUNTIF(Q342:S351,\"X\")","v":0},null,null,null,null,null,"EDUCATIVO SE IMPLEMENTÓ UN PROYECTO DE INNOVACIÓN EDUCATIVA O"]
[null,null,null,null,null,null,null,null,null,null,null,null,null,null,null,null,null,null,null,null,null,null,null,"BUENA PRÁCTICA PEDAGÓGICA?"]
[]
[null,null,null,null,null,null,null,null,null,null,null,null,null,null,null,null,null,null,null,null,null,null,null,null,null,null,null,null,null,null,null,null,"Sí - No"]
[null,null,null,null,null,null,null,null,null,null,null,null,null,null,null,null,null,null,null,null,null,null,null,1,"Innovación educativa"]
[null,null,null,null,null,null,null,null,null,null,null,null,null,null,null,null,null,null,null,null,null,null,null,2,"Buena práctica pedagógica"]

{"sheet":"C101","index":2,"n_rows":141,"n_cols":20,"rows_kept":141,"cut":false,"hidden":false,"merged":[[137,8,137,11],[138,17,138,22],[139,8,139,10],[139,17,139,22],[140,8,140,11],[140,17,140,20],[136,8,136,11],[50,21,50,22],[62,17,62,21],[85,6,85,10],[85,17,85,21],[103,9,103,11],[109,20,109,22],[122,21,122,22],[123,21,123,22],[126,6,126,10],[134,10,134,11],[134,17,134,22],[1,6,1,20],[2,6,2,20],[11,4,11,9],[20,6,20,10],[9,14,11,21],[17,19,17,20],[18,17,20,22]]}
[]
[null,null,null,null,null,null,"CENSO EDUCATIVO 2023"]
[null,null,null,null,null,null,"MATRÍCULA, DOCENTES Y MATERIALES EDUCATIVOS"]
[]
[]
["GESTIÓN"]
[{"$f":"IF(OR('C100'!O35=\"X\",'C100'!X35=\"X\"),\"\",IF('C100'!AG35=\"X\",\"X\",\"\"))","v":""},null,"D. SOBRE LA BASE DEL CENSO DE POBLACIÓN Y VIVIENDA 2017 DEL INEI"]
[null,null,"101.D  SEGÚN LAS COSTUMBRES Y EL ORIGEN FAMILIAR, ¿USTED CONSIDERA QUE SU"]
[null,null,null,"SERVICIO/NIVEL EDUCATIVO CUENTA CON ESTUDIANTES PERTENECIENTES A LOS"]
[null,null,null,"SIGUIENTES GRUPOS ÉTNICOS?",null,null,null,null,null,null,null,null,null,null,"SOLO SI MARCÓ DOS O MÁS ALTERNATIVAS EN LA PREGUNTA ANTERIOR, RESPONDA:"]
[]
[null,null,null,"COD.","GRUPO ÉTNICO",null,null,null,null,null,{"$f":"COUNTIF(L13:L21,\"SI\")","v":0}," SI - NO"]
["SI - NO",null,null,1,"Quechua",null,null,null,null,null,null,null,{"$f":"IF(L13=\"SI\",1,0)","v":0}]
["SI",null,null,2,"Aimara",null,null,null,null,null,null,null,{"$f":"IF(L14=\"SI\",1,0)","v":0}]
["NO",null,null,3,"Nativo o indígena de la Amazonía",null,null,null,null,null,null,null,0]
[null,null,null,4,"Perteneciente o parte de otro pueblo indígena u originario",null,null,null,null,null,null,null,0,"102.D  ¿EXISTE UN GRUPO QUE TENGA MAYOR CANTIDAD DE ESTUDIANTES?"]
[null,null,null,5,"Negro moreno, zambo, mulato/Pueblo afroperuano o afrodescendiente",null,null,null,null,null,null,null,0]
[null,null,null,6,"Blanco",null,null,null,null,null,null,null,0,null,"Sí",null,null,"Código"]
[null,null,null,7,"Mestizo",null,null,null,null,null,null,null,0,null,null,null,null,"Indique el grupo étnico en el que identifica mayor cantidad de estudiantes utilizando el COD. seleccionado en la pregunta 101.D"]
[null,null,null,8,"Asiático peruano",null,null,null,null,null,null,null,0,null,"No"]
[null,null,null,9,"Otro  especifique",null,null,null,null,null,null,null,0]
[null,null,null,null,null,null,null,null,null,null,{"$f":"IF(K12>1,\"X\",\"\")","v":""},{"$f":"COUNTIF(L13:L21,\"SI\")+COUNTIF(L13:L21,\"NO\")","v":0}]
[]
[]
[null,null,"E. ATENCIÓN A LA DIVERSIDAD Y SOBRE EL SERVICIO DE APOYO Y ASESORAMIENTO A LAS NECESIDADES EDUCATIVAS ESPECIALES - SAANEE"]
[null,null,"101.E  ESTE SERVICIO/NIVEL EDUCATIVO ¿TIENE TECNOLOGÍA PARA RESPONDER A LAS ",null,null,null,null,null,null,null,null,null,null,"108.E  ¿EL SERVICIO/NIVEL EDUCATIVO HA RECIBIDO ASISTENCIA Y ORIENTACION"]
[null,null,null,"NECESIDADES EDUCATIVAS ESPECIALES (NEE) DE LOS ESTUDIANTES?",null,null,null,null,null,null,null,null,null,null,"PARA LA ATENCION EDUCATIVA DE ESTUDIANTES CON DISCAPACIDAD, DE PARTE"]
[null,null,null,null,null,null,null,null,null,null,null,null,null,null,"DEL SERVICIO DE APOYO EDUCATIVO VIRTUAL (SAEV)?"]
[null,null,null,"Sí",null,null,null,null,"No"]
[null,null,null,null,null,null,null,null,null,null,null,null,null,null,"Sí",null,null,"No"]
[null,null,"102.E  ESTE SERVICIO/NIVEL EDUCATIVO ¿CUENTA CON MATERIALES EDUCATIVOS PARA"]
[null,null,null," ATENDER A ESTUDIANTES CON NECESIDADES EDUCATIVAS ESPECIALES (NEE)?",null,null,null,null,null,null,null,null,null,null,null,null,null,"¿Cuántos estudiantes con discapacidad están a cargo de los"]
[null,null,null,null,null,null,null,null,null,null,null,null,null,null,null,null,null,"docentes que han recibido asistencia y orientación por el"]
[null,null,null,"Sí",null,null,null,null,"No",null,null,null,null,null,null,null,null,"Servicio de Apoyo Educativo Virtual (SAEV)?"]
[]
[null,null,"103.E  EL LOCAL DONDE OPERA ESTE SERVICIO/NIVEL EDUCATIVO, ¿CUENTA CON INFRAESTRUC",null,null,null,null,null,null,null,null,null,null,null,null,null,null,"Cantidad"]
[null,null,null,"TURA PARA RESPONDER A LA DIVERSIDAD O LAS NEE, (RAMPA, SEÑALÉTICA, ENTRE OTROS)?"]
[null,null,null,null,null,null,null,null,null,null,null,null,null,"109.E. ¿DURANTE LOS ÚLTIMOS 5 AÑOS, EL PERSONAL DE ESTE SERVICIO/NIVEL"]
[null,null,null,"Sí",null,null,null,null,"No",null,null,null,null,null,"EDUCATIVO (YA SEA PERSONAL DIRECTIVO/JERÁRQUICO, PERSONAL DOCENTE,"]
[null,null,null,null,null,null,null,null,null,null,null,null,null,null,"AUXILIARES O PERSONAL ADMINISTRATIVO), HA RECIBIDO CAPACITACIÓN EN"]
[null,null,null,null,null,"¿Es suficiente? ",null,null,null,null,null,null,null,null,"TEMAS DE EDUCACIÓN INCLUSIVA O ATENCIÓN A LA DIVERSIDAD DE PARTE"]
[null,null,null,null,null,null,null,null,null,null,null,null,null,null,"DE ESPECIALISTAS DE DRE/GRE Y/O UGEL, O ALGUNA OTRA INSTITUCIÓN?"]
[null,null,null,null,null,"Sí  ",null,null,"No"]
[null,null,null,null,null,null,null,null,null,null,null,null,null,null,null,null,null,"¿Qué instancia o institución brindó la capacitación?"]
[null,null,"104.E  ESTE SERVICIO/NIVEL EDUCATIVO, ¿CUENTA CON UN ESPECIALISTA DEL EQUIPO DE",null,null,null,null,null,null,null,null,null,null,null,"Sí",null,null,null,null,"Minedu"]
[null,null,null,"SERVICIO DE APOYO Y ASESORAMIENTO DE LAS NECESIDADES EDUCATIVAS ESPECIALES",null,null,null,null,null,null,null,null,null,null,null,null,null,null,null,"DRE/GRE"]
[null,null,null,"(SAANEE) QUE  LE HAYA SIDO ASIGNADO?",null,null,null,null,null,null,null,null,null,null,null,null,null,null,null,"UGEL"]
[null,null,null,null,null,null,null,null,null,null,null,null,null,null,null,null,null,null,null,"Organizaciones sin fines de lucro"]
[null,null,null,"Sí",null,null,null,null,"No",null,null,null,null,null,"No",null,null,null,null,"Entidad privada, como auspicio"]
[null,null,null,null,null,null,null,null,null,null,null,null,null,null,null,null,null,null,null,"Inversión propia"]
[null,null,"105.E  DURANTE EL PRESENTE AÑO, ESTE SERVICIO/NIVEL EDUCATIVO ¿HA RECIBIDO ASISTENCIA",null,null,null,null,null,null,null,null,null,null,null,null,null,null,null,null,"Otros"]
[null,null,null,"Y ORIENTACIÓN PARA LA ATENCIÓN EDUCATIVA DE ESTUDIANTES CON DISCAPACIDAD,"]
[null,null,null,"DE PARTE DEL EQUIPO DE SERVICIO DE APOYO Y ASESORAMIENTO DE LAS NECESIDADES",null,null,null,null,null,null,null,null,null,"110.E  ¿QUÉ ESTRATEGIAS FORMATIVAS VIRTUALES PRIORIZARÍA SOBRE TEMAS"]
[null,null,null,"EDUCATIVAS ESPECIALES (SAANEE)?",null,null,null,null,null,null,null,null,null,null,"DE EDUCACIÓN INCLUSIVA O ATENCIÓN A LA DIVERSIDAD?"]
[]
[null,null,null,"Sí",null,"No  ",null,null,null,"Pase a la pregunta 107.E",null,null,null,null,null,"Marque con una “X”, una o más opciones"]
[null,null,null,null,null,null,null,null,null,null,null,null,null,null,null,null,"Curso virtual tutorado"]
[null,null,null,null,null,"¿Cuántas asesorías (presenciales o virtuales) ha brindado el equipo SAANEE a este ",null,null,null,null,null,null,null,null,null,null,"Curso virtual autoformativo"]
[null,null,null,null,null,"servicio educativo 2023?",null,null,null,null,null,null,null,null,null,null,"Grupo o círculo de interaprendizaje"]
[null,null,null,null,null,null,null,null,null,null,null,null,null,null,null,null,"Comunidades profesionales de apendizaje"]
[null,null,null,null,null,null,null,"Cantidad :",null,null,null,null,null,null,null,null,"Asesoría personalizada"]
[null,null,null,null,null,null,null,null,null,null,null,null,null,null,null,null,"Pasantia"]
[null,null,"106.E  ¿CUÁNTOS DOCENTES DE ESTE SERVICIO/NIVEL EDUCATIVO HAN RECIBIDO ASISTENCIA",null,null,null,null,null,null,null,null,null,null,null,null,null,"Otros "]
[null,null,null,"Y ORIENTACIÓN PARA LA ATENCIÓN EDUCATIVA DE ESTUDIANTES CON DISCAPACIDAD"]
[null,null,null,"DE PARTE DEL EQUIPO DE SERVICIO DE APOYO Y ASESORAMIENTO DE LAS NECESIDADES",null,null,null,null,null,null,null,null,null,"111.E  ¿EL SERVICIO/NIVEL EDUCATIVO, CUENTA CON RESPONSABLE DE INCLUSIÓN?"]
[null,null,null,"EDUCATIVAS ESPECIALES (SAANEE)?"]
[null,null,null,null,null,null,null,null,null,null,null,null,null,null,"Sí",null,null,null,null,"No"]
[null,null,null,null,null,null,null,"Cantidad :"]
[null,null,null,null,null,null,null,null,null,null,null,null,null,null,null,null,"¿Este personal labora a tiempo completo?"]
[null,null,"107.E. ¿ALGUNO DE LOS DOCENTES DE ESTE SERVICIO/NIVEL EDUCATIVO HAN RECIBIDO"]
[null,null,null,"O RECIBEN CAPACITACIÓN EN TEMAS RELACIONADOS A INCLUSIÓN Y ATENCIÓN A LA",null,null,null,null,null,null,null,null,null,null,null,null,"Sí  ",null,null,"No"]
[null,null,null,"DIVERSIDAD EN LOS ÚLTIMOS 2 AÑOS?"]
[null,null,null,null,null,null,null,null,null,null,null,null,null,"112.E. DESDE EL AÑO 2021 HASTA HOY, EN ESTE SERVICIO/NIVEL EDUCATIVO,"]
[null,null,null,"Sí",null,null,"No  ",null,null,null,null,null,null,null,"¿HA IMPLEMENTADO MEDIDAS Y ACCIONES EN FAVOR DE LA INCLUSIÓN Y ATENCIÓN"]
[null,null,null,null,null,null,null,null,null,null,null,null,null,null,"A LA DIVERSIDAD DE LAS/OS ESTUDIANTES Y/O DOCENTES? (EN CUMPLIMIENTO"]
[null,null,null,null,null,null,null,null,null,null,null,null,null,null,"DEL D.S. N° 007-2021-MINEDU)"]
[null,null,null,null,null,"¿De quién recibieron o reciben?"]
[null,null,null,null,"Marque con una “X”, una o más opciones",null,null,null,null,null,null,null,null,null,"Sí",null,null,"No"]
[]
[null,null,null,null,null,"Minedu"]
[null,null,null,null,null,"DRE/GRE",null,null,null,null,null,null,null,null,null,null,null,null,"¿Por qué?"]
[null,null,null,null,null,"UGEL",null,null,null,null,null,null,null,null,null,"Marque con una “X”, una o más opciones"]
[null,null,null,null,null,"Organizaciones sin fines de lucro ONG",null,null,null,null,null,null,null,null,null,null,"Aún no cuentan con responsable de inclusión."]
[null,null,null,null,null,"Entidad privada, como auspicio",null,null,null,null,null,null,null,null,null,null,"Aún desconocen sobre el D.S. 007-2021-MINEDU"]
[null,null,null,null,null,"Inversión propia",null,null,null,null,null,null,null,null,null,null,"Aún no cuentan con orientaciones para implementar la educación inclusiva."]
[null,null,null,null,null,"Otros",null,null,null,null,null,null,null,null,null,null,"Otro motivo"]
[]
[]
[null,null,"113.E   DE LAS ACTIVIDADES QUE REALIZA CON FAMILIAS Y COMUNIDAD, ¿POR LO MENOS",null,null,null,null,null,null,null,null,null,null,"116.E  ¿EN LOS PLANES TUTORIALES SE HA PRIORIZADO ALGÚN TEMA SOBRE EL EJE"]
[null,null,null,"UNA DE ELLAS TIENE COMO EJE PRINCIPAL LA EDUCACIÓN INCLUSIVA?",null,null,null,null,null,null,null,null,null,null,"DE INCLUSIÓN Y ATENCIÓN A LA DIVERSIDAD?"]
[]
[null,null,null,"Sí",null,null,"No",null,null,null,null,null,null,null,"Sí",null,null,"No"]
[]
[null,null,"114.E  ¿EL SERVICIO/NIVEL EDUCATIVO, CUENTA CON EL SERVICIO DE APOYO EDUCATIVO"]
[null,null,null,"INTERNO (SAEI)?"]
[null,null,null,null,null,null,null,null,null,null,null,null,null,"117.E   EN EL AÑO 2022, ¿ESTE SERVICIO/NIVEL EDUCATIVO HA INCORPORADO ACCIONES"]
[null,null,null,"Sí",null,"¿Cuántas personas lo integran?",null,null,null,null,null,null,null,null,"Y CAMBIOS EN LA GESTIÓN PARA ATENDER A LA DIVERSIDAD Y BRINDAR"]
[null,null,null,null,null,null,null,null,null,null,null,null,null,null,"UNA EDUCACIÓN INCLUSIVA SEGÚN LAS NORMATIVAS VIGENTES?"]
[null,null,null,"No",null,"¿Por qué?"]
[null,null,null,null,null,"Marque con una “X”, una o más opciones"]
[null,null,null,null,null,null,null,null,null,null,null,null,null,null,"Sí",null,null,"No"]
[null,null,null,null,null,null,null,"Aún no cuentan con lineamientos para implementarlo."]
[null,null,null,null,null,null,null,"Aún desconocen las funciones del SAEI.",null,null,null,null,null,null,null,null,"¿Precise los documentos de gestión?"]
[null,null,null,null,null,null,null,"Otro motivo",null,null,null,null,null,null,null,null,"Marque con una “X”, una o más opciones"]
[]
[null,null,"115.E. EL SERVICIO/NIVEL EDUCATIVO, DE ACUERDO AL DIAGNÓSTICO DE LOGROS",null,null,null,null,null,null,null,null,null,null,null,null,null,null,null,"Proyecto Educativo Institucional (PEI)"]
[null,null,null,"DE APRENDIZAJE DE LAS/OS ESTUDIANTES QUE REQUIEREN MAYORES APOYOS",null,null,null,null,null,null,null,null,null,null,null,null,null,null,"Plan Anual de Trabajo (PAT)"]
[null,null,null,"EDUCATIVOS ¿HA ELABORADO PLANES EDUCATIVOS PERSONALIZADOS (PEP)?",null,null,null,null,null,null,null,null,null,null,null,null,null,null,"Proyecto Curricular Institucional (PCI)"]
[null,null,null,null,null,null,null,null,null,null,null,null,null,null,null,null,null,null,"Reglamento Interno (RI)"]
[null,null,null,"Sí",null,null,"No",null,null,null,null,null,null,null,null,null,null,null,"Otros"]
[]
[null,null,null,null,null,"¿Todos los/as estudiantes con alguna necesidad"]
[null,null,null,null,null,"educativa cuentan con un PEP?"]
[]
[null,null,null,null,null,"Sí  ",null,null,"No"]
[]
[]
[null,null,"F. SUPERVISIÓN DE LA PRESTACIÓN DEL SERVICIO EDUCATIVO - SOLO GESTIÓN PRIVADA"]
[null,null,"101.F.  EN EL PRESENTE AÑO 2022, ¿ESTE NIVEL/SERVICIO EDUCATIVO FUE SUPERVISADO",null,null,null,null,null,null,null,null,null,null,"103.F.  FORMA DE CONSTITUCIÓN (Sólo para personas jurídicas)"]
[null,null,null,"  POR LA UGEL A LA QUE PERTENECE?",null,null,null,null,null,null,null,null,null,null,"Marque con un aspa ‘’x’’ y registra la información solicitada según corresponda"]
[]
[null,null,null," Sí",null,null,null," No  ",null,null,null,null,null,null,null,"  Sociedad"]
[null,null,null,null,null,null,null,null,null,null,null,null,null,null,null,null,null,"N° de Partida Regristral  "]
[null,null,null,null,null,"¿Qué aspectos fueron supervisados?",null,null,null,null,null,null,null,null,null,null,null,"N° de Asiento Registral  "]
[null,null,null,null,null,"Entrega de información a los usuarios(as) respecto del servicio educativo"]
[null,null,null,null,null,"Infraestructura educativa",null,null,null,null,null,null,null,null,null,"  Asociación"]
[null,null,null,null,null,"Otros"]
[]
[null,null,null,null,null,null,null,null,null,null,null,null,null,"104.F. ¿ESTE SERVICIO/NIVEL EDUCATIVO PERTENECE A ALGUNA ASOCIACIÓN"]
[null,null,"102.F. COMPLETE LOS SIGUIENTES DATOS SOBRE LA PROMOTORÍA DE ESTE NIVEL",null,null,null,null,null,null,null,null,null,null,null,"QUE AGRUPE A II.EE. PRIVADAS?"]
[null,null,null,"SERVICIO EDUCATIVO DE GESTIÓN PRIVADA"]
[null,null,null,"Marque con un aspa ‘’X’’ y registra la información solicitada según corresponda",null,null,null,null,null,null,null,null,null,null," Sí",null,null,null," No  "]
[null,null,null,"TIpo de persona:"]
[]
[null,null,null,null,null,"  Natural",null,"DNI/CE  ",null,":",null,null,null,null,"Nombre de la asociación :"]
[]
[null,null,null,null,null,null,null,"Nombres  ",null,null,null,null,null,null,"Datos de contacto de la asociación:"]
[null,null,null,null,null,null,null,"Apellidos  "]
[null,null,null,null,null,null,null,null,null,null,null,null,null,null,null,null,"Web "]
[null,null,null,null,null,"  Jurídica",null,"RUC  ",null,null,null,null,null,null,null,null,"Correo electrónico "]
[null,null,null,null,null,null,null,"Razón social  ",null,null,null,null,null,null,null,null,"Teléfono/celular "]

{"sheet":"C200","index":3,"n_rows":306,"n_cols":28,"rows_kept":306,"cut":false,"hidden":false,"merged":[[93,13,93,14],[128,17,128,20],[93,19,93,20],[125,3,125,18],[147,2,149,4],[147,6,149,6],[104,3,104,18],[111,3,111,18],[118,3,118,18],[128,2,130,4],[128,6,130,6],[143,3,143,5],[147,9,147,12],[147,13,147,16],[147,17,147,20],[178,3,178,17],[195,7,195,8],[8,3,8,24],[74,3,74,27],[42,2,45,2],[91,9,93,10],[93,17,93,18],[93,11,93,12],[92,11,92,14],[92,15,92,20],[128,13,128,16],[120,4,120,18],[10,5,10,14],[11,5,11,8],[42,5,42,14],[78,10,78,11],[43,9,43,14],[44,5,44,6],[194,6,195,6],[194,2,195,4],[180,4,181,4],[180,7,180,10],[148,19,148,20],[156,4,156,5],[231,20,232,20],[230,22,230,23],[231,22,232,22],[231,23,232,23],[230,20,230,21],[231,24,232,24],[231,25,232,25],[76,2,79,5],[78,12,78,13],[106,3,107,3],[78,16,78,17],[78,8,78,9],[101,2,101,8],[106,2,107,2],[231,21,232,21],[181,13,181,14],[180,15,180,18],[230,24,230,25],[180,2,182,3],[230,2,231,5],[230,7,230,8],[230,9,230,10],[181,7,181,8],[180,5,181,6],[192,3,192,17],[218,3,218,17],[202,3,202,17],[199,13,199,14],[195,9,195,10],[205,15,205,16],[205,9,205,10],[197,11,197,12],[196,11,196,12],[205,13,205,14],[197,17,197,18],[196,17,196,18],[198,17,198,18],[198,15,198,16],[198,11,198,12],[204,7,204,10],[40,3,40,14],[43,5,43,8],[77,12,77,17],[44,11,44,12],[44,9,44,10],[44,13,44,14],[76,8,76,17],[42,3,44,4],[266,16,266,18],[195,17,195,18],[129,15,129,16],[181,15,181,16],[129,17,129,18],[129,13,129,14],[205,11,205,12],[181,17,181,18],[231,7,232,7],[228,3,228,18],[181,9,181,10],[180,11,180,14],[181,11,181,12],[128,7,129,8],[145,3,145,18],[162,4,162,5],[11,19,11,24],[12,5,12,6],[11,9,11,14],[12,23,12,24],[11,15,11,18],[12,7,12,8],[12,13,12,14],[12,19,12,20],[12,21,12,22],[12,15,12,16],[12,11,12,12],[12,9,12,10],[176,11,176,12],[171,3,171,12],[77,18,77,21],[128,9,128,12],[148,9,148,10],[76,18,76,27],[78,18,78,19],[78,24,78,25],[78,20,78,21],[78,22,78,23],[77,22,77,27],[129,19,129,20],[78,26,78,27],[175,11,175,12],[173,11,174,12],[148,11,148,12],[148,13,148,14],[148,15,148,16],[148,17,148,18],[147,7,148,8],[106,4,106,18],[129,9,129,10],[129,11,129,12],[89,3,89,20],[1,2,1,18],[77,8,77,11],[76,6,78,7],[10,2,13,2],[2,2,2,18],[197,7,197,8],[197,9,197,10],[196,15,196,16],[194,11,194,14],[194,7,194,10],[196,7,196,8],[195,11,195,12],[195,13,195,14],[196,9,196,10],[196,13,196,14],[197,15,197,16],[195,15,195,16],[197,13,197,14],[91,2,94,8],[113,2,114,2],[120,3,121,3],[120,2,121,2],[113,3,114,3],[113,4,113,18],[10,15,10,24],[194,15,194,18],[286,5,287,6],[286,15,286,18],[287,7,287,8],[287,17,287,18],[10,3,12,4],[12,17,12,18],[286,11,286,14],[91,11,91,20],[44,7,44,8],[78,14,78,15],[273,7,273,8],[93,15,93,16],[273,15,273,16],[273,11,273,12],[230,14,231,18],[230,11,230,12],[231,8,232,8],[231,9,232,9],[231,10,232,10],[287,15,287,16],[231,11,232,11],[199,9,199,10],[198,7,198,8],[199,11,199,12],[199,15,199,16],[221,17,221,18],[198,9,198,10],[231,12,232,12],[201,2,201,12],[204,5,205,6],[204,15,204,18],[221,15,221,16],[220,7,220,10],[221,9,221,10],[204,2,206,4],[205,7,205,8],[220,15,220,18],[205,17,205,18],[199,17,199,18],[277,2,277,3],[276,2,276,3],[272,5,273,6],[272,2,274,3],[272,7,272,10],[280,2,280,3],[287,13,287,14],[221,11,221,12],[198,13,198,14],[286,7,286,10],[199,7,199,8],[225,2,225,3],[224,2,224,3],[220,2,222,3],[220,5,221,6],[220,11,220,14],[221,13,221,14],[204,11,204,14],[214,3,214,4],[272,4,273,4],[286,2,288,4],[273,13,273,14],[272,11,272,14],[221,7,221,8],[296,3,296,18],[270,3,270,17],[284,3,284,17],[287,11,287,12],[299,6,299,8],[298,9,298,13],[293,2,293,3],[290,2,290,3],[287,9,287,10],[272,15,272,18],[273,17,273,18],[298,14,298,18],[298,3,300,3],[299,4,299,5],[299,16,299,18],[299,14,299,15],[299,9,299,10],[299,11,299,13],[298,2,300,2],[298,4,298,8],[281,2,281,3],[273,9,273,10],[279,2,279,3],[278,2,278,3]]}
[]
[null,null,"CENSO EDUCATIVO 2023"]
[null,null,"MATRÍCULA, DOCENTES Y RECURSOS"]
[]
[]
[]
[null,null,"200. MATRÍCULA Y SECCIONES"]
[]
[null,null,201,"MATRÍCULA DE JÓVENES Y ADULTOS DEL (LOS) PERÍODO(S) PROMOCIONAL(ES) CORRESPONDIENTES A LA FECHA DE REPORTE DEL CEBA Y PERIFÉRICOS, POR CICLO, GRADO Y SEXO, SEGÚN EDAD"]
[]
[null,null,"Edad en años cumplidos al 31-03-2023","TOTAL",null,"CEBA (Referencial)",null,null,null,null,null,null,null,null,null,"PERIFÉRICO"]
[null,null,null,null,null,"Inicial",null,null,null,"Intermedio",null,null,null,null,null,"Inicial",null,null,null,"Intermedio"]
[null,null,null,null,null,"1º",null,"2º",null,"1º",null,"2º",null,"3º",null,"1º",null,"2º",null,"1º",null,"2º",null,"3º"]
[null,null,null,"H","M","H","M","H","M","H","M","H","M","H","M","H","M","H","M","H","M","H","M","H","M"]
["00",null,"TOTAL",{"$f":"F15+H15+J15+L15+N15+P15+R15+T15+V15+X15","v":0},{"$f":"G15+I15+K15+M15+O15+Q15+S15+U15+W15+Y15","v":0},{"$f":"SUM(F16:F38)","v":0},0,0,0,0,0,0,0,0,0,0,0,0,0,0,0,0,0,0,0]
["14",null,"14 y menos",{"$f":"F16+H16+J16+L16+N16+P16+R16+T16+V16+X16","v":0},0]
["15",null,15,0,0]
["16",null,16,0,0]
["17",null,17,0,0]
["18",null,18,0,0]
["19",null,19,0,0]
["20",null,20,0,0]
["21",null,21,0,0]
["22",null,22,0,0]
["23",null,23,0,0]
["24",null,24,0,0]
["25",null,"25-29",0,0]
["30",null,"30-34",0,0]
["35",null,"35-39",0,0]
["40",null,"40-44",0,0]
["45",null,"45-49",0,0]
["50",null,"50-54",0,0]
["55",null,"55-59",0,0]
["60",null,"60-64",0,0]
["65",null,"65-69",0,0]
["70",null,"70-74",0,0]
["75",null,"75-79",0,0]
["80",null,"80 y más",0,0]
[null,null,"*Nota: Incluya a los estudiantes con algún tipo de Necesidad Educativa Especial (NEE)."]
[]
[null,null,202,"MATRÍCULA DE JÓVENES Y ADULTOS DEL (LOS) PERÍODO(S) PROMOCIONAL(ES) CORRESPONDIENTES A LA FECHA DE REPORTE DE LOS CÍRCULOS DE APRENDIZAJE, POR CICLO, GRADO Y SEXO, SEGÚN EDAD."]
[]
[null,null,"Edad en años cumplidos al 31-03-2023","TOTAL",null,"CÍRCULOS DE APRENDIZAJE"]
[null,null,null,null,null,"Inicial",null,null,null,"Intermedio"]
[null,null,null,null,null,"1º",null,"2º",null,"1º",null,"2º",null,"3º"]
[null,null,null,"H","M","H","M","H","M","H","M","H","M","H","M"]
["00",null,"TOTAL",{"$f":"F47+H47+J47+L47+N47","v":0},0,{"$f":"SUM(F48:F70)","v":0},{"$f":"SUM(G48:G70)","v":0},{"$f":"SUM(H48:H70)","v":0},0,0,0,0,0,0,0]
["14",null,"14 y menos",0,0]
["15",null,15,0,0]
["16",null,16,{"$f":"F50+H50+J50+L50+N50","v":0},{"$f":"G50+I50+K50+M50+O50","v":0}]
["17",null,17,0,0]
["18",null,18,0,0]
["19",null,19,0,0]
["20",null,20,0,0]
["21",null,21,0,0]
["22",null,22,0,0]
["23",null,23,0,0]
["24",null,24,0,0]
["25",null,"25-29",0,0]
["30",null,"30-34",0,0]
["35",null,"35-39",0,0]
["40",null,"40-44",0,0]
["45",null,"45-49",0,0]
["50",null,"50-54",0,0]
["55",null,"55-59",0,0]
["60",null,"60-64",0,0]
["65",null,"65-69",0,0]
["70",null,"70-74",0,0]
["75",null,"75-79",0,0]
["80",null,"80 y más",0,0]
[null,null,"1/ Los estudiantes son atendidos por facilitadores en alfabetización a cargo de la Dirección de Educación Básica Alternativa "]
[null,null,"Según RSG N° 063-2015-MINEDU"]
[null,null,"Nota: Incluya a los alumnos con algún tipo de necesidad educativa especial (NEE)."]
[]
[null,null,203,"MATRÍCULA DE JÓVENES Y ADULTOS DEL (LOS) PERÍODO(S) PROMOCIONAL(ES) CORRESPONDIENTE A LA FECHA DE REPORTE DE LOS CEBA Y PERIFÉRICOS, POR CICLO, GRADO Y SEXO, SEGÚN SITUACIÓN AL MATRICULARSE"]
[]
[null,null,"SITUACIÓN AL MATRICULARSE",null,null,null,"TOTAL",null,"CEBA (Referencial)",null,null,null,null,null,null,null,null,null,"PERIFÉRICO"]
[null,null,null,null,null,null,null,null,"Inicial",null,null,null,"Intermedio",null,null,null,null,null,"Inicial",null,null,null,"Intermedio"]
[null,null,null,null,null,null,null,null,"1º",null,"2º",null,"1º",null,"2º",null,"3º",null,"1º",null,"2º",null,"1º",null,"2º",null,"3º"]
[null,null,null,null,null,null,"H","M","H","M","H","M","H","M","H","M","H","M","H","M","H","M","H","M","H","M","H","M"]
["00",null,"TOTAL",null,null,null,{"$f":"I81+K81+M81+O81+Q81+S81+U81+W81+Y81+AA81","v":0},0,{"$f":"SUM(I82:I87)","v":0},{"$f":"SUM(J82:J87)","v":0},{"$f":"SUM(K82:K87)","v":0},0,0,0,0,0,0,{"$f":"SUM(R82:R87)","v":0},0,0,0,0,0,0,0,0,0,0]
["01",null,"INGRESANTES ",null,null,null,0,0]
["02",null,"PROMOVIDOS del mismo CEBA",null,null,null,0,0]
["03",null,"PROMOVIDOS de otro CEBA",null,null,null,{"$f":"I84+K84+M84+O84+Q84+S84+U84+W84+Y84+AA84","v":0},{"$f":"J84+L84+N84+P84+R84+T84+V84+X84+Z84+AB84","v":0}]
["04",null,"PERMANECE EN EL GRADO EN EL MISMO CEBA",null,null,null,0,0]
["05",null,"PERMANECE EN EL GRADO PROVENIENTE DE OTRO",null,null,null,0,0]
["06",null,"REENTRANTES",null,null,null,0,0]
[null,null,"Nota: Los totales de esta tabla deben ser iguales a los de la tabla 201."]
[]
[null,null,204,"MATRÍCULA DE JÓVENES Y ADULTOS DEL (LOS) PERÍODO(S) PROMOCIONAL(ES) CORRESPONDIENTE A LA FECHA DE REPORTE DE LOS CÍRCULOS DE APRENDIZAJE, POR CICLO, GRADO Y SEXO, SEGÚN SITUACIÓN AL MATRICULARSE"]
[]
[null,null,"SITUACIÓN AL MATRICULARSE",null,null,null,null,null,null,"TOTAL",null,"CÍRCULO DE APRENDIZAJE"]
[null,null,null,null,null,null,null,null,null,null,null,"Inicial",null,null,null,"Intermedio"]
[null,null,null,null,null,null,null,null,null,null,null,"1º",null,"2º",null,"1º",null,"2º",null,"3º"]
[null,null,null,null,null,null,null,null,null,"H","M","H","M","H","M","H","M","H","M","H","M"]
["00",null,"TOTAL",null,null,null,null,null,null,{"$f":"L96+N96+P96+R96+T96","v":0},0,{"$f":"SUM(L97:L102)","v":0},0,0,0,0,0,0,0,0,0]
["01",null,"INGRESANTES (Cursan por primera vez el 1º grado en el ciclo de la EBA)",null,null,null,null,null,null,0,0]
["02",null,"PROMOVIDOS del mismo Círculo de Aprendizaje",null,null,null,null,null,null,0,0]
["03",null,"PROMOVIDOS de otro CEBA (Aprobaron el periodo anterior en otro CEBA)",null,null,null,null,null,null,{"$f":"L99+N99+P99+R99+T99","v":0},{"$f":"M99+O99+Q99+S99+U99","v":0}]
["04",null,"PERMANECE EN EL GRADO EN EL MISMO Círculo de Aprendizaje (Repetidor)",null,null,null,null,null,null,0,0]
["05",null,"PERMANECE EN EL GRADO PROVENIENTE DE OTRO CEBA (Repetidor)",null,null,null,null,null,null,0,0]
["06",null,"REENTRANTES (Dejaron de estudiar más de un periodo)",null,null,null,null,null,null,0,0]
[null,null,"Nota: Los totales de esta tabla deben ser iguales a los de la tabla 202."]
[]
[null,null,205,"NÚMERO DE INGRESANTES EN EL CICLO INICIAL E INTERMEDIO DEL (LOS) PERÍODOS PROMOCIONAL(ES) CORRESPONDIENTE A LA FECHA DE REPORTE DEL CEBA (REFERENCIAL), POR EDAD, SEGÚN SEXO"]
[]
[null,null,"SEXO","TOTAL","EDAD EN AÑOS CUMPLIDOS"]
[null,null,null,null,"14 y menos",15,16,17,18,19,20,21,22,23,24,"25 - 29","30 - 34","35 - 39","40\ny más"]
["01",null," Hombre",{"$f":"SUM(E109:S109)","v":0}]
["02",null," Mujer",{"$f":"SUM(E110:S110)","v":0}]
[]
[null,null,206,"NÚMERO DE INGRESANTES EN EL CICLO INICIAL E INTERMEDIO DEL (LOS) PERÍODOS PROMOCIONAL(ES) CORRESPONDIENTE A LA FECHA DE REPORTE DE LOS PERIFÉRICOS, POR EDAD, SEGÚN SEXO"]
[]
[null,null,"SEXO","TOTAL","EDAD EN AÑOS CUMPLIDOS"]
[null,null,null,null,"14 y menos",15,16,17,18,19,20,21,22,23,24,"25 - 29","30 - 34","35 - 39","40\ny más"]
["01",null," Hombre",{"$f":"SUM(E116:S116)","v":0}]
["02",null," Mujer",{"$f":"SUM(E117:S117)","v":0}]
[]
[null,null,207,"NÚMERO DE INGRESANTES EN EL CICLO INICIAL E INTERMEDIO DEL (LOS) PERÍODOS PROMOCIONAL(ES) CORRESPONDIENTE A LA FECHA DE REPORTE DE LOS CÍRCULOS DE APRENDIZAJE, POR EDAD, SEGÚN SEXO"]
[]
[null,null,"SEXO","TOTAL","EDAD EN AÑOS CUMPLIDOS"]
[null,null,null,null,"14 y menos",15,16,17,18,19,20,21,22,23,24,"25 - 29","30 - 34","35 - 39","40\ny más"]
["01",null," Hombre",{"$f":"SUM(E123:S123)","v":0}]
["02",null," Mujer",{"$f":"SUM(E124:S124)","v":0}]
[]
[null,null,208,"MATRÍCULA DE JÓVENES Y ADULTOS DEL LOS PERÍODO(S) PROMOCIONAL(ES) CORRESPONDIENTES A LA FECHA DE REPORTE DE LOS CEBA, PERIFÉRICOS Y CÍRCULOS DE APRENDIZAJE POR FORMA DE ATENCIÓN Y SEXO, SEGÚN TIPO DISCAPACIDAD"]
[null,null,null,null,null,null,null,null,null,{"$f":"F15+H15","v":0},{"$f":"G15+I15","v":0},{"$f":"J15+L15+N15","v":0},{"$f":"K15+M15+O15","v":0},{"$f":"P15+R15","v":0},{"$f":"Q15+S15","v":0},{"$f":"T15+V15+X15","v":0},{"$f":"U15+W15+Y15","v":0},{"$f":"F47+H47","v":0},{"$f":"G47+I47","v":0},{"$f":"J47+L47+N47","v":0},{"$f":"K47+M47+O47","v":0}]
[]
[null,null,"TIPO DE DISCAPACIDAD",null,null,null,"¿Detectó  está discapa- cidad?","TOTAL",null,"CEBA (Referencial)",null,null,null,"PERIFÉRICO",null,null,null,"CÍRCULO DE APRENDIZAJE"]
[null,null,null,null,null,null,null,null,null,"Inicial",null,"Intermedio",null,"Inicial",null,"Intermedio",null,"Inicial",null,"Intermedio"]
[null,null,null,null,null,{"$f":"COUNTIF(G133:G144,\"SI\") + COUNTIF(G133:G144,\"NO\")","v":0},null,"H","M","H","M","H","M","H","M","H","M","H","M","H","M"]
["00",null,"TOTAL",null,null,null,"SN",{"$f":"J132+L132+N132+P132+R132+T132","v":0},{"$f":"K132+M132+O132+Q132+S132+U132","v":0},{"$f":"SUM(J133:J144)","v":0},0,0,0,0,0,0,0,0,0,0,0]
["01",null,"Discapacidad Intelectual - Leve",null,null,null,null,{"$f":"J133+L133+N133+P133+R133+T133","v":0},0]
["02",null,"Discapacidad Intelectual - Moderada",null,null,null,null,0,0]
["03",null,"Discapacidad Auditiva - Hipoacusia",null,null,null,null,0,0]
["04",null,"Discapacidad Auditiva - Sordera",null,null,null,null,0,0]
["05",null,"Discapacidad Visual - Baja Visión",null,null,null,null,0,0]
["06",null,"Discapacidad Visual - Ceguera",null,null,null,null,0,0]
["07",null,"Discapacidad Física o Motora",null,null,null,null,0,0]
["08",null,"TEA - Requiere de apoyo (Nivel 1)",null,null,null,null,0,0]
["09",null,"TEA - Requiere de apoyo notable  (Nivel 2)",null,null,null,null,0,0]
["10",null,"TEA - Requiere de apoyo muy notable  (Nivel 3)",null,null,null,null,0,0]
["11",null,"Sordoceguera",null,null,null,null,0,0]
["12",null,"Otra discapacidad",null,null,null,null,0,0]
[null,null,null,null,null,null,{"$f":"COUNTIF(G133:G144,\"SI\")","v":0}]
[null,null,209,"MATRÍCULA TOTAL POR GRADO DE ESTUDIO Y SEXO, SEGÚN OTRAS CONDICIONES DETECTADAS"]
[]
[null,null,"TIPO DE DISCAPACIDAD",null,null,null,"¿Detectó  está discapa- cidad?","TOTAL",null,"CEBA (Referencial)",null,null,null,"PERIFÉRICO",null,null,null,"CÍRCULO DE APRENDIZAJE"]
[null,null,null,null,null,null,null,null,null,"Inicial",null,"Intermedio",null,"Inicial",null,"Intermedio",null,"Inicial",null,"Intermedio"]
[null,null,null,null,null,{"$f":"COUNTIF(G152:G170,\"SI\") + COUNTIF(G152:G170,\"NO\")","v":0},null,"H","M","H","M","H","M","H","M","H","M","H","M","H","M"]
["00",null,"TOTAL",null,null,null,"SN",{"$f":"J151+L151+N151+P151+R151+T151","v":0},0,{"$f":"SUM(J152:J170)","v":0},0,0,0,0,0,0,0,0,0,0,0]
["01",null,"Retraso global del desarrollo",null,null,null,null,0,0]
["02",null,"Trastorno por Déficit de Atención - TDAH",null,null,null,null,0,0]
["03",null,"TEA - Dislexia",null,null,null,null,{"$f":"J154+L154+N154+P154+R154+T154","v":0},{"$f":"K154+M154+O154+Q154+S154+U154","v":0}]
["04",null,"TEA - Discalculia",null,null,null,null,0,0]
["05",null,"TEA - Disgrafia",null,null,null,null,0,0]
["06",null,"TEA - Otros",null,null,null,null,0,0]
["07",null,"Esquizofrenia (E)",null,null,null,null,0,0]
["08",null,"Depresión (D)",null,null,null,null,0,0]
["09",null,"Ansiedad (A)",null,null,null,null,0,0]
["10",null,"Trastornos de personalidad",null,null,null,null,0,0]
["11",null,"Otros de la salud mental, socioemocional o com…",null,null,null,null,0,0]
["12",null,"Enfermedades Raras",null,null,null,null,0,0]
["13",null,"Talla Baja",null,null,null,null,0,0]
["14",null,"Menos de 15 días de hospitalización",null,null,null,null,0,0]
["15",null,"De 15 a 30 días de hospitalización",null,null,null,null,0,0]
["16",null,"Más de 30 días de hospitalización",null,null,null,null,0,0]
["17",null,"Talento",null,null,null,null,0,0]
["18",null,"Superdotación",null,null,null,null,0,0]
["19",null,"Otras condiciones relacionadas",null,null,null,null,{"$f":"J170+L170+N170+P170+R170+T170","v":0},0]
[null,null,null,null,null,null,{"$f":"COUNTIF(G152:G170,\"SI\")","v":0}]
[null,null,210,"PARA LOS CASOS DETECTADOS DE ESTUDIANTES CON OTRO TIPO DE NEE O ENFERMEDAD, INDIQUE ¿CUÁL FUE SU SITUACIÓN AL MATRICULARSE EN EL PRESENTE AÑO 2023?"]
[]
[null,null,"SITUACIÓN AL MATRICULARSE",null,null,null,null,null,null,null,null,"N° de estudiantes detectado"]
[]
["00",null,"Número de estudiantes con otro tipo de NEE o enfermedad que desertaron o se retiraron"]
["01",null,"Número de estudiantes con otro tipo de NEE o enfermedad que promovieron de grado"]
["02"]
[null,null,211,"MATRÍCULA DE JÓVENES Y ADULTOS DEL (LOS) PERÍODO(S) PROMOCIONAL(ES) CORRESPONDIENTES A LA FECHA DE REPORTE DE LOS CEBA, PERIFÉRICOS Y CÍRCULOS DE APRENDIZAJE, POR CICLO Y SEXO, SEGÚN TENENCIA DE HIJOS"]
[]
[null,null,"NÚMERO DE HIJOS (AS)",null,null,"TOTAL",null,"CEBA (Referencial)",null,null,null,"PERIFÉRICO",null,null,null,"CÍRCULO DE APRENDIZAJE"]
[null,null,null,null,null,null,null,"Inicial",null,"Intermedio",null,"Inicial",null,"Intermedio",null,"Inicial",null,"Intermedio"]
[null,null,null,null,null,"H","M","H","M","H","M","H","M","H","M","H","M","H","M"]
["00",null,"TOTAL",null,null,{"$f":"H184+J184+L184+N184+P184+R184","v":0},{"$f":"I184+K184+M184+O184+Q184+S184","v":0},{"$f":"SUM(H185:H190)","v":0},{"$f":"SUM(I185:I190)","v":0},{"$f":"SUM(J185:J190)","v":0},0,0,0,0,0,0,0,0,0]
["01",null,0,null,null,{"$f":"H185+J185+L185+N185+P185+R185","v":0},{"$f":"I185+K185+M185+O185+Q185+S185","v":0}]
["02",null,1,null,null,0,0]
["03",null,2,null,null,0,0]
["04",null,3,null,null,0,0]
["05",null,4,null,null,0,0]
["06",null,"5 y más",null,null,0,0]
[null,null,"Nota: Los totales por sexo de esta tabla deben ser iguales a los totales por sexo de la tabla 201 + 202"]
[]
[null,null,212,"MATRÍCULA DE JÓVENES Y ADULTOS DEL (LOS) PERÍODO(S) PROMOCIONAL(ES) CORRESPONDIENTES A LA FECHA DE REPORTE DE LOS CEBA, PERIFÉRICOS Y CÍRCULOS DE APRENDIZAJE, POR CICLO, SEGÚN NÚMERO DE EMBARAZOS"]
[]
[null,null,"NÚMERO DE EMBARAZOS",null,null,null,"TOTAL","CEBA (Referencial)",null,null,null,"PERIFÉRICO",null,null,null,"CÍRCULO DE APRENDIZAJE"]
[null,null,null,null,null,null,null,"Inicial",null,"Intermedio",null,"Inicial",null,"Intermedio",null,"Inicial",null,"Intermedio"]
["00",null,"TOTAL",null,null,null,{"$f":"SUM(H197:S197)","v":0},{"$f":"SUM(H198:I200)","v":0},null,{"$f":"SUM(J198:K200)","v":0},null,{"$f":"SUM(L198:M200)","v":0},null,{"$f":"SUM(N198:O200)","v":0},null,{"$f":"SUM(P198:Q200)","v":0},null,{"$f":"SUM(R198:S200)","v":0}]
["01",null,"Primer embarazo",null,null,null,{"$f":"SUM(H198:S198)","v":0}]
["02",null,"Segundo embarazo o más",null,null,null,{"$f":"SUM(H199:S199)","v":0}]
["03",null,"Ninguno",null,null,null,{"$f":"SUM(H200:S200)","v":0}]
[null,null,"Nota: Los totales por sexo de esta tabla deben ser iguales a los totales por sexo de la tabla 201 + 202 (sólo mujeres)"]
[null,null,"    "]
[null,null,213,"MATRÍCULA DE JÓVENES Y ADULTOS, DEL (LOS) PERÍODO(S) PROMOCIONAL(ES) CORRESPONDIENTES A LA FECHA DE REPORTE DE LOS CEBA, PERIFÉRICOS Y CÍRCULOS DE APRENDIZAJE, POR CICLO Y SEXO, SEGÚN TIPO DE OCUPACIÓN"]
[]
[null,null,"TIPO DE OCUPACIÓN",null,null,"TOTAL",null,"CEBA (Referencial)",null,null,null,"PERIFÉRICO",null,null,null,"CÍRCULO DE APRENDIZAJE"]
[null,null,null,null,null,null,null,"Inicial",null,"Intermedio",null,"Inicial",null,"Intermedio",null,"Inicial",null,"Intermedio"]
[null,null,null,null,null,"H","M","H","M","H","M","H","M","H","M","H","M","H","M"]
["00",null,"TOTAL",null,null,{"$f":"H208+J208+L208+N208+P208+R208","v":0},{"$f":"I208+K208+M208+O208+Q208+S208","v":0},{"$f":"SUM(H209:H216)","v":0},{"$f":"SUM(I209:I216)","v":0},0,0,0,0,0,0,0,0,0,0]
["01",null,"Empleado (a)",null,null,0,0]
["02",null,"Obrero (a)",null,null,0,0]
["03",null,"Ambulante",null,null,0,0]
["04",null,"Trabajador (a) Independiente",null,null,0,0]
["05",null,"Trabajador (a) del Hogar",null,null,0,0]
["06",null,"Trabajo Familiar",null,null,0,0]
["07",null,"Otro","mago",null,0,0]
["08",null,"Solo estudia",null,null,0,0]
[null,null,"Nota: Los totales por sexo de esta tabla deben ser iguales a los totales por sexo de la tabla 201 + 202"]
[]
[null,null,214,"MATRÍCULA DE JÓVENES Y ADULTOS DEL (LOS) PERÍODO(S) PROMOCIONAL(ES) CORRESPONDIENTES A LA FECHA DE REPORTE DE LOS CEBA, PERIFÉRICOS Y CÍRCULOS DE APRENDIZAJE, POR CICLO Y SEXO, SEGÚN MIEMBROS DEL HOGAR"]
[]
[null,null,"TIPO DEL MIEMBRO EN EL HOGAR",null,null,"TOTAL",null,"CEBA (Referencial)",null,null,null,"PERIFÉRICO",null,null,null,"CÍRCULO DE APRENDIZAJE"]
[null,null,null,null,null,null,null,"Inicial",null,"Intermedio",null,"Inicial",null,"Intermedio",null,"Inicial",null,"Intermedio"]
[null,null,null,null,null,"H","M","H","M","H","M","H","M","H","M","H","M","H","M"]
["00",null,"TOTAL",null,null,{"$f":"H224+J224+L224+N224+P224+R224","v":0},0,{"$f":"SUM(H225:H226)","v":0},{"$f":"SUM(I225:I226)","v":0},0,0,0,0,0,0,0,0,0,0]
["01",null,"Jefe(a) del hogar",null,null,0,0]
["02",null,"No es jefe(a) del hogar",null,null,0,0]
[null,null,"Nota: Los totales por sexo de esta tabla deben ser iguales a los totales por sexo de la tabla 201 + 202"]
[]
[null,null,215,"MATRÍCULA DE JÓVENES Y ADULTOS DEL (LOS) PERÍODO(S) PROMOCIONAL(ES) CORRESPONDIENTES A LA FECHA DE REPORTE DE LOS CEBA, PERIFÉRICOS Y CÍRCULOS DE APRENDIZAJE, POR CICLO Y SEXO, SEGÚN LENGUA MATERNA"]
[]
[null,null,"LENGUA",null,null,null,null,"CEBA",null,"PERIFÉRICO",null,"CÍRCULO",null,null,"LENGUA",null,null,null,null,null,"CEBA",null,"PERIFÉRICO",null,"CÍRCULO"]
[null,null,null,null,null,null,"TOTAL","Inicial","Inter- medio","Inicial","Inter- medio","Inicial","Inter- medio",null,null,null,null,null,null,"TOTAL","Inicial","Inter- medio","Inicial","Inter- medio","Inicial","Inter- medio"]
[null,null,"Código           Denominación",null,null,null,null,null,null,null,null,null,null,null,"Código           Denominación"]
[null,null,"0000","TOTAL",null,null,{"$f":"SUM(H234:M234)","v":0},{"$f":"SUM(H235:H268,U234:U267)","v":0},0,0,0,0,0,null,"3200","Omagua",null,null,null,{"$f":"SUM(U234:Z234)","v":0}]
[null,null,"0100","Castellano",null,null,{"$f":"SUM(H235:M235)","v":0},null,null,null,null,null,null,null,"3310","Quechua amazónico (Kichwa)",null,null,null,{"$f":"SUM(U235:Z235)","v":0}]
[null,null,"LENGUAS ORIGINARIAS DEL PERÚ",null,null,null,null,null,null,null,null,null,null,null,"3321","Quechua central (Ancash)",null,null,null,{"$f":"SUM(U236:Z236)","v":0}]
[null,null,"0200","Achuar",null,null,{"$f":"SUM(H237:M237)","v":0},null,null,null,null,null,null,null,"3322","Quechua central (Huánuco)",null,null,null,{"$f":"SUM(U237:Z237)","v":0}]
[null,null,"0300","Aimara",null,null,{"$f":"SUM(H238:M238)","v":0},null,null,null,null,null,null,null,"3323","Quechua central (Wanka)",null,null,null,0]
[null,null,"0400","Amahuaca",null,null,{"$f":"SUM(H239:M239)","v":0},null,null,null,null,null,null,null,"3324","Quechua central (Pasco)",null,null,null,0]
[null,null,"0500","Arabela",null,null,0,null,null,null,null,null,null,null,"3331","Quechua norteño (Cajamarca)",null,null,null,0]
[null,null,"0600","Ashaninka",null,null,0,null,null,null,null,null,null,null,"3332","Quechua norteño (Inkawasi Kañaris)",null,null,null,0]
[null,null,"0610","Asheninka",null,null,0,null,null,null,null,null,null,null,"3341","Quechua sureño (Chanka)",null,null,null,0]
[null,null,"0700","Awajún",null,null,0,null,null,null,null,null,null,null,"3342","Quechua sureño (Collao)",null,null,null,0]
[null,null,"0800","Bora",null,null,0,null,null,null,null,null,null,null,"3400","Resigaro",null,null,null,0]
[null,null,"0900","Kapanawa",null,null,0,null,null,null,null,null,null,null,"3500","Secoya",null,null,null,0]
[null,null,"1000","Cashinahua",null,null,0,null,null,null,null,null,null,null,"3600","Sharanahua",null,null,null,0]
[null,null,"1100","Kawki",null,null,0,null,null,null,null,null,null,null,"3700","Shawi",null,null,null,0]
[null,null,"1200","Chamikuro",null,null,0,null,null,null,null,null,null,null,"3800","Shipibo-Konibo",null,null,null,0]
[null,null,"1300","Ese eja",null,null,0,null,null,null,null,null,null,null,"3900","Shiwilu",null,null,null,0]
[null,null,"1400","Harakbut",null,null,0,null,null,null,null,null,null,null,"4000","Taushiro",null,null,null,0]
[null,null,"1500","Iñapari",null,null,0,null,null,null,null,null,null,null,"4100","Ticuna",null,null,null,0]
[null,null,"1600","Ikitu",null,null,0,null,null,null,null,null,null,null,"4200","Urarina",null,null,null,0]
[null,null,"1700","Iskonawa",null,null,0,null,null,null,null,null,null,null,"4300","Wampis",null,null,null,0]
[null,null,"1800","Jaqaru",null,null,0,null,null,null,null,null,null,null,"4400","Yagua",null,null,null,0]
[null,null,"1900","Kakataibo",null,null,0,null,null,null,null,null,null,null,"4500","Yaminahua",null,null,null,0]
[null,null,"2000","Kakinte",null,null,0,null,null,null,null,null,null,null,"4600","Yanesha",null,null,null,0]
[null,null,"2110","Kandozi-chapra (chapra)",null,null,0,null,null,null,null,null,null,null,"4700","Yine",null,null,null,0]
[null,null,"2120","Kandozi-chapra (kandozi)",null,null,0,null,null,null,null,null,null,null,"4800","Nahua",null,null,null,0]
[null,null,"2200","Kukama kukamiria",null,null,0,null,null,null,null,null,null,null,"LENGUA EXTRANJERA"]
[null,null,"2300","Madija",null,null,0,null,null,null,null,null,null,null,"5100","Alemán",null,null,null,0]
[null,null,"2400","Maijiki",null,null,0,null,null,null,null,null,null,null,"5200","Inglés",null,null,null,0]
[null,null,"2500","Matsés",null,null,0,null,null,null,null,null,null,null,"5300","Italiano",null,null,null,0]
[null,null,"2600","Matsigenka",null,null,0,null,null,null,null,null,null,null,"5400","Japonés",null,null,null,0]
[null,null,"2700","Muniche",null,null,0,null,null,null,null,null,null,null,"5500","Portugués",null,null,null,0]
[null,null,"2800","Murui-muinani",null,null,0,null,null,null,null,null,null,null,"5600","Ruso",null,null,null,0]
[null,null,"2900","Matsigenka-montetokunirira",null,null,0,null,null,null,null,null,null,null,"5700","Francés",null,null,null,0]
[null,null,"3000","Nomatsigenga",null,null,{"$f":"SUM(H267:M267)","v":0},null,null,null,null,null,null,null,"5800","Otra",null,null,null,{"$f":"SUM(U267:Z267)","v":0}]
[null,null,"3100","Ocaina",null,null,{"$f":"SUM(H268:M268)","v":0}]
[null,null,"Nota: Los totales por sexo de esta tabla deben ser iguales a los totales por sexo de la tabla 201 + 202"]
[]
[null,null,216,"MATRÍCULA DE JÓVENES Y ADULTOS DEL (LOS) PERÍODO(S) PROMOCIONAL(ES) CORRESPONDIENTES A LA FECHA DE REPORTE DE LOS CEBA, PERIFÉRICOS Y CÍRCULOS DE APRENDIZAJE, POR CICLO Y SEXO, SEGÚN ESTADO CIVIL"]
[]
[null,null,"ESTADO CIVIL",null,null,"TOTAL",null,"CEBA (Referencial)",null,null,null,"PERIFÉRICO",null,null,null,"CÍRCULO DE APRENDIZAJE"]
[null,null,null,null,null,null,null,"Inicial",null,"Intermedio",null,"Inicial",null,"Intermedio",null,"Inicial",null,"Intermedio"]
[null,null,null,null,null,"H","M","H","M","H","M","H","M","H","M","H","M","H","M"]
["00",null,"TOTAL",null,null,{"$f":"H276+J276+L276+N276+P276+R276","v":0},0,{"$f":"SUM(H277:H282)","v":0},{"$f":"SUM(I277:I282)","v":0},{"$f":"SUM(J277:J282)","v":0},0,0,0,0,0,{"$f":"SUM(P277:P282)","v":0},0,0,0]
["01",null,"Soltero(a)",null,null,0,0]
["02",null,"Casado(a)",null,null,0,0]
["03",null,"Conviviente",null,null,0,0]
["04",null,"Viudo(a)",null,null,0,0]
["05",null,"Divorciado(a)",null,null,0,0]
["06",null,"Separado(a)",null,null,0,0]
[null,null,"Nota: Los totales de esta tabla deben ser iguales a los totales de la tabla 201 + 202."]
[]
[null,null,217,"MATRÍCULA DE JÓVENES Y ADULTOS DEL (LOS) PERÍODO(S) PROMOCIONAL(ES) CORRESPONDIENTES A LA FECHA DEL REPORTE DE LOS CEBA, PERIFÉRICOS Y CÍRCULOS DE APRENDIZAJE, POR CICLO Y SEXO, SEGÚN TIPO DE PROGRAMA DE REPARACIÓN EN EDUCACIÓN (Ley 28592)"]
[]
[null,null,"TIPO DE PROGRAMA DE REPARACIÓN EN EDUCACIÓN",null,null,"TOTAL",null,"CEBA (Referencial)",null,null,null,"PERIFÉRICO",null,null,null,"CÍRCULO DE APRENDIZAJE"]
[null,null,null,null,null,null,null,"Inicial",null,"Intermedio",null,"Inicial",null,"Intermedio",null,"Inicial",null,"Intermedio"]
[null,null,null,null,null,"H","M","H","M","H","M","H","M","H","M","H","M","H","M"]
["00",null,"TOTAL",null,null,{"$f":"H290+J290+L290+N290+P290+R290","v":0},0,{"$f":"SUM(H291:H294)","v":0},0,0,0,0,0,0,0,0,0,0,0]
["01",null,"RUV",null,null,0,0]
["02",null,"REBRED",null,null,{"$f":"H292+J292+L292+N292+P292+R292","v":0},{"$f":"I292+K292+M292+O292+Q292+S292","v":0}]
["03",null,"Otros Programas del Estado",null,null,{"$f":"H293+J293+L293+N293+P293+R293","v":0},{"$f":"I293+K293+M293+O293+Q293+S293","v":0}]
["04",null,"Estudiantes no beneficiados",null,null,0,0]
[null,null,"Nota: Los totales de esta tabla deben ser iguales a los totales de la tabla 201 + 202."]
[]
[null,null,218,"SECCIONES DEL (LOS) PERÍODO(S) PROMOCIONAL(ES) CORRESPONDIENTES A LA FECHA DE REPORTE DE LOS CEBA, PERIFÉRICOS Y CÍRCULOS DE APRENDIZAJE, POR CICLO Y GRADO, SEGÚN TURNO"]
[]
[null,null,"TURNO","TOTAL","CEBA (Referencial)",null,null,null,null,"PERIFÉRICO",null,null,null,null,"CÍRCULO DE APRENDIZAJE"]
[null,null,null,null,"Inicial",null,"Intermedio",null,null,"Inicial",null,"Intermedio",null,null,"Inicial",null,"Intermedio"]
[null,null,null,null,"1º","2º","1º","2º","3º","1º","2º","1º","2º","3º","1º","2º","1º","2º","3º"]
["00",null,"TOTAL",{"$f":"SUM(E302:S302)","v":0},{"$f":"SUM(E303:E305)","v":0},{"$f":"SUM(F303:F305)","v":0},{"$f":"SUM(G303:G305)","v":0},0,0,0,0,0,0,0,0,0,0,0,0]
["01",null,"Mañana",{"$f":"SUM(E303:S303)","v":0}]
["02",null,"Tarde",{"$f":"SUM(E304:S304)","v":0}]
["03",null,"Noche",{"$f":"SUM(E305:S305)","v":0}]
[null,null,"Sólo registre el número de secciones que tenga, por grado de estudio, según turno."]

{"sheet":"C300","index":4,"n_rows":198,"n_cols":81,"rows_kept":198,"cut":false,"hidden":false,"merged":[[15,41,17,41],[15,40,17,40],[15,23,17,23],[15,27,17,27],[15,38,17,38],[15,24,17,24],[15,34,17,34],[7,11,7,24],[1,11,1,24],[2,11,2,24],[14,15,14,16],[11,42,11,43],[16,59,17,59],[16,60,17,60],[16,61,17,61],[14,71,14,73],[14,67,14,70],[15,71,15,73],[15,66,17,66],[16,71,17,71],[16,68,17,68],[16,69,17,69],[16,67,17,67],[16,63,17,63],[16,62,17,62],[16,72,16,73],[15,67,15,70],[16,70,17,70],[15,13,17,13],[15,14,17,14],[15,65,16,65],[15,74,16,74],[16,57,17,57],[15,19,17,19],[15,21,17,21],[15,25,17,25],[15,26,17,26],[15,30,17,30],[15,36,17,36],[15,33,17,33],[15,31,17,31],[15,32,17,32],[16,64,17,64],[16,58,17,58],[15,75,16,75],[15,76,16,76],[15,77,17,77],[15,78,17,78],[15,11,17,11],[15,15,15,16],[15,17,17,17],[15,18,17,18],[15,20,17,20],[15,22,17,22],[15,28,17,28],[15,29,17,29],[15,35,17,35],[15,37,17,37],[15,39,17,39],[15,12,17,12]]}
[]
[null,null,null,null,null,null,null,null,null,null,null,"CENSO EDUCATIVO 2022"]
[null,null,null,null,null,null,null,null,null,null,null,"MATRÍCULA, DOCENTES Y RECURSOS"]
[]
["PERSONAL",{"$f":"O10+V10+X10","v":0}]
[]
["DOCENTES",{"$f":"COUNTIF(R19:R218,\"01: Docente\")","v":0},null,null,null,null,null,null,null,null,null,"300. PERSONAL DOCENTE, AUXILIARES DE EDUCACIÓN Y ADMINISTRATIVOS (Para II.EE. Públicas y Privadas)"]
["AUXILIARES",{"$f":"COUNTIF(R19:R218,\"03: Aux. de Educación\")","v":0},null,null,null,null,null,null,null,null,null,"En esta tabla, REGISTRE a todo el personal docente, auxiliares de educación y personal administrativo que se encuentre laborando en el servicio/nivel educativo durante el periodo\nde reporte del censo educativo. (EXCLUYA al personal que se encuentre haciendo uso de licencia y a los que han sido destacados a otra IE/DRE/UGEL)"]
["ADMINISTRATIVOS",{"$f":"COUNTIF(R19:R218,\"02: Administrativo\")","v":0}]
["DOCENTE DE AULA",{"$f":"COUNTIF(AJ19:AJ218,\"04: (111)-Docente de Aula / por horas\")","v":0},null,null,null,null,null,null,null,null,null,null,null,"TOTAL DOCENTES:  ",null,null,null,"DOCENTES DE AULA: ",null,null,"AUXILIAR DE EDUCACIÓN:  ",null,"ADMINISTRATIVOS:  "]
["DOCENTES CON SECCIÓN",{"$f":"COUNTIF(AP19:AP148,\"SI\")","v":0}]
[null,{"$f":"B7+B8+B9","v":0},null,null,null,null,null,null,null,null,null,"A continuación registre a todo el personal que desempeñe funciones docentes en el Servicio/Nivel educativo: Directivos con o sin aula a cargo, docentes de aula, jefes o jerárquicos, especiales (ed. física, computación, etc.)"]
["LICENCIA",null,null,null,null,null,null,null,null,null,null,"Documentos fuente: Legajo de personal y CAP de la institución educativa."]
[null,null,3,4,5,6,7,8,{"$f":"H14+1","v":9},10]
["DOC. LENGUA ORIGINARIA",{"$f":"SUM(J19:J148)","v":0},null,null,null,null,null,null,null,null,null,301,301.10000000000002,301.2,301.3,302,null,303,304,305,306,307,308,309,310,311,312,313,314,315,316,317,318,319,320,321,322,323,324,325,326,327,"328. Ciclo y grado atendido",null,null,null,null,null,null,null,null,null,null,null,null,null,null,329,null,null,null,null,null,null,null,330,330.1,331,null,null,null,332,null,null,333,333.1,334.1,334.2,334.3]
["GESTION PRIVADA",{"$f":"IF(OR('C100'!O35=\"X\",'C100'!X35=\"X\"),1,IF('C100'!AG35=\"X\",3,\"\"))","v":""},null,null,null,null,null,null,null,null,null,"Nº","Apellido Paterno","Apellido Materno","Nombres","Documento de Identidad",null,"Tipo de\nPersonal","Edad","Sexo","Lengua\nmaterna","¿Domina una\nlengua\noriginaria?\n\nSí - No","Lengua originaria\nque domina","Fuente de\nfinanciamiento","Condición Laboral","Modalidad de Contrato","Máximo nivel\neducativo alcanzado","Especialidad Pedagógica\nque ha estudiado","¿En qué tipo de\ninstitución obtuvo\nsu formación pedagógica?","Segunda especialidad","Estudios de Postgrado\nen Pedagogía","Tiempo de Servicio\n(en años)","Años de Experiencia Laboral","Años de\nexperiencia\nlaboral en\neste servicio/nivel\neducativo","Escala\nMagisterial","Función o cargo","Situación en cargo\ndirectivo","Licencia \no\nDestaque","Jornada Laboral según\nNombramiento\no Contrato","Forma de atención","Centro donde labora","¿Tiene secciones a cargo?","CEBA (Referencial)",null,null,null,null,"Periférico",null,null,null,null,"Círculo de Aprendizaje",null,null,null,null,"Área(s) curricular(es) a cargo. Marque con una “X”, según corresponda",null,null,null,null,null,null,null,"¿Presenta alguna discapa- cidad?","Solo si respondió Sí en la pregunta\n330.1 ¿Cúal es el tipo de discapacidad?","Conocimiento de Ingles",null,null,null,"Certificación de Inglés",null,null,"¿ Atiende a estudiantes con NEE asociadas a discapacidad ?","¿Ha recibido asistencia y orientación para la atención educativa de estudiantes con discapacidad del equipo SAEV?","¿Recibió asesoría pedagógica en el marco de refuerzo escolar?","Solo si respondió Sí en la pregunta 334.1 ¿cuántas veces desde el inicio del año lectivo, recibió asesoría pedagógica en el marco de refuerzo escolar?","Solo si respondió Sí en la pregunta 334.1 Sobre qué temas ha recibido asistencia técnica"]
[null,null,null,null,null,null,null,null,null,null,null,null,null,null,null,302.10000000000002,302.2,null,null,null,null,null,null,null,null,null,null,null,null,null,null,null,null,null,null,null,null,null,null,null,null,null,"Inicial",null,"Intermedio",null,null,"Inicial",null,"Intermedio",null,null,"Inicial",null,"Intermedio",null,null,"Mate\nmática","Comuni cación","Inglés","Desarrollo Personal y Ciudadano","Ciencia, Tecnología y Salud","Castellano como segunda Lengua","Educación para el Trabajo","Educación Religiosa",null,null,"No Sabe","Habla","Lee","Escribe","No Tiene","Si Tiene"]
["302.1 Tipo de documento de Identidad","314. Tipo de inst. donde estudio","Corr","Escala","Gest","Secc","Fun cion","Duplex","Fmt","Leng",null,null,null,null,null,"Tipo","Número",null,null,null,null,null,null,null,null,null,null,null,null,null,null,null,null,null,null,null,null,null,null,null,null,null,"1º","2º","1º","2º","3º","1º","2º","1º","2º","3º","1º","2º","1º","2º","3º",null,null,null,null,null,null,null,null,"Sí / No",null,null,null,null,null,null,"Nacional","Interna cional","Sí / No","Sí / No","Sí / No"]
["01: DNI.","01: IESP (Público)",1,{"$f":"IF(AND(LEFT(R19,2)=\"01\",LEFT(Y19,2)=\"01\",LEFT(X19,2)=\"01\",E19=1),1,0)","v":0},{"$f":"$B$16","v":""},{"$f":"COUNTIF(AQ19:BE19,\"X\")","v":0},{"$f":"IF(R19<>\"\",VALUE(LEFT(R19,2)),0)","v":0},{"$f":"IF(Q19<>\"\",COUNTIF($Q$20:$Q$319,Q19),0)","v":0},{"$f":"IF(L19<>\"\",1,0)","v":0},{"$f":"IF(AND(R19=\"01: Docente\",V19=\"SI\"),1,0)","v":0},null,{"$f":"IF(C19<=$B$5,C19,\"\")","v":""},null,null,null,null,null,null,null,null,null,null,null,null,null,null,null,null,null,null,null,null,null,null,null,null,null,null,null,null,null,null,null,null,null,null,null,null,null,null,null,null,null,null,null,null,null,null,null,null,null,null,null,null,null,null,null,null,null,null,null,null,null,null,null,null,null,null,null,null,{"$f":"IF($AA19<>\"\",IF(OR(LEFT($AA19,2)=\"01\",LEFT($AA19,2)=\"02\",LEFT($AA19,2)=\"04\",LEFT($AA19,2)=\"05\"),1,2),\"\")","v":""}]
["02: Carnet Ext.","02: IESP (Privado)",2,0,{"$f":"$B$16","v":""},{"$f":"COUNTIF(AQ20:BE20,\"X\")","v":0},{"$f":"IF(R20<>\"\",VALUE(LEFT(R20,2)),0)","v":0},{"$f":"IF(Q20<>\"\",COUNTIF($Q$20:$Q$319,Q20),0)","v":0},0,{"$f":"IF(AND(R20=\"01: Docente\",V20=\"SI\"),1,0)","v":0},null,{"$f":"IF(C20<=$B$5,C20,\"\")","v":""},null,null,null,null,null,null,null,null,null,null,null,null,null,null,null,null,null,null,null,null,null,null,null,null,null,null,null,null,null,null,null,null,null,null,null,null,null,null,null,null,null,null,null,null,null,null,null,null,null,null,null,null,null,null,null,null,null,null,null,null,null,null,null,null,null,null,null,"",{"$f":"IF($AA20<>\"\",IF(OR(LEFT($AA20,2)=\"01\",LEFT($AA20,2)=\"02\",LEFT($AA20,2)=\"04\",LEFT($AA20,2)=\"05\"),1,2),\"\")","v":""}]
["03: Pasaporte","03: Universidad Privada",3,0,"",0,0,0,0,0,null,{"$f":"IF(C21<=$B$5,C21,\"\")","v":""},null,null,null,null,null,null,null,null,null,null,null,null,null,null,null,null,null,null,null,null,null,null,null,null,null,null,null,null,null,null,null,null,null,null,null,null,null,null,null,null,null,null,null,null,null,null,null,null,null,null,null,null,null,null,null,null,null,null,null,null,null,null,null,null,null,null,null,"",""]
[null,"04: Universidad Pública",4,0,"",0,0,0,0,0,null,"",null,null,null,null,null,null,null,null,null,null,null,null,null,null,null,null,null,null,null,null,null,null,null,null,null,null,null,null,null,null,null,null,null,null,null,null,null,null,null,null,null,null,null,null,null,null,null,null,null,null,null,null,null,null,null,null,null,null,null,null,null,null,null,null,null,null,null,"",""]
["303. Tipo de Personal",null,5,0,"",0,0,0,0,0,null,"",null,null,null,null,null,null,null,null,null,null,null,null,null,null,null,null,null,null,null,null,null,null,null,null,null,null,null,null,null,null,null,null,null,null,null,null,null,null,null,null,null,null,null,null,null,null,null,null,null,null,null,null,null,null,null,null,null,null,null,null,null,null,null,null,null,null,null,"",""]
["01: Docente","315. Segunda Especialidad",6,0,"",0,0,0,0,0,null,"",null,null,null,null,null,null,null,null,null,null,null,null,null,null,null,null,null,null,null,null,null,null,null,null,null,null,null,null,null,null,null,null,null,null,null,null,null,null,null,null,null,null,null,null,null,null,null,null,null,null,null,null,null,null,null,null,null,null,null,null,null,null,null,null,null,null,null,"",""]
["02: Administrativo","Utilice las especialidades de la tabla de códigos 313.",7,0,"",0,0,0,0,0,null,"",null,null,null,null,null,null,null,null,null,null,null,null,null,null,null,null,null,null,null,null,null,null,null,null,null,null,null,null,null,null,null,null,null,null,null,null,null,null,null,null,null,null,null,null,null,null,null,null,null,null,null,null,null,null,null,null,null,null,null,null,null,null,null,null,null,null,null,"",""]
["03: Aux. de Educación",null,8,0,"",0,0,0,0,0,null,"",null,null,null,null,null,null,null,null,null,null,null,null,null,null,null,null,null,null,null,null,null,null,null,null,null,null,null,null,null,null,null,null,null,null,null,null,null,null,null,null,null,null,null,null,null,null,null,null,null,null,null,null,null,null,null,null,null,null,null,null,null,null,null,null,null,null,null,"",""]
[null,"316. Estudios de Postgrado en Pedagogía",9,0,"",0,0,0,0,0,null,"",null,null,null,null,null,null,null,null,null,null,null,null,null,null,null,null,null,null,null,null,null,null,null,null,null,null,null,null,null,null,null,null,null,null,null,null,null,null,null,null,null,null,null,null,null,null,null,null,null,null,null,null,null,null,null,null,null,null,null,null,null,null,null,null,null,null,null,"",""]
["305. Sexo","Estudios de Maestría y doctorado",10,0,"",0,0,0,0,0,null,"",null,null,null,null,null,null,null,null,null,null,null,null,null,null,null,null,null,null,null,null,null,null,null,null,null,null,null,null,null,null,null,null,null,null,null,null,null,null,null,null,null,null,null,null,null,null,null,null,null,null,null,null,null,null,null,null,null,null,null,null,null,null,null,null,null,null,null,"",""]
["Hombre","01: Maestria concluida con grado",11,0,"",0,0,0,0,0,null,"",null,null,null,null,null,null,null,null,null,null,null,null,null,null,null,null,null,null,null,null,null,null,null,null,null,null,null,null,null,null,null,null,null,null,null,null,null,null,null,null,null,null,null,null,null,null,null,null,null,null,null,null,null,null,null,null,null,null,null,null,null,null,null,null,null,null,null,"",""]
["Mujer","02: Maestria concluida sin grado",12,0,"",0,0,0,0,0,null,"",null,null,null,null,null,null,null,null,null,null,null,null,null,null,null,null,null,null,null,null,null,null,null,null,null,null,null,null,null,null,null,null,null,null,null,null,null,null,null,null,null,null,null,null,null,null,null,null,null,null,null,null,null,null,null,null,null,null,null,null,null,null,null,null,null,null,null,"",""]
[null,"03: Maestria en proceso",13,0,"",0,0,0,0,0,null,"",null,null,null,null,null,null,null,null,null,null,null,null,null,null,null,null,null,null,null,null,null,null,null,null,null,null,null,null,null,null,null,null,null,null,null,null,null,null,null,null,null,null,null,null,null,null,null,null,null,null,null,null,null,null,null,null,null,null,null,null,null,null,null,null,null,null,null,"",""]
["306. Lengua Materna","04: Doctorado concluido con grado",14,0,"",0,0,0,0,0,null,"",null,null,null,null,null,null,null,null,null,null,null,null,null,null,null,null,null,null,null,null,null,null,null,null,null,null,null,null,null,null,null,null,null,null,null,null,null,null,null,null,null,null,null,null,null,null,null,null,null,null,null,null,null,null,null,null,null,null,null,null,null,null,null,null,null,null,null,"",""]
["0100: Castellano","05: Doctorado concluido sin grado",15,0,"",0,0,0,0,0,null,"",null,null,null,null,null,null,null,null,null,null,null,null,null,null,null,null,null,null,null,null,null,null,null,null,null,null,null,null,null,null,null,null,null,null,null,null,null,null,null,null,null,null,null,null,null,null,null,null,null,null,null,null,null,null,null,null,null,null,null,null,null,null,null,null,null,null,null,"",""]
["0200: Achuar","06: Doctorado en proceso",16,0,"",0,0,0,0,0,null,"",null,null,null,null,null,null,null,null,null,null,null,null,null,null,null,null,null,null,null,null,null,null,null,null,null,null,null,null,null,null,null,null,null,null,null,null,null,null,null,null,null,null,null,null,null,null,null,null,null,null,null,null,null,null,null,null,null,null,null,null,null,null,null,null,null,null,null,"",""]
["0300: Aimara","07: Sin Postgrado",17,0,"",0,0,0,0,0,null,"",null,null,null,null,null,null,null,null,null,null,null,null,null,null,null,null,null,null,null,null,null,null,null,null,null,null,null,null,null,null,null,null,null,null,null,null,null,null,null,null,null,null,null,null,null,null,null,null,null,null,null,null,null,null,null,null,null,null,null,null,null,null,null,null,null,null,null,"",""]
["0400: Amahuaca",null,18,0,"",0,0,0,0,0,null,"",null,null,null,null,null,null,null,null,null,null,null,null,null,null,null,null,null,null,null,null,null,null,null,null,null,null,null,null,null,null,null,null,null,null,null,null,null,null,null,null,null,null,null,null,null,null,null,null,null,null,null,null,null,null,null,null,null,null,null,null,null,null,null,null,null,null,null,"",""]
["0500: Arabela",null,19,0,"",0,0,0,0,0,null,"",null,null,null,null,null,null,null,null,null,null,null,null,null,null,null,null,null,null,null,null,null,null,null,null,null,null,null,null,null,null,null,null,null,null,null,null,null,null,null,null,null,null,null,null,null,null,null,null,null,null,null,null,null,null,null,null,null,null,null,null,null,null,null,null,null,null,null,"",""]
["0600: Asháninka","317. Tiempo de Servicio",20,0,"",0,0,0,0,0,null,"",null,null,null,null,null,null,null,null,null,null,null,null,null,null,null,null,null,null,null,null,null,null,null,null,null,null,null,null,null,null,null,null,null,null,null,null,null,null,null,null,null,null,null,null,null,null,null,null,null,null,null,null,null,null,null,null,null,null,null,null,null,null,null,null,null,null,null,"",""]
["0610: Asheninka","Solo personal Nombrado.",21,0,"",0,0,0,0,0,null,"",null,null,null,null,null,null,null,null,null,null,null,null,null,null,null,null,null,null,null,null,null,null,null,null,null,null,null,null,null,null,null,null,null,null,null,null,null,null,null,null,null,null,null,null,null,null,null,null,null,null,null,null,null,null,null,null,null,null,null,null,null,null,null,null,null,null,null,"",""]
["0700: Awajún","Tiempo contado expresado en años desde su fecha de Nombramiento",22,0,"",0,0,0,0,0,null,"",null,null,null,null,null,null,null,null,null,null,null,null,null,null,null,null,null,null,null,null,null,null,null,null,null,null,null,null,null,null,null,null,null,null,null,null,null,null,null,null,null,null,null,null,null,null,null,null,null,null,null,null,null,null,null,null,null,null,null,null,null,null,null,null,null,null,null,"",""]
["0800: Bora",null,23,0,"",0,0,0,0,0,null,"",null,null,null,null,null,null,null,null,null,null,null,null,null,null,null,null,null,null,null,null,null,null,null,null,null,null,null,null,null,null,null,null,null,null,null,null,null,null,null,null,null,null,null,null,null,null,null,null,null,null,null,null,null,null,null,null,null,null,null,null,null,null,null,null,null,null,null,"",""]
["0900: Kapanawa","318. Años de Experiencia Laboral",24,0,"",0,0,0,0,0,null,"",null,null,null,null,null,null,null,null,null,null,null,null,null,null,null,null,null,null,null,null,null,null,null,null,null,null,null,null,null,null,null,null,null,null,null,null,null,null,null,null,null,null,null,null,null,null,null,null,null,null,null,null,null,null,null,null,null,null,null,null,null,null,null,null,null,null,null,"",""]
["1000: Cashinahua","Registre el total de años que tiene como experiencia",25,0,"",0,0,0,0,0,null,"",null,null,null,null,null,null,null,null,null,null,null,null,null,null,null,null,null,null,null,null,null,null,null,null,null,null,null,null,null,null,null,null,null,null,null,null,null,null,null,null,null,null,null,null,null,null,null,null,null,null,null,null,null,null,null,null,null,null,null,null,null,null,null,null,null,null,null,"",""]
["1100: Kawki","en el Tipo de Personal que se está registrando (Tabla 301.)",26,0,"",0,0,0,0,0,null,"",null,null,null,null,null,null,null,null,null,null,null,null,null,null,null,null,null,null,null,null,null,null,null,null,null,null,null,null,null,null,null,null,null,null,null,null,null,null,null,null,null,null,null,null,null,null,null,null,null,null,null,null,null,null,null,null,null,null,null,null,null,null,null,null,null,null,null,"",""]
["1200: Chamikuro",null,27,0,"",0,0,0,0,0,null,"",null,null,null,null,null,null,null,null,null,null,null,null,null,null,null,null,null,null,null,null,null,null,null,null,null,null,null,null,null,null,null,null,null,null,null,null,null,null,null,null,null,null,null,null,null,null,null,null,null,null,null,null,null,null,null,null,null,null,null,null,null,null,null,null,null,null,null,"",""]
["1300: Ese eja","319. Años de experiencia laboral en este servicio/ nivel educativo",28,0,"",0,0,0,0,0,null,"",null,null,null,null,null,null,null,null,null,null,null,null,null,null,null,null,null,null,null,null,null,null,null,null,null,null,null,null,null,null,null,null,null,null,null,null,null,null,null,null,null,null,null,null,null,null,null,null,null,null,null,null,null,null,null,null,null,null,null,null,null,null,null,null,null,null,null,"",""]
["1400: Harakbut","Anote el N° de años de experiencia prestando servicios",29,0,"",0,0,0,0,0,null,"",null,null,null,null,null,null,null,null,null,null,null,null,null,null,null,null,null,null,null,null,null,null,null,null,null,null,null,null,null,null,null,null,null,null,null,null,null,null,null,null,null,null,null,null,null,null,null,null,null,null,null,null,null,null,null,null,null,null,null,null,null,null,null,null,null,null,null,"",""]
["1500: Iñapari","en este servicio/nivel educativo por el tipo de personal",30,0,"",0,0,0,0,0,null,"",null,null,null,null,null,null,null,null,null,null,null,null,null,null,null,null,null,null,null,null,null,null,null,null,null,null,null,null,null,null,null,null,null,null,null,null,null,null,null,null,null,null,null,null,null,null,null,null,null,null,null,null,null,null,null,null,null,null,null,null,null,null,null,null,null,null,null,"",""]
["1600: Ikuitu","que se está registrando (Tabla 301.)",31,0,"",0,0,0,0,0,null,"",null,null,null,null,null,null,null,null,null,null,null,null,null,null,null,null,null,null,null,null,null,null,null,null,null,null,null,null,null,null,null,null,null,null,null,null,null,null,null,null,null,null,null,null,null,null,null,null,null,null,null,null,null,null,null,null,null,null,null,null,null,null,null,null,null,null,null,"",""]
["1700: Iskonawa",null,32,0,"",0,0,0,0,0,null,"",null,null,null,null,null,null,null,null,null,null,null,null,null,null,null,null,null,null,null,null,null,null,null,null,null,null,null,null,null,null,null,null,null,null,null,null,null,null,null,null,null,null,null,null,null,null,null,null,null,null,null,null,null,null,null,null,null,null,null,null,null,null,null,null,null,null,null,"",""]
["1800: Jaqaru","320. Escala Magisterial",33,0,"",0,0,0,0,0,null,"",null,null,null,null,null,null,null,null,null,null,null,null,null,null,null,null,null,null,null,null,null,null,null,null,null,null,null,null,null,null,null,null,null,null,null,null,null,null,null,null,null,null,null,null,null,null,null,null,null,null,null,null,null,null,null,null,null,null,null,null,null,null,null,null,null,null,null,"",""]
["1900: Kakataibo","Complete los datos de Escala Magisterial, según corresponda",34,0,"",0,0,0,0,0,null,"",null,null,null,null,null,null,null,null,null,null,null,null,null,null,null,null,null,null,null,null,null,null,null,null,null,null,null,null,null,null,null,null,null,null,null,null,null,null,null,null,null,null,null,null,null,null,null,null,null,null,null,null,null,null,null,null,null,null,null,null,null,null,null,null,null,null,null,"",""]
["2000: Kakinte (caquinte)","01: Primera",35,0,"",0,0,0,0,0,null,"",null,null,null,null,null,null,null,null,null,null,null,null,null,null,null,null,null,null,null,null,null,null,null,null,null,null,null,null,null,null,null,null,null,null,null,null,null,null,null,null,null,null,null,null,null,null,null,null,null,null,null,null,null,null,null,null,null,null,null,null,null,null,null,null,null,null,null,"",""]
["2110: Kandozi (Chapra)","02: Segunda",36,0,"",0,0,0,0,0,null,"",null,null,null,null,null,null,null,null,null,null,null,null,null,null,null,null,null,null,null,null,null,null,null,null,null,null,null,null,null,null,null,null,null,null,null,null,null,null,null,null,null,null,null,null,null,null,null,null,null,null,null,null,null,null,null,null,null,null,null,null,null,null,null,null,null,null,null,"",""]
["2120: Kandozi (Kandozi)","03: Tercera",37,0,"",0,0,0,0,0,null,"",null,null,null,null,null,null,null,null,null,null,null,null,null,null,null,null,null,null,null,null,null,null,null,null,null,null,null,null,null,null,null,null,null,null,null,null,null,null,null,null,null,null,null,null,null,null,null,null,null,null,null,null,null,null,null,null,null,null,null,null,null,null,null,null,null,null,null,"",""]
["2200: Kukama-kukamiria","04: Cuarta",38,0,"",0,0,0,0,0,null,"",null,null,null,null,null,null,null,null,null,null,null,null,null,null,null,null,null,null,null,null,null,null,null,null,null,null,null,null,null,null,null,null,null,null,null,null,null,null,null,null,null,null,null,null,null,null,null,null,null,null,null,null,null,null,null,null,null,null,null,null,null,null,null,null,null,null,null,"",""]
["2300: Madija (culina)","05: Quinta",39,0,"",0,0,0,0,0,null,"",null,null,null,null,null,null,null,null,null,null,null,null,null,null,null,null,null,null,null,null,null,null,null,null,null,null,null,null,null,null,null,null,null,null,null,null,null,null,null,null,null,null,null,null,null,null,null,null,null,null,null,null,null,null,null,null,null,null,null,null,null,null,null,null,null,null,null,"",""]
["2400: Maijiki","06: Sexta",40,0,"",0,0,0,0,0,null,"",null,null,null,null,null,null,null,null,null,null,null,null,null,null,null,null,null,null,null,null,null,null,null,null,null,null,null,null,null,null,null,null,null,null,null,null,null,null,null,null,null,null,null,null,null,null,null,null,null,null,null,null,null,null,null,null,null,null,null,null,null,null,null,null,null,null,null,"",""]
["2500: Matsés","07: Séptima",41,0,"",0,0,0,0,0,null,"",null,null,null,null,null,null,null,null,null,null,null,null,null,null,null,null,null,null,null,null,null,null,null,null,null,null,null,null,null,null,null,null,null,null,null,null,null,null,null,null,null,null,null,null,null,null,null,null,null,null,null,null,null,null,null,null,null,null,null,null,null,null,null,null,null,null,null,"",""]
["2600: Matsigenka","08: Octava",42,0,"",0,0,0,0,0,null,"",null,null,null,null,null,null,null,null,null,null,null,null,null,null,null,null,null,null,null,null,null,null,null,null,null,null,null,null,null,null,null,null,null,null,null,null,null,null,null,null,null,null,null,null,null,null,null,null,null,null,null,null,null,null,null,null,null,null,null,null,null,null,null,null,null,null,null,"",""]
["2700: Munichi","09: Sin Escala",43,0,"",0,0,0,0,0,null,"",null,null,null,null,null,null,null,null,null,null,null,null,null,null,null,null,null,null,null,null,null,null,null,null,null,null,null,null,null,null,null,null,null,null,null,null,null,null,null,null,null,null,null,null,null,null,null,null,null,null,null,null,null,null,null,null,null,null,null,null,null,null,null,null,null,null,null,"",""]
["2800: Murui-muinani",null,44,0,"",0,0,0,0,0,null,"",null,null,null,null,null,null,null,null,null,null,null,null,null,null,null,null,null,null,null,null,null,null,null,null,null,null,null,null,null,null,null,null,null,null,null,null,null,null,null,null,null,null,null,null,null,null,null,null,null,null,null,null,null,null,null,null,null,null,null,null,null,null,null,null,null,null,null,"",""]
["2900: Matsigenka-montetokunirira","321. Función o Cargo",45,0,"",0,0,0,0,0,null,"",null,null,null,null,null,null,null,null,null,null,null,null,null,null,null,null,null,null,null,null,null,null,null,null,null,null,null,null,null,null,null,null,null,null,null,null,null,null,null,null,null,null,null,null,null,null,null,null,null,null,null,null,null,null,null,null,null,null,null,null,null,null,null,null,null,null,null,"",""]
["3000: Nomatsigenga","(Desempeñado a la fecha de reporte)",46,0,"",0,0,0,0,0,null,"",null,null,null,null,null,null,null,null,null,null,null,null,null,null,null,null,null,null,null,null,null,null,null,null,null,null,null,null,null,null,null,null,null,null,null,null,null,null,null,null,null,null,null,null,null,null,null,null,null,null,null,null,null,null,null,null,null,null,null,null,null,null,null,null,null,null,null,"",""]
["3100: Ocaina","Docentes",47,0,"",0,0,0,0,0,null,"",null,null,null,null,null,null,null,null,null,null,null,null,null,null,null,null,null,null,null,null,null,null,null,null,null,null,null,null,null,null,null,null,null,null,null,null,null,null,null,null,null,null,null,null,null,null,null,null,null,null,null,null,null,null,null,null,null,null,null,null,null,null,null,null,null,null,null,"",""]
["3200: Omagua","01: (102)-Director",48,0,"",0,0,0,0,0,null,"",null,null,null,null,null,null,null,null,null,null,null,null,null,null,null,null,null,null,null,null,null,null,null,null,null,null,null,null,null,null,null,null,null,null,null,null,null,null,null,null,null,null,null,null,null,null,null,null,null,null,null,null,null,null,null,null,null,null,null,null,null,null,null,null,null,null,null,"",""]
["3310: Quechua amazónico (Kichwa)","02: (103)-Sub Director",49,0,"",0,0,0,0,0,null,"",null,null,null,null,null,null,null,null,null,null,null,null,null,null,null,null,null,null,null,null,null,null,null,null,null,null,null,null,null,null,null,null,null,null,null,null,null,null,null,null,null,null,null,null,null,null,null,null,null,null,null,null,null,null,null,null,null,null,null,null,null,null,null,null,null,null,null,"",""]
["3321: Quechua central (Ancash)","03: (106)-Coordinador, Asesor",50,0,"",0,0,0,0,0,null,"",null,null,null,null,null,null,null,null,null,null,null,null,null,null,null,null,null,null,null,null,null,null,null,null,null,null,null,null,null,null,null,null,null,null,null,null,null,null,null,null,null,null,null,null,null,null,null,null,null,null,null,null,null,null,null,null,null,null,null,null,null,null,null,null,null,null,null,"",""]
["3322: Quechua central (Huánuco)","04: (111)-Docente de Aula / por horas",51,0,"",0,0,0,0,0,null,"",null,null,null,null,null,null,null,null,null,null,null,null,null,null,null,null,null,null,null,null,null,null,null,null,null,null,null,null,null,null,null,null,null,null,null,null,null,null,null,null,null,null,null,null,null,null,null,null,null,null,null,null,null,null,null,null,null,null,null,null,null,null,null,null,null,null,null,"",""]
["3323: Quechua central (Wanka)","05: (112)-Docente Especial - Educación Física",52,0,"",0,0,0,0,0,null,"",null,null,null,null,null,null,null,null,null,null,null,null,null,null,null,null,null,null,null,null,null,null,null,null,null,null,null,null,null,null,null,null,null,null,null,null,null,null,null,null,null,null,null,null,null,null,null,null,null,null,null,null,null,null,null,null,null,null,null,null,null,null,null,null,null,null,null,"",""]
["3324: Quechua central (Pasco)","06: (113)-Docente Especial - Computación",53,0,"",0,0,0,0,0,null,"",null,null,null,null,null,null,null,null,null,null,null,null,null,null,null,null,null,null,null,null,null,null,null,null,null,null,null,null,null,null,null,null,null,null,null,null,null,null,null,null,null,null,null,null,null,null,null,null,null,null,null,null,null,null,null,null,null,null,null,null,null,null,null,null,null,null,null,"",""]
["3331: Quechua norteño (Cajamarca)","07: (114)-Docente Especial - Aula de Innovación Pedagógica",54,0,"",0,0,0,0,0,null,"",null,null,null,null,null,null,null,null,null,null,null,null,null,null,null,null,null,null,null,null,null,null,null,null,null,null,null,null,null,null,null,null,null,null,null,null,null,null,null,null,null,null,null,null,null,null,null,null,null,null,null,null,null,null,null,null,null,null,null,null,null,null,null,null,null,null,null,"",""]
["3332: Quechua norteño (Inkawasi Kañaris)","08: (115)-Docente Especial - otro",55,0,"",0,0,0,0,0,null,"",null,null,null,null,null,null,null,null,null,null,null,null,null,null,null,null,null,null,null,null,null,null,null,null,null,null,null,null,null,null,null,null,null,null,null,null,null,null,null,null,null,null,null,null,null,null,null,null,null,null,null,null,null,null,null,null,null,null,null,null,null,null,null,null,null,null,null,"",""]
["3341: Quechua sureño (Chanka)","09: (116)-Docente de Aula con función o cargo directivo",56,0,"",0,0,0,0,0,null,"",null,null,null,null,null,null,null,null,null,null,null,null,null,null,null,null,null,null,null,null,null,null,null,null,null,null,null,null,null,null,null,null,null,null,null,null,null,null,null,null,null,null,null,null,null,null,null,null,null,null,null,null,null,null,null,null,null,null,null,null,null,null,null,null,null,null,null,"",""]
["3342: Quechua sureño (Collao)","10: (138)-Tutor a distancia",57,0,"",0,0,0,0,0,null,"",null,null,null,null,null,null,null,null,null,null,null,null,null,null,null,null,null,null,null,null,null,null,null,null,null,null,null,null,null,null,null,null,null,null,null,null,null,null,null,null,null,null,null,null,null,null,null,null,null,null,null,null,null,null,null,null,null,null,null,null,null,null,null,null,null,null,null,"",""]
["3400: Resígaro","11: (139)-Otro docente",58,0,"",0,0,0,0,0,null,"",null,null,null,null,null,null,null,null,null,null,null,null,null,null,null,null,null,null,null,null,null,null,null,null,null,null,null,null,null,null,null,null,null,null,null,null,null,null,null,null,null,null,null,null,null,null,null,null,null,null,null,null,null,null,null,null,null,null,null,null,null,null,null,null,null,null,null,"",""]
["3500: Secoya",null,59,0,"",0,0,0,0,0,null,"",null,null,null,null,null,null,null,null,null,null,null,null,null,null,null,null,null,null,null,null,null,null,null,null,null,null,null,null,null,null,null,null,null,null,null,null,null,null,null,null,null,null,null,null,null,null,null,null,null,null,null,null,null,null,null,null,null,null,null,null,null,null,null,null,null,null,null,"",""]
["3600: Sharanahua",null,60,0,"",0,0,0,0,0,null,"",null,null,null,null,null,null,null,null,null,null,null,null,null,null,null,null,null,null,null,null,null,null,null,null,null,null,null,null,null,null,null,null,null,null,null,null,null,null,null,null,null,null,null,null,null,null,null,null,null,null,null,null,null,null,null,null,null,null,null,null,null,null,null,null,null,null,null,"",""]
["3700: Shawi",null,61,0,"",0,0,0,0,0,null,"",null,null,null,null,null,null,null,null,null,null,null,null,null,null,null,null,null,null,null,null,null,null,null,null,null,null,null,null,null,null,null,null,null,null,null,null,null,null,null,null,null,null,null,null,null,null,null,null,null,null,null,null,null,null,null,null,null,null,null,null,null,null,null,null,null,null,null,"",""]
["3800: Shipibo-Konibo",null,62,0,"",0,0,0,0,0,null,"",null,null,null,null,null,null,null,null,null,null,null,null,null,null,null,null,null,null,null,null,null,null,null,null,null,null,null,null,null,null,null,null,null,null,null,null,null,null,null,null,null,null,null,null,null,null,null,null,null,null,null,null,null,null,null,null,null,null,null,null,null,null,null,null,null,null,null,"",""]
["3900: Shiwilu",null,63,0,"",0,0,0,0,0,null,"",null,null,null,null,null,null,null,null,null,null,null,null,null,null,null,null,null,null,null,null,null,null,null,null,null,null,null,null,null,null,null,null,null,null,null,null,null,null,null,null,null,null,null,null,null,null,null,null,null,null,null,null,null,null,null,null,null,null,null,null,null,null,null,null,null,null,null,"",""]
["4000: Taushiro",null,64,0,"",0,0,0,0,0,null,"",null,null,null,null,null,null,null,null,null,null,null,null,null,null,null,null,null,null,null,null,null,null,null,null,null,null,null,null,null,null,null,null,null,null,null,null,null,null,null,null,null,null,null,null,null,null,null,null,null,null,null,null,null,null,null,null,null,null,null,null,null,null,null,null,null,null,null,"",""]
["4100: Ticuna",null,65,{"$f":"IF(AND(LEFT(R83,2)=\"01\",LEFT(Y83,2)=\"01\",LEFT(X83,2)=\"01\",E83=1),1,0)","v":0},"",0,0,0,{"$f":"IF(L83<>\"\",1,0)","v":0},0,null,"",null,null,null,null,null,null,null,null,null,null,null,null,null,null,null,null,null,null,null,null,null,null,null,null,null,null,null,null,null,null,null,null,null,null,null,null,null,null,null,null,null,null,null,null,null,null,null,null,null,null,null,null,null,null,null,null,null,null,null,null,null,null,null,null,null,null,null,"",""]
["4200: Urarina",null,66,0,{"$f":"$B$16","v":""},{"$f":"COUNTIF(AQ84:BE84,\"X\")","v":0},{"$f":"IF(R84<>\"\",VALUE(LEFT(R84,2)),0)","v":0},{"$f":"IF(Q84<>\"\",COUNTIF($Q$20:$Q$319,Q84),0)","v":0},0,{"$f":"IF(AND(R84=\"01: Docente\",V84=\"SI\"),1,0)","v":0},null,"",null,null,null,null,null,null,null,null,null,null,null,null,null,null,null,null,null,null,null,null,null,null,null,null,null,null,null,null,null,null,null,null,null,null,null,null,null,null,null,null,null,null,null,null,null,null,null,null,null,null,null,null,null,null,null,null,null,null,null,null,null,null,null,null,null,null,null,"",{"$f":"IF($AA84<>\"\",IF(OR(LEFT($AA84,2)=\"01\",LEFT($AA84,2)=\"02\",LEFT($AA84,2)=\"04\",LEFT($AA84,2)=\"05\"),1,2),\"\")","v":""}]
["4300: Wampis",null,67,0,"",0,0,0,0,0,null,{"$f":"IF(C85<=$B$5,C85,\"\")","v":""},null,null,null,null,null,null,null,null,null,null,null,null,null,null,null,null,null,null,null,null,null,null,null,null,null,null,null,null,null,null,null,null,null,null,null,null,null,null,null,null,null,null,null,null,null,null,null,null,null,null,null,null,null,null,null,null,null,null,null,null,null,null,null,null,null,null,null,"",""]
["4400: Yagua","Administrativos",68,0,"",0,0,0,0,0,null,"",null,null,null,null,null,null,null,null,null,null,null,null,null,null,null,null,null,null,null,null,null,null,null,null,null,null,null,null,null,null,null,null,null,null,null,null,null,null,null,null,null,null,null,null,null,null,null,null,null,null,null,null,null,null,null,null,null,null,null,null,null,null,null,null,null,null,null,"",""]
["4500: Yaminahua","12: (501)-Psicólogo",69,0,"",0,0,0,0,0,null,"",null,null,null,null,null,null,null,null,null,null,null,null,null,null,null,null,null,null,null,null,null,null,null,null,null,null,null,null,null,null,null,null,null,null,null,null,null,null,null,null,null,null,null,null,null,null,null,null,null,null,null,null,null,null,null,null,null,null,null,null,null,null,null,null,null,null,null,"",""]
["4600: Yanesha","13: (502)-Trabajo social / Servicio social",70,0,"",0,0,0,0,0,null,"",null,null,null,null,null,null,null,null,null,null,null,null,null,null,null,null,null,null,null,null,null,null,null,null,null,null,null,null,null,null,null,null,null,null,null,null,null,null,null,null,null,null,null,null,null,null,null,null,null,null,null,null,null,null,null,null,null,null,null,null,null,null,null,null,null,null,null,"",""]
["4700: Yine","14: (503)-Personal de Salud",71,0,"",0,0,0,0,0,null,"",null,null,null,null,null,null,null,null,null,null,null,null,null,null,null,null,null,null,null,null,null,null,null,null,null,null,null,null,null,null,null,null,null,null,null,null,null,null,null,null,null,null,null,null,null,null,null,null,null,null,null,null,null,null,null,null,null,null,null,null,null,null,null,null,null,null,null,"",""]
["4800: Nahua","15: (504)-Administrador o contador",72,0,"",0,0,0,0,0,null,"",null,null,null,null,null,null,null,null,null,null,null,null,null,null,null,null,null,null,null,null,null,null,null,null,null,null,null,null,null,null,null,null,null,null,null,null,null,null,null,null,null,null,null,null,null,null,null,null,null,null,null,null,null,null,null,null,null,null,null,null,null,null,null,null,null,null,null,"",""]
["5100: Alemán","16: (537)-Guía intérprete de sordoceguera",73,0,"",0,0,0,0,0,null,"",null,null,null,null,null,null,null,null,null,null,null,null,null,null,null,null,null,null,null,null,null,null,null,null,null,null,null,null,null,null,null,null,null,null,null,null,null,null,null,null,null,null,null,null,null,null,null,null,null,null,null,null,null,null,null,null,null,null,null,null,null,null,null,null,null,null,null,"",""]
["5200: Inglés","17: (538)-Intérprete de Lengua de Señas Peruana",74,0,"",0,0,0,0,0,null,"",null,null,null,null,null,null,null,null,null,null,null,null,null,null,null,null,null,null,null,null,null,null,null,null,null,null,null,null,null,null,null,null,null,null,null,null,null,null,null,null,null,null,null,null,null,null,null,null,null,null,null,null,null,null,null,null,null,null,null,null,null,null,null,null,null,null,null,"",""]
["5300: Italiano","18: (539)-Modelo Lingüístico",75,0,"",0,0,0,0,0,null,"",null,null,null,null,null,null,null,null,null,null,null,null,null,null,null,null,null,null,null,null,null,null,null,null,null,null,null,null,null,null,null,null,null,null,null,null,null,null,null,null,null,null,null,null,null,null,null,null,null,null,null,null,null,null,null,null,null,null,null,null,null,null,null,null,null,null,null,"",""]
["5400: Japonés","19: (505)-Otro personal profesional",76,0,"",0,0,0,0,0,null,"",null,null,null,null,null,null,null,null,null,null,null,null,null,null,null,null,null,null,null,null,null,null,null,null,null,null,null,null,null,null,null,null,null,null,null,null,null,null,null,null,null,null,null,null,null,null,null,null,null,null,null,null,null,null,null,null,null,null,null,null,null,null,null,null,null,null,null,"",""]
["5500: Portugués","20: (506)-Auxiliar de Biblioteca",77,0,"",0,0,0,0,0,null,"",null,null,null,null,null,null,null,null,null,null,null,null,null,null,null,null,null,null,null,null,null,null,null,null,null,null,null,null,null,null,null,null,null,null,null,null,null,null,null,null,null,null,null,null,null,null,null,null,null,null,null,null,null,null,null,null,null,null,null,null,null,null,null,null,null,null,null,"",""]
["5600: Ruso","21: (507)-Auxiliar de Laboratorios",78,0,"",0,0,0,0,0,null,"",null,null,null,null,null,null,null,null,null,null,null,null,null,null,null,null,null,null,null,null,null,null,null,null,null,null,null,null,null,null,null,null,null,null,null,null,null,null,null,null,null,null,null,null,null,null,null,null,null,null,null,null,null,null,null,null,null,null,null,null,null,null,null,null,null,null,null,"",""]
["5700: Francés","22: (508)-Secretaria u Oficinista",79,0,"",0,0,0,0,0,null,"",null,null,null,null,null,null,null,null,null,null,null,null,null,null,null,null,null,null,null,null,null,null,null,null,null,null,null,null,null,null,null,null,null,null,null,null,null,null,null,null,null,null,null,null,null,null,null,null,null,null,null,null,null,null,null,null,null,null,null,null,null,null,null,null,null,null,null,"",""]
["5800: Otra lengua extranjera","23: (510)-Coordinador de Taller",80,0,"",0,0,0,0,0,null,"",null,null,null,null,null,null,null,null,null,null,null,null,null,null,null,null,null,null,null,null,null,null,null,null,null,null,null,null,null,null,null,null,null,null,null,null,null,null,null,null,null,null,null,null,null,null,null,null,null,null,null,null,null,null,null,null,null,null,null,null,null,null,null,null,null,null,null,"",""]
[null,"24: (511)-Asistente Administrativo",81,0,"",0,0,0,0,0,null,"",null,null,null,null,null,null,null,null,null,null,null,null,null,null,null,null,null,null,null,null,null,null,null,null,null,null,null,null,null,null,null,null,null,null,null,null,null,null,null,null,null,null,null,null,null,null,null,null,null,null,null,null,null,null,null,null,null,null,null,null,null,null,null,null,null,null,null,"",""]
["308. Lengua Originaria","25: (512)-Personal de Servicio-mantenimiento",82,0,"",0,0,0,0,0,null,"",null,null,null,null,null,null,null,null,null,null,null,null,null,null,null,null,null,null,null,null,null,null,null,null,null,null,null,null,null,null,null,null,null,null,null,null,null,null,null,null,null,null,null,null,null,null,null,null,null,null,null,null,null,null,null,null,null,null,null,null,null,null,null,null,null,null,null,"",""]
["De: 0200 a 4800","26: (513)-Personal de Servicio-cocina",83,0,"",0,0,0,0,0,null,"",null,null,null,null,null,null,null,null,null,null,null,null,null,null,null,null,null,null,null,null,null,null,null,null,null,null,null,null,null,null,null,null,null,null,null,null,null,null,null,null,null,null,null,null,null,null,null,null,null,null,null,null,null,null,null,null,null,null,null,null,null,null,null,null,null,null,null,"",""]
[null,"27: (514)-Personal de Servicio-limpieza",84,0,"",0,0,0,0,0,null,"",null,null,null,null,null,null,null,null,null,null,null,null,null,null,null,null,null,null,null,null,null,null,null,null,null,null,null,null,null,null,null,null,null,null,null,null,null,null,null,null,null,null,null,null,null,null,null,null,null,null,null,null,null,null,null,null,null,null,null,null,null,null,null,null,null,null,null,"",""]
["309. Fuente de Financiamiento","28: (515)-Personal de Servicio-portero",85,0,"",0,0,0,0,0,null,"",null,null,null,null,null,null,null,null,null,null,null,null,null,null,null,null,null,null,null,null,null,null,null,null,null,null,null,null,null,null,null,null,null,null,null,null,null,null,null,null,null,null,null,null,null,null,null,null,null,null,null,null,null,null,null,null,null,null,null,null,null,null,null,null,null,null,null,"",""]
["01: Sector Educación","29: (516)-Personal de Servicio-vigilante",86,0,"",0,0,0,0,0,null,"",null,null,null,null,null,null,null,null,null,null,null,null,null,null,null,null,null,null,null,null,null,null,null,null,null,null,null,null,null,null,null,null,null,null,null,null,null,null,null,null,null,null,null,null,null,null,null,null,null,null,null,null,null,null,null,null,null,null,null,null,null,null,null,null,null,null,null,"",""]
["02: Otro sector público","30: (517)-Otro personal de servicio",87,0,"",0,0,0,0,0,null,"",null,null,null,null,null,null,null,null,null,null,null,null,null,null,null,null,null,null,null,null,null,null,null,null,null,null,null,null,null,null,null,null,null,null,null,null,null,null,null,null,null,null,null,null,null,null,null,null,null,null,null,null,null,null,null,null,null,null,null,null,null,null,null,null,null,null,null,"",""]
["03: Municipalidad","31: (518)-Otro personal No profesional",88,0,"",0,0,0,0,0,null,"",null,null,null,null,null,null,null,null,null,null,null,null,null,null,null,null,null,null,null,null,null,null,null,null,null,null,null,null,null,null,null,null,null,null,null,null,null,null,null,null,null,null,null,null,null,null,null,null,null,null,null,null,null,null,null,null,null,null,null,null,null,null,null,null,null,null,null,"",""]
["04: Gobierno Regional",null,89,0,"",0,0,0,0,0,null,"",null,null,null,null,null,null,null,null,null,null,null,null,null,null,null,null,null,null,null,null,null,null,null,null,null,null,null,null,null,null,null,null,null,null,null,null,null,null,null,null,null,null,null,null,null,null,null,null,null,null,null,null,null,null,null,null,null,null,null,null,null,null,null,null,null,null,null,"",""]
["05: APAFA",null,90,0,"",0,0,0,0,0,null,"",null,null,null,null,null,null,null,null,null,null,null,null,null,null,null,null,null,null,null,null,null,null,null,null,null,null,null,null,null,null,null,null,null,null,null,null,null,null,null,null,null,null,null,null,null,null,null,null,null,null,null,null,null,null,null,null,null,null,null,null,null,null,null,null,null,null,null,"",""]
["06: Otra fuente Privada",null,91,0,"",0,0,0,0,0,null,"",null,null,null,null,null,null,null,null,null,null,null,null,null,null,null,null,null,null,null,null,null,null,null,null,null,null,null,null,null,null,null,null,null,null,null,null,null,null,null,null,null,null,null,null,null,null,null,null,null,null,null,null,null,null,null,null,null,null,null,null,null,null,null,null,null,null,null,"",""]
[null,null,92,0,"",0,0,0,0,0,null,"",null,null,null,null,null,null,null,null,null,null,null,null,null,null,null,null,null,null,null,null,null,null,null,null,null,null,null,null,null,null,null,null,null,null,null,null,null,null,null,null,null,null,null,null,null,null,null,null,null,null,null,null,null,null,null,null,null,null,null,null,null,null,null,null,null,null,null,"",""]
["310. Condición Laboral",null,93,0,"",0,0,0,0,0,null,"",null,null,null,null,null,null,null,null,null,null,null,null,null,null,null,null,null,null,null,null,null,null,null,null,null,null,null,null,null,null,null,null,null,null,null,null,null,null,null,null,null,null,null,null,null,null,null,null,null,null,null,null,null,null,null,null,null,null,null,null,null,null,null,null,null,null,null,"",""]
["01: Nombrado",null,94,0,"",0,0,0,0,0,null,"",null,null,null,null,null,null,null,null,null,null,null,null,null,null,null,null,null,null,null,null,null,null,null,null,null,null,null,null,null,null,null,null,null,null,null,null,null,null,null,null,null,null,null,null,null,null,null,null,null,null,null,null,null,null,null,null,null,null,null,null,null,null,null,null,null,null,null,"",""]
["02: Contratado",null,95,0,"",0,0,0,0,0,null,"",null,null,null,null,null,null,null,null,null,null,null,null,null,null,null,null,null,null,null,null,null,null,null,null,null,null,null,null,null,null,null,null,null,null,null,null,null,null,null,null,null,null,null,null,null,null,null,null,null,null,null,null,null,null,null,null,null,null,null,null,null,null,null,null,null,null,null,"",""]
["03: No aplica",null,96,0,"",0,0,0,0,0,null,"",null,null,null,null,null,null,null,null,null,null,null,null,null,null,null,null,null,null,null,null,null,null,null,null,null,null,null,null,null,null,null,null,null,null,null,null,null,null,null,null,null,null,null,null,null,null,null,null,null,null,null,null,null,null,null,null,null,null,null,null,null,null,null,null,null,null,null,"",""]
[null,null,97,0,"",0,0,0,0,0,null,"",null,null,null,null,null,null,null,null,null,null,null,null,null,null,null,null,null,null,null,null,null,null,null,null,null,null,null,null,null,null,null,null,null,null,null,null,null,null,null,null,null,null,null,null,null,null,null,null,null,null,null,null,null,null,null,null,null,null,null,null,null,null,null,null,null,null,null,"",""]
["311. Modalidad de Contrato",null,98,0,"",0,0,0,0,0,null,"",null,null,null,null,null,null,null,null,null,null,null,null,null,null,null,null,null,null,null,null,null,null,null,null,null,null,null,null,null,null,null,null,null,null,null,null,null,null,null,null,null,null,null,null,null,null,null,null,null,null,null,null,null,null,null,null,null,null,null,null,null,null,null,null,null,null,null,"",""]
["Contrato Público",null,99,0,"",0,0,0,0,0,null,"",null,null,null,null,null,null,null,null,null,null,null,null,null,null,null,null,null,null,null,null,null,null,null,null,null,null,null,null,null,null,null,null,null,null,null,null,null,null,null,null,null,null,null,null,null,null,null,null,null,null,null,null,null,null,null,null,null,null,null,null,null,null,null,null,null,null,null,"",""]
["01: A plazo fijo D. Leg. 728",null,100,0,"",0,0,0,0,0,null,"",null,null,null,null,null,null,null,null,null,null,null,null,null,null,null,null,null,null,null,null,null,null,null,null,null,null,null,null,null,null,null,null,null,null,null,null,null,null,null,null,null,null,null,null,null,null,null,null,null,null,null,null,null,null,null,null,null,null,null,null,null,null,null,null,null,null,null,"",""]
["02: Locación de Serv. / Honorarios",null,101,0,"",0,0,0,0,0,null,"",null,null,null,null,null,null,null,null,null,null,null,null,null,null,null,null,null,null,null,null,null,null,null,null,null,null,null,null,null,null,null,null,null,null,null,null,null,null,null,null,null,null,null,null,null,null,null,null,null,null,null,null,null,null,null,null,null,null,null,null,null,null,null,null,null,null,null,"",""]
["03: CAS - D. Leg. 1057","99: (999)-Auxiliar de Educación",102,0,"",0,0,0,0,0,null,"",null,null,null,null,null,null,null,null,null,null,null,null,null,null,null,null,null,null,null,null,null,null,null,null,null,null,null,null,null,null,null,null,null,null,null,null,null,null,null,null,null,null,null,null,null,null,null,null,null,null,null,null,null,null,null,null,null,null,null,null,null,null,null,null,null,null,null,"",""]
["04: Contrato D. Leg. 276",null,103,0,"",0,0,0,0,0,null,"",null,null,null,null,null,null,null,null,null,null,null,null,null,null,null,null,null,null,null,null,null,null,null,null,null,null,null,null,null,null,null,null,null,null,null,null,null,null,null,null,null,null,null,null,null,null,null,null,null,null,null,null,null,null,null,null,null,null,null,null,null,null,null,null,null,null,null,"",""]
["05: Contrato Ley 30328","322. Situación en el Cargo Directivo",104,0,"",0,0,0,0,0,null,"",null,null,null,null,null,null,null,null,null,null,null,null,null,null,null,null,null,null,null,null,null,null,null,null,null,null,null,null,null,null,null,null,null,null,null,null,null,null,null,null,null,null,null,null,null,null,null,null,null,null,null,null,null,null,null,null,null,null,null,null,null,null,null,null,null,null,null,"",""]
["06: Otra modalidad","01: Titular ratificado eval.2014",105,0,"",0,0,0,0,0,null,"",null,null,null,null,null,null,null,null,null,null,null,null,null,null,null,null,null,null,null,null,null,null,null,null,null,null,null,null,null,null,null,null,null,null,null,null,null,null,null,null,null,null,null,null,null,null,null,null,null,null,null,null,null,null,null,null,null,null,null,null,null,null,null,null,null,null,null,"",""]
["Contrato Privado","02: Titular designado eval. 2015, 2016 y 2018",106,0,"",0,0,0,0,0,null,"",null,null,null,null,null,null,null,null,null,null,null,null,null,null,null,null,null,null,null,null,null,null,null,null,null,null,null,null,null,null,null,null,null,null,null,null,null,null,null,null,null,null,null,null,null,null,null,null,null,null,null,null,null,null,null,null,null,null,null,null,null,null,null,null,null,null,null,"",""]
["07: A plazo indefinido (Permanente)","03: Titular otro",107,0,"",0,0,0,0,0,null,"",null,null,null,null,null,null,null,null,null,null,null,null,null,null,null,null,null,null,null,null,null,null,null,null,null,null,null,null,null,null,null,null,null,null,null,null,null,null,null,null,null,null,null,null,null,null,null,null,null,null,null,null,null,null,null,null,null,null,null,null,null,null,null,null,null,null,null,"",""]
["08: Plazo fijo (Tiempo determinado)","04: Encargado por función, sin doc. formal",108,0,"",0,0,0,0,0,null,"",null,null,null,null,null,null,null,null,null,null,null,null,null,null,null,null,null,null,null,null,null,null,null,null,null,null,null,null,null,null,null,null,null,null,null,null,null,null,null,null,null,null,null,null,null,null,null,null,null,null,null,null,null,null,null,null,null,null,null,null,null,null,null,null,null,null,null,"",""]
["09: A tiempo parcial (por horas)","05: Encargado",109,0,"",0,0,0,0,0,null,"",null,null,null,null,null,null,null,null,null,null,null,null,null,null,null,null,null,null,null,null,null,null,null,null,null,null,null,null,null,null,null,null,null,null,null,null,null,null,null,null,null,null,null,null,null,null,null,null,null,null,null,null,null,null,null,null,null,null,null,null,null,null,null,null,null,null,null,"",""]
["10: Locación de Serv. / Honorarios",null,110,0,"",0,0,0,0,0,null,"",null,null,null,null,null,null,null,null,null,null,null,null,null,null,null,null,null,null,null,null,null,null,null,null,null,null,null,null,null,null,null,null,null,null,null,null,null,null,null,null,null,null,null,null,null,null,null,null,null,null,null,null,null,null,null,null,null,null,null,null,null,null,null,null,null,null,null,"",""]
["11: Otra modalidad","323. Destaque o Licencia",111,0,"",0,0,0,0,0,null,"",null,null,null,null,null,null,null,null,null,null,null,null,null,null,null,null,null,null,null,null,null,null,null,null,null,null,null,null,null,null,null,null,null,null,null,null,null,null,null,null,null,null,null,null,null,null,null,null,null,null,null,null,null,null,null,null,null,null,null,null,null,null,null,null,null,null,null,"",""]
[null,"01: Cubriendo una licencia",112,0,"",0,0,0,0,0,null,"",null,null,null,null,null,null,null,null,null,null,null,null,null,null,null,null,null,null,null,null,null,null,null,null,null,null,null,null,null,null,null,null,null,null,null,null,null,null,null,null,null,null,null,null,null,null,null,null,null,null,null,null,null,null,null,null,null,null,null,null,null,null,null,null,null,null,null,"",""]
["312. Máximo Nivel Educativo Alcanzado","02: De otra I.E./DRE/UGEL",113,0,"",0,0,0,0,0,null,"",null,null,null,null,null,null,null,null,null,null,null,null,null,null,null,null,null,null,null,null,null,null,null,null,null,null,null,null,null,null,null,null,null,null,null,null,null,null,null,null,null,null,null,null,null,null,null,null,null,null,null,null,null,null,null,null,null,null,null,null,null,null,null,null,null,null,null,"",""]
["01: EP.Concluidos con título","03: No Aplica",114,0,"",0,0,0,0,0,null,"",null,null,null,null,null,null,null,null,null,null,null,null,null,null,null,null,null,null,null,null,null,null,null,null,null,null,null,null,null,null,null,null,null,null,null,null,null,null,null,null,null,null,null,null,null,null,null,null,null,null,null,null,null,null,null,null,null,null,null,null,null,null,null,null,null,null,null,"",""]
["02: EP.Concluidos sin título",null,115,0,"",0,0,0,0,0,null,"",null,null,null,null,null,null,null,null,null,null,null,null,null,null,null,null,null,null,null,null,null,null,null,null,null,null,null,null,null,null,null,null,null,null,null,null,null,null,null,null,null,null,null,null,null,null,null,null,null,null,null,null,null,null,null,null,null,null,null,null,null,null,null,null,null,null,null,"",""]
["03: EP.No concluidos",null,116,0,"",0,0,0,0,0,null,"",null,null,null,null,null,null,null,null,null,null,null,null,null,null,null,null,null,null,null,null,null,null,null,null,null,null,null,null,null,null,null,null,null,null,null,null,null,null,null,null,null,null,null,null,null,null,null,null,null,null,null,null,null,null,null,null,null,null,null,null,null,null,null,null,null,null,null,"",""]
["04: NP.Concluidos con título",null,117,0,"",0,0,0,0,0,null,"",null,null,null,null,null,null,null,null,null,null,null,null,null,null,null,null,null,null,null,null,null,null,null,null,null,null,null,null,null,null,null,null,null,null,null,null,null,null,null,null,null,null,null,null,null,null,null,null,null,null,null,null,null,null,null,null,null,null,null,null,null,null,null,null,null,null,null,"",""]
["05: NP.Concluidos sin título","324. Jornada Laboral (Nombramiento / Contrato)",118,0,"",0,0,0,0,0,null,"",null,null,null,null,null,null,null,null,null,null,null,null,null,null,null,null,null,null,null,null,null,null,null,null,null,null,null,null,null,null,null,null,null,null,null,null,null,null,null,null,null,null,null,null,null,null,null,null,null,null,null,null,null,null,null,null,null,null,null,null,null,null,null,null,null,null,null,"",""]
["06: NP.No concluidos","40: 40 horas",119,0,"",0,0,0,0,0,null,"",null,null,null,null,null,null,null,null,null,null,null,null,null,null,null,null,null,null,null,null,null,null,null,null,null,null,null,null,null,null,null,null,null,null,null,null,null,null,null,null,null,null,null,null,null,null,null,null,null,null,null,null,null,null,null,null,null,null,null,null,null,null,null,null,null,null,null,"",""]
["07: Secundaria","30: 30 horas",120,0,"",0,0,0,0,0,null,"",null,null,null,null,null,null,null,null,null,null,null,null,null,null,null,null,null,null,null,null,null,null,null,null,null,null,null,null,null,null,null,null,null,null,null,null,null,null,null,null,null,null,null,null,null,null,null,null,null,null,null,null,null,null,null,null,null,null,null,null,null,null,null,null,null,null,null,"",""]
["08: Primaria","25: 25 horas",121,0,"",0,0,0,0,0,null,"",null,null,null,null,null,null,null,null,null,null,null,null,null,null,null,null,null,null,null,null,null,null,null,null,null,null,null,null,null,null,null,null,null,null,null,null,null,null,null,null,null,null,null,null,null,null,null,null,null,null,null,null,null,null,null,null,null,null,null,null,null,null,null,null,null,null,null,"",""]
[null,"24: 24 horas",122,0,"",0,0,0,0,0,null,"",null,null,null,null,null,null,null,null,null,null,null,null,null,null,null,null,null,null,null,null,null,null,null,null,null,null,null,null,null,null,null,null,null,null,null,null,null,null,null,null,null,null,null,null,null,null,null,null,null,null,null,null,null,null,null,null,null,null,null,null,null,null,null,null,null,null,null,"",""]
["313. Especialidad del Título","23: Menos 24 horas",123,0,"",0,0,0,0,0,null,"",null,null,null,null,null,null,null,null,null,null,null,null,null,null,null,null,null,null,null,null,null,null,null,null,null,null,null,null,null,null,null,null,null,null,null,null,null,null,null,null,null,null,null,null,null,null,null,null,null,null,null,null,null,null,null,null,null,null,null,null,null,null,null,null,null,null,null,"",""]
["01: Educación Inicial",null,124,0,"",0,0,0,0,0,null,"",null,null,null,null,null,null,null,null,null,null,null,null,null,null,null,null,null,null,null,null,null,null,null,null,null,null,null,null,null,null,null,null,null,null,null,null,null,null,null,null,null,null,null,null,null,null,null,null,null,null,null,null,null,null,null,null,null,null,null,null,null,null,null,null,null,null,null,"",""]
["02: Educación Primaria","SI / NO",125,0,"",0,0,0,0,0,null,"",null,null,null,null,null,null,null,null,null,null,null,null,null,null,null,null,null,null,null,null,null,null,null,null,null,null,null,null,null,null,null,null,null,null,null,null,null,null,null,null,null,null,null,null,null,null,null,null,null,null,null,null,null,null,null,null,null,null,null,null,null,null,null,null,null,null,null,"",""]
["03: E.I. Intercultural Bilingüe","SI",126,0,"",0,0,0,0,0,null,"",null,null,null,null,null,null,null,null,null,null,null,null,null,null,null,null,null,null,null,null,null,null,null,null,null,null,null,null,null,null,null,null,null,null,null,null,null,null,null,null,null,null,null,null,null,null,null,null,null,null,null,null,null,null,null,null,null,null,null,null,null,null,null,null,null,null,null,"",""]
["04: E.P. Intercultural Bilingüe","NO",127,0,"",0,0,0,0,0,null,"",null,null,null,null,null,null,null,null,null,null,null,null,null,null,null,null,null,null,null,null,null,null,null,null,null,null,null,null,null,null,null,null,null,null,null,null,null,null,null,null,null,null,null,null,null,null,null,null,null,null,null,null,null,null,null,null,null,null,null,null,null,null,null,null,null,null,null,"",""]
["05: Educación Básica Alternativa",null,128,0,"",0,0,0,0,0,null,"",null,null,null,null,null,null,null,null,null,null,null,null,null,null,null,null,null,null,null,null,null,null,null,null,null,null,null,null,null,null,null,null,null,null,null,null,null,null,null,null,null,null,null,null,null,null,null,null,null,null,null,null,null,null,null,null,null,null,null,null,null,null,null,null,null,null,null,"",""]
["06: Educación Especial","331. Especialidad Artistica",129,{"$f":"IF(AND(LEFT(R147,2)=\"01\",LEFT(Y147,2)=\"01\",LEFT(X147,2)=\"01\",E147=1),1,0)","v":0},"",0,0,0,{"$f":"IF(L147<>\"\",1,0)","v":0},0,null,"",null,null,null,null,null,null,null,null,null,null,null,null,null,null,null,null,null,null,null,null,null,null,null,null,null,null,null,null,null,null,null,null,null,null,null,null,null,null,null,null,null,null,null,null,null,null,null,null,null,null,null,null,null,null,null,null,null,null,null,null,null,null,null,null,null,null,null,"",""]
["07: Educación Física","01: Danza",130,0,{"$f":"$B$16","v":""},{"$f":"COUNTIF(AQ148:BE148,\"X\")","v":0},{"$f":"IF(R148<>\"\",VALUE(LEFT(R148,2)),0)","v":0},{"$f":"IF(Q148<>\"\",COUNTIF($Q$20:$Q$319,Q148),0)","v":0},0,{"$f":"IF(AND(R148=\"01: Docente\",V148=\"SI\"),1,0)","v":0},null,"",null,null,null,null,null,null,null,null,null,null,null,null,null,null,null,null,null,null,null,null,null,null,null,null,null,null,null,null,null,null,null,null,null,null,null,null,null,null,null,null,null,null,null,null,null,null,null,null,null,null,null,null,null,null,null,null,null,null,null,null,null,null,null,null,null,null,null,"",{"$f":"IF($AA148<>\"\",IF(OR(LEFT($AA148,2)=\"01\",LEFT($AA148,2)=\"02\",LEFT($AA148,2)=\"04\",LEFT($AA148,2)=\"05\"),1,2),\"\")","v":""}]
["08: Educación Artística","02: Música",null,null,null,null,null,null,null,null,null,null,null,null,null,"",null,"","","","","","","","","","","","","","","","","","","","","","","","","","","","","","","","","","","","","","","","","","","",null,null,"","","","",null,"","","","","","","",null,null,null,null,null,""]
["09: E.S. Lengua y Literatura","03: Teatro",null,null,null,null,null,null,null,null,null,"…","…","…","…","…","…","…","…","…","…","…","…","…","…","…","…","…","…","…","…","…","…","…","…","…","…","…","…","…","…","…","…","…","…","…","…","…","…","…","…","…","…","…","…","…","…","…","…","…","…","…","…","…","…","…","…","…","…","…","…","…","…","…","…","…","…","…","…"]
["10: E.S. Comunicación","04: Artes visuales"]
["11: E.S. Matemática y Física","05: Otra"]
["12: E.S. Matemática","336.2 ¿Cuál es el tipo de discapacidad?"]
["13: E.S. CCSS y Filosofía","01: Auditiva"]
["14: E.S. Ciencias Sociales","02: Visual"]
["15: E.S. Ciencias Naturales","03: Física o Motora"]
["16: E.S. Ciencia Tecnología y Ambiente","04: Otras"]
["17: E.S. Alimentación y Nutrición"]
["18: E.S. Biología y Química","334.3 Asistencia Técnica"]
["19: E.S. Historia y Geografía","01: Uso pedagógico de los cuadernos"]
["20: E.S. CC.HH. Sociales","02: TICs"]
["21: E.S. Idioma Inglés","03: Inclusión Financiera"]
["22: Educación Religiosa","04: Prevención de la violencia"]
["23: E.S. Educación Familiar","05: Otro"]
["24: E.T. Artes Industriales","06: No recibió asistencia técnica"]
["25: E.T. Artesanía"]
["26: E.T. Agropecuaria","339.3 ¿Cuál fue el tipo de estudios en EIB?"]
["27: E.T. Construcción en madera","01: Doctorado"]
["28: E.T. Computación e Informática","02: Maestría"]
["29: E.T. Carpintería/Ebanistería","03: Segunda especialidad"]
["30: E.T. Electricidad","04: Especialización"]
["31: E.T. Electrónica","05: Actualización"]
["32: E.T. Ebanistería","06: Otro"]
["33: E.T. Industria del Vestido"]
["34: E.T. Industria del Vestido Alimentación y Alta Costura","Parroquiales"]
["35: E.T. en Industria del Vestido y Alta Costura","05: APAFA"]
["36: E.T.Técnica Esp. Ind. del Vestido Ind.Alimentaria y Artes","06: Otra fuente Privada"]
["37: E.T. Industria Alimentaria","01: Sector Educación"]
["38: E.T. Mecánica Automotriz"]
["39: E.T. Mecánica de Producción"]
["40: E.T. Mecánica de Producción y Soldadura","Forma"]
["41: E.T. Textilería","01: Presencial"]
["42: Otra pedagógica"]
[]
[null,"Centro deonde labora"]
["Area curriculares","01: CEBA Referencial"]
["01: Matemática","02: Periférico"]
["02: Comunicación","03: Círculo de aprendizaje"]
["03: Ingles","04: 01 y 02"]
["04: Ciencias Sociales","05: 01 y 03"]
["05: Desarrollo personal ciudadania …","06: 02 y 03"]
["06: Educación Física","07: 01, 02 y 03"]
["07: Ciencia y Tecnología"]
["08: Castellano como segunda lengua"]
["09: Educación para el trabajo"]
["10: Educación religiosa"]
["11: Tutoría y Orientación Educativa"]
["12: Arte y cultura"]

{"sheet":"C336","index":5,"n_rows":130,"n_cols":31,"rows_kept":130,"cut":false,"hidden":false,"merged":[[26,12,27,12],[1,8,1,14],[2,8,2,14],[26,5,27,5],[26,7,27,7],[26,8,26,10],[25,8,25,10],[26,6,27,6]]}
[]
[null,null,null,null,null,null,null,null,"CENSO EDUCATIVO 2023"]
[null,null,null,null,null,null,null,null,"MATRÍCULA, DOCENTES Y RECURSOS"]
[]
[]
[]
[null,null,null,null,"DOCENTES QUE DOMINAN LENGUA ORIGINARIA (Solo II.EE. Públicas)"]
[]
[null,null,null,null,null,"335. EN ESTE SERVICIO/NIVEL EDUCATIVO, ¿SE DESARROLLAN LAS COMPETENCIAS DE ARTE Y CULTURA?"]
[]
[null,null,null,null,null,null,"Sí   ",null,"¿Cuántos docentes están asignados al dictado de la asignatura?"]
[null,null,null,null,null,null,null,null,"¿El desarrollo de las competencias en Arte y Cultura se realizan dentro del horario regular?"]
[null,null,null,null,null,null,null,null,null,null,null,null,"Sí   ",null,"No   "]
[null,null,null,null,null,null,"No  "]
[null,null,null,null,null,null,null,null,"¿Cuántas horas a la semana se destinan para el desarrollo de las competencias en Arte y Cultura?"]
[]
[]
["GESTIÓN",null,null,null,null,"336. SEGÚN LO ANOTADO EN LA PREGUNTA 307, ¿CUENTA CON UN DOCENTE QUE DOMINE UNA LENGUA ORIGINARIA?"]
[null,null,null,null,null,"Hacer click en el botón [Verificar] para revisar los docentes que dominan una lengua originaria"]
[1]
[null,null,null,null,null,null,null,null,"Sí   ",null,null,null,"¿Cuántos?"]
[]
[null,null,null,null,null,null,null,null,"No  ",null,null,null,"Pase a la sección 400."]
[]
[]
[null,null,null,null,null,null,null,null,334.1,null,null,334.2,334.3,334.4,334.5,334.6,334.7]
[null,null,null,null,null,"Nº","Nº de fila registrado en la pregunta 307","Documento de Identidad","Conocimiento de\nlengua originaria",null,null,"¿Cuenta con estudios en Educación Intercultural Bilingüe?","Solo si respondió SÍ  en la pregunta 334.2 ¿Cuál fue el tipo de estudios en EIB?","¿Ha recibido\ncapacitación en EIB?","¿El docente enseña\nen lengua originaria?","¿El material recibido coincide con la lengua que enseña?","¿En la actualidad el Docente se encuentra en el Registro de Docentes Bilingües?"]
["330.3 ¿Cuál fue el tipo de estudios en EIB?","Corr","Gest","Fmt",null,null,null,null,"Habla","Lee","Escribe"," Sí - No",null," Sí - No"," Sí - No"," Sí - No"," Sí - No"]
["01: Doctorado",1,{"$f":"$A$20","v":1},{"$f":"IF(F29<>\"\",1,0)","v":0},null,{"$f":"IF(B29<=$N$21,B29,\"\")","v":""},null,null,null,null,null,null,null,null,null,null,null,"","","","","","","","","","","","","",""]
["02: Maestría",{"$f":"B29+1","v":2},{"$f":"$A$20","v":1},{"$f":"IF(F30<>\"\",1,0)","v":0},null,{"$f":"IF(B30<=$N$21,B30,\"\")","v":""},null,null,null,null,null,null,null,null,null,null,null,"","","","","","","","","","","","","",""]
["03: Segunda especialidad",{"$f":"B30+1","v":3},1,{"$f":"IF(F31<>\"\",1,0)","v":0},null,"",null,null,null,null,null,null,null,null,null,null,null,"","","","","","","","","","","","","",""]
["04: Especialización",4,1,0,null,"",null,null,null,null,null,null,null,null,null,null,null,"","","","","","","","","","","","","",""]
["05: Actualización",5,1,0,null,"",null,null,null,null,null,null,null,null,null,null,null,"","","","","","","","","","","","","",""]
["06: Otro",6,1,0,null,"",null,null,null,null,null,null,null,null,null,null,null,"","","","","","","","","","","","","",""]
[null,7,1,0,null,"",null,null,null,null,null,null,null,null,null,null,null,"","","","","","","","","","","","","",""]
[null,8,1,0,null,"",null,null,null,null,null,null,null,null,null,null,null,"","","","","","","","","","","","","",""]
["SI",9,1,0,null,"",null,null,null,null,null,null,null,null,null,null,null,"","","","","","","","","","","","","",""]
["NO",10,1,0,null,"",null,null,null,null,null,null,null,null,null,null,null,"","","","","","","","","","","","","",""]
[null,11,1,0,null,"",null,null,null,null,null,null,null,null,null,null,null,"","","","","","","","","","","","","",""]
[null,12,1,0,null,"",null,null,null,null,null,null,null,null,null,null,null,"","","","","","","","","","","","","",""]
[null,13,1,0,null,"",null,null,null,null,null,null,null,null,null,null,null,"","","","","","","","","","","","","",""]
[null,14,1,0,null,"",null,null,null,null,null,null,null,null,null,null,null,"","","","","","","","","","","","","",""]
[null,15,1,0,null,"",null,null,null,null,null,null,null,null,null,null,null,"","","","","","","","","","","","","",""]
[null,16,1,0,null,"",null,null,null,null,null,null,null,null,null,null,null,"","","","","","","","","","","","","",""]
[null,17,1,0,null,"",null,null,null,null,null,null,null,null,null,null,null,"","","","","","","","","","","","","",""]
[null,18,1,0,null,"",null,null,null,null,null,null,null,null,null,null,null,"","","","","","","","","","","","","",""]
[null,19,1,0,null,"",null,null,null,null,null,null,null,null,null,null,null,"","","","","","","","","","","","","",""]
[null,20,1,0,null,"",null,null,null,null,null,null,null,null,null,null,null,"","","","","","","","","","","","","",""]
[null,21,1,0,null,"",null,null,null,null,null,null,null,null,null,null,null,"","","","","","","","","","","","","",""]
[null,22,1,0,null,"",null,null,null,null,null,null,null,null,null,null,null,"","","","","","","","","","","","","",""]
[null,23,1,0,null,"",null,null,null,null,null,null,null,null,null,null,null,"","","","","","","","","","","","","",""]
[null,24,1,0,null,"",null,null,null,null,null,null,null,null,null,null,null,"","","","","","","","","","","","","",""]
[null,25,1,0,null,"",null,null,null,null,null,null,null,null,null,null,null,"","","","","","","","","","","","","",""]
[null,26,1,0,null,"",null,null,null,null,null,null,null,null,null,null,null,"","","","","","","","","","","","","",""]
[null,27,1,0,null,"",null,null,null,null,null,null,null,null,null,null,null,"","","","","","","","","","","","","",""]
[null,28,1,0,null,"",null,null,null,null,null,null,null,null,null,null,null,"","","","","","","","","","","","","",""]
[null,29,1,0,null,"",null,null,null,null,null,null,null,null,null,null,null,"","","","","","","","","","","","","",""]
[null,30,1,0,null,"",null,null,null,null,null,null,null,null,null,null,null,"","","","","","","","","","","","","",""]
[null,31,1,0,null,"",null,null,null,null,null,null,null,null,null,null,null,"","","","","","","","","","","","","",""]
[null,32,1,0,null,"",null,null,null,null,null,null,null,null,null,null,null,"","","","","","","","","","","","","",""]
[null,33,1,0,null,{"$f":"IF(B61<=$N$21,B61,\"\")","v":""},null,null,null,null,null,null,null,null,null,null,null,"","","","","","","","","","","","","",""]
[null,34,1,0,null,"",null,null,null,null,null,null,null,null,null,null,null,"","","","","","","","","","","","","",""]
[null,35,1,0,null,"",null,null,null,null,null,null,null,null,null,null,null,"","","","","","","","","","","","","",""]
[null,36,1,0,null,"",null,null,null,null,null,null,null,null,null,null,null,"","","","","","","","","","","","","",""]
[null,37,1,0,null,"",null,null,null,null,null,null,null,null,null,null,null,"","","","","","","","","","","","","",""]
[null,38,1,0,null,"",null,null,null,null,null,null,null,null,null,null,null,"","","","","","","","","","","","","",""]
[null,39,1,0,null,"",null,null,null,null,null,null,null,null,null,null,null,"","","","","","","","","","","","","",""]
[null,40,1,0,null,"",null,null,null,null,null,null,null,null,null,null,null,"","","","","","","","","","","","","",""]
[null,41,1,0,null,"",null,null,null,null,null,null,null,null,null,null,null,"","","","","","","","","","","","","",""]
[null,42,1,0,null,"",null,null,null,null,null,null,null,null,null,null,null,"","","","","","","","","","","","","",""]
[null,43,1,0,null,"",null,null,null,null,null,null,null,null,null,null,null,"","","","","","","","","","","","","",""]
[null,44,1,0,null,"",null,null,null,null,null,null,null,null,null,null,null,"","","","","","","","","","","","","",""]
[null,45,1,0,null,"",null,null,null,null,null,null,null,null,null,null,null,"","","","","","","","","","","","","",""]
[null,46,1,0,null,"",null,null,null,null,null,null,null,null,null,null,null,"","","","","","","","","","","","","",""]
[null,47,1,0,null,"",null,null,null,null,null,null,null,null,null,null,null,"","","","","","","","","","","","","",""]
[null,48,1,0,null,"",null,null,null,null,null,null,null,null,null,null,null,"","","","","","","","","","","","","",""]
[null,49,1,0,null,"",null,null,null,null,null,null,null,null,null,null,null,"","","","","","","","","","","","","",""]
[null,50,1,0,null,"",null,null,null,null,null,null,null,null,null,null,null,"","","","","","","","","","","","","",""]
[null,51,1,0,null,"",null,null,null,null,null,null,null,null,null,null,null,"","","","","","","","","","","","","",""]
[null,52,1,0,null,"",null,null,null,null,null,null,null,null,null,null,null,"","","","","","","","","","","","","",""]
[null,53,1,0,null,"",null,null,null,null,null,null,null,null,null,null,null,"","","","","","","","","","","","","",""]
[null,54,1,0,null,"",null,null,null,null,null,null,null,null,null,null,null,"","","","","","","","","","","","","",""]
[null,55,1,0,null,"",null,null,null,null,null,null,null,null,null,null,null,"","","","","","","","","","","","","",""]
[null,56,1,0,null,"",null,null,null,null,null,null,null,null,null,null,null,"","","","","","","","","","","","","",""]
[null,57,1,0,null,"",null,null,null,null,null,null,null,null,null,null,null,"","","","","","","","","","","","","",""]
[null,58,1,0,null,"",null,null,null,null,null,null,null,null,null,null,null,"","","","","","","","","","","","","",""]
[null,59,1,0,null,"",null,null,null,null,null,null,null,null,null,null,null,"","","","","","","","","","","","","",""]
[null,60,1,0,null,"",null,null,null,null,null,null,null,null,null,null,null,"","","","","","","","","","","","","",""]
[null,61,1,0,null,"",null,null,null,null,null,null,null,null,null,null,null,"","","","","","","","","","","","","",""]
[null,62,1,0,null,"",null,null,null,null,null,null,null,null,null,null,null,"","","","","","","","","","","","","",""]
[null,63,1,0,null,"",null,null,null,null,null,null,null,null,null,null,null,"","","","","","","","","","","","","",""]
[null,64,1,0,null,"",null,null,null,null,null,null,null,null,null,null,null,"","","","","","","","","","","","","",""]
[null,65,{"$f":"$A$20","v":1},0,null,{"$f":"IF(B93<=$N$21,B93,\"\")","v":""},null,null,null,null,null,null,null,null,null,null,null,"","","","","","","","","","","","","",""]
[null,66,1,0,null,"",null,null,null,null,null,null,null,null,null,null,null,"","","","","","","","","","","","","",""]
[null,{"$f":"B94+1","v":67},1,{"$f":"IF(F95<>\"\",1,0)","v":0},null,"",null,null,null,null,null,null,null,null,null,null,null,"","","","","","","","","","","","","",""]
[null,68,1,0,null,"",null,null,null,null,null,null,null,null,null,null,null,"","","","","","","","","","","","","",""]
[null,69,1,0,null,"",null,null,null,null,null,null,null,null,null,null,null,"","","","","","","","","","","","","",""]
[null,70,1,0,null,"",null,null,null,null,null,null,null,null,null,null,null,"","","","","","","","","","","","","",""]
[null,71,1,0,null,"",null,null,null,null,null,null,null,null,null,null,null,"","","","","","","","","","","","","",""]
[null,72,1,0,null,"",null,null,null,null,null,null,null,null,null,null,null,"","","","","","","","","","","","","",""]
[null,73,1,0,null,"",null,null,null,null,null,null,null,null,null,null,null,"","","","","","","","","","","","","",""]
[null,74,1,0,null,"",null,null,null,null,null,null,null,null,null,null,null,"","","","","","","","","","","","","",""]
[null,75,1,0,null,"",null,null,null,null,null,null,null,null,null,null,null,"","","","","","","","","","","","","",""]
[null,76,1,0,null,"",null,null,null,null,null,null,null,null,null,null,null,"","","","","","","","","","","","","",""]
[null,77,1,0,null,"",null,null,null,null,null,null,null,null,null,null,null,"","","","","","","","","","","","","",""]
[null,78,1,0,null,"",null,null,null,null,null,null,null,null,null,null,null,"","","","","","","","","","","","","",""]
[null,79,1,0,null,"",null,null,null,null,null,null,null,null,null,null,null,"","","","","","","","","","","","","",""]
[null,80,1,0,null,"",null,null,null,null,null,null,null,null,null,null,null,"","","","","","","","","","","","","",""]
[null,81,1,0,null,"",null,null,null,null,null,null,null,null,null,null,null,"","","","","","","","","","","","","",""]
[null,82,1,0,null,"",null,null,null,null,null,null,null,null,null,null,null,"","","","","","","","","","","","","",""]
[null,83,1,0,null,"",null,null,null,null,null,null,null,null,null,null,null,"","","","","","","","","","","","","",""]
[null,84,1,0,null,"",null,null,null,null,null,null,null,null,null,null,null,"","","","","","","","","","","","","",""]
[null,85,1,0,null,""]
[null,86,1,0,null,""]
[null,87,1,0,null,""]
[null,88,1,0,null,""]
[null,89,1,0,null,""]
[null,90,1,0,null,""]
[null,91,1,0,null,""]
[null,92,1,0,null,""]
[null,93,1,0,null,""]
[null,94,1,0,null,""]
[null,95,1,0,null,""]
[null,96,1,0,null,""]
[null,97,1,0,null,""]
[null,98,1,0,null,""]
[null,99,1,0,null,""]
[null,100,1,0,null,"",null,null,null,null,null,null,null,null,null,null,null,"","","","","","","","","","","","","",""]
[null,null,null,null,null,null,null,""]
[null,null,null,null,null,"…","…","…","…","…","…","…","…","…","…","…","…"]

{"sheet":"C400","index":6,"n_rows":75,"n_cols":27,"rows_kept":75,"cut":false,"hidden":false,"merged":[[2,6,2,11],[1,6,1,11],[60,11,60,26],[61,12,61,16],[61,17,61,21],[61,22,61,26],[6,2,6,16],[26,3,29,4],[26,5,28,7],[26,8,28,8],[26,9,28,9],[26,10,28,10],[28,17,28,18],[28,19,28,21],[28,14,28,16],[28,12,28,13],[43,11,43,26],[44,12,44,16],[44,17,44,21],[44,22,44,26],[45,11,46,11],[45,12,45,13],[45,14,45,16],[45,17,45,18],[45,19,45,21],[45,22,45,23],[45,24,45,26],[35,3,39,4],[30,3,34,4],[28,11,29,11],[62,22,62,23],[62,24,62,26],[62,11,63,11],[62,12,62,13],[62,14,62,16],[62,17,62,18],[62,19,62,21],[43,3,46,4],[43,5,45,7],[47,3,51,4],[52,3,56,4],[60,3,63,4],[60,5,62,7],[27,22,27,26],[28,22,28,23],[28,24,28,26],[26,11,26,26],[27,12,27,16],[27,17,27,21],[64,3,68,4],[69,3,73,4],[43,8,45,8],[43,9,45,9],[43,10,45,10],[60,8,62,8],[60,9,62,9],[60,10,62,10]]}
[]
[null,null,null,null,null,null,"CENSO EDUCATIVO 2023"]
[null,null,null,null,null,null,"MATRÍCULA, DOCENTES Y RECURSOS"]
[]
[]
[]
[null,null,"400. MATERIALES EDUCATIVOS (SOLO GESTIÓN PÚBLICA)"]
[]
["GESTIÓN"]
[{"$f":"IF(OR('C100'!O35=\"X\",'C100'!X35=\"X\"),\"X\",IF('C100'!AG35=\"X\",3,\"\"))","v":""},null,"401. ¿RECIBIÓ MATERIALES CORRESPONDIENTES A LA DOTACIÓN 2023?"]
[]
[null,null,null," Sí",null,"No  ",null,null,"Pase a la SECCIÓN 500."]
[]
[]
[null,null,"402. ¿RECIBIÓ CUADERNOS DE TRABAJO EN LENGUA ORIGINARIA?"]
[]
[null,null,null," Sí",null," No  "]
[]
[null,null,null,null,null,"¿CORRESPONDEN A LA LENGUA DE LOS ESTUDIANTES DE ESTE SERVICIO/NIVEL EDUCATIVO?",null,null,null,null,null," Sí  ",null,null," No  "]
[]
[]
[null,null,null,null,null,null,"",null,null,""]
[]
[1]
["403a",null,"403. DETALLE DE CUADERNOS DE TRABAJO, TEXTOS, KITS Y GUÍAS CORRESPONDIENTES A LA DOTACIÓN 2023 POR GRADO - RECIBIDO"]
[]
[null,null,null,"BENEFICIARIO",null,"MATERIAL EDUCATIVO",null,null,"¿Recibió los materiales?","Primera\nFecha de Recepción","Última\nFecha de Recepción","CANTIDAD DE MATERIAL RECIBIDO"]
[null,null,null,null,null,null,null,null,null,null,null,null,"CEBA",null,null,null,null,"PERIFÉRICO",null,null,null,null,"CÍRCULOS DE APRENDIZAJE"]
[null,null,null,null,null,null,null,null,null,null,null,"TOTAL RECIBIDO","Inicial",null,"Intermedio",null,null,"Inicial",null,"Intermedio",null,null,"Inicial",null,"Intermedio"]
[null,null,null,null,null,null,null,{"$f":"COUNTIF(I31:I40,\"SI\")","v":0}," SI - NO","Día / Mes / Año","Día / Mes / Año",null,"1º","2º","3º","4º","5º","1º","2º","3º","4º","5º","1º","2º","3º","4º","5º"]
["01",null,0,"ESTUDIANTES",null,"Proyectos de aprendizaje",null,null,null,null,null,{"$f":"SUM(M31:AA31)","v":0}]
["02",null,null,null,null,"Situaciones comunicativas",null,null,null,null,null,{"$f":"SUM(M32:AA32)","v":0}]
["03",null,null,null,null,"Situaciones para construir y resolver",null,null,null,null,null,{"$f":"SUM(M33:AA33)","v":0}]
["04",null,null,null,null,"Situaciones para aprender y construir experiencias",null,null,null,null,null,0]
["05",null,null,null,null,"Material fungible - Programa de Alfabetización",null,null,null,null,null,0]
["06",null,null,"COORDINADOR/\nACOMPAÑANTE/\nFACILITADOR",null,"Proyectos de aprendizaje",null,null,null,null,null,0]
["07",null,null,null,null,"Situaciones comunicativas",null,null,null,null,null,0]
["08",null,null,null,null,"Situaciones para construir y resolver",null,null,null,null,null,0]
["09",null,null,null,null,"Situaciones para aprender y construir experiencias",null,null,null,null,null,0]
["10",null,null,null,null,"Material fungible - Programa de Alfabetización",null,null,null,null,null,{"$f":"SUM(M40:AA40)","v":0}]
[null,null,null,null,null,null,null,null,{"$f":"COUNTIF(I31:I40,\"SI\")+COUNTIF(I31:I40,\"NO\")","v":0},null,null,{"$f":"SUM(L31:L40)","v":0}]
[]
["403b",null,"403. DETALLE DE CUADERNOS DE TRABAJO, TEXTOS, KITS Y GUÍAS CORRESPONDIENTES A LA DOTACIÓN 2023 POR GRADO - SOBRANTE"]
[null,null,null,"BENEFICIARIO",null,"MATERIAL EDUCATIVO",null,null,"¿Recibió los materiales?","Primera\nFecha de Recepción","Última\nFecha de Recepción","CANTIDAD DE MATERIAL SOBRANTE"]
[null,null,null,null,null,null,null,null,null,null,null,null,"CEBA",null,null,null,null,"PERIFÉRICO",null,null,null,null,"CÍRCULOS DE APRENDIZAJE"]
[null,null,null,null,null,null,null,null,null,null,null,"TOTAL RECIBIDO","Inicial",null,"Intermedio",null,null,"Inicial",null,"Intermedio",null,null,"Inicial",null,"Intermedio"]
[null,null,null,null,null,null,null,null," SI - NO","Día / Mes / Año","Día / Mes / Año",null,"1º","2º","3º","4º","5º","1º","2º","3º","4º","5º","1º","2º","3º","4º","5º"]
["01",null,null,"ESTUDIANTES",null,"Proyectos de aprendizaje",null,null,{"$f":"IF(I31<>\"\",I31,\"\")","v":""},{"$f":"IF(J31<>\"\",J31,\"\")","v":""},{"$f":"IF(K31<>\"\",K31,\"\")","v":""},{"$f":"SUM(M48:AA48)","v":0}]
["02",null,null,null,null,"Situaciones comunicativas",null,null,{"$f":"IF(I32<>\"\",I32,\"\")","v":""},{"$f":"IF(J32<>\"\",J32,\"\")","v":""},"",{"$f":"SUM(M49:AA49)","v":0}]
["03",null,null,null,null,"Situaciones para construir y resolver",null,null,"",{"$f":"IF(J33<>\"\",J33,\"\")","v":""},"",{"$f":"SUM(M50:AA50)","v":0}]
["04",null,null,null,null,"Situaciones para aprender y construir experiencias",null,null,"",{"$f":"IF(J34<>\"\",J34,\"\")","v":""},"",0]
["05",null,null,null,null,"Material fungible - Programa de Alfabetización",null,null,"",{"$f":"IF(J35<>\"\",J35,\"\")","v":""},"",0]
["06",null,null,"COORDINADOR/\nACOMPAÑANTE/\nFACILITADOR",null,"Proyectos de aprendizaje",null,null,"",{"$f":"IF(J36<>\"\",J36,\"\")","v":""},"",0]
["07",null,null,null,null,"Situaciones comunicativas",null,null,"",{"$f":"IF(J37<>\"\",J37,\"\")","v":""},"",0]
["08",null,null,null,null,"Situaciones para construir y resolver",null,null,"",{"$f":"IF(J38<>\"\",J38,\"\")","v":""},"",0]
["09",null,null,null,null,"Situaciones para aprender y construir experiencias",null,null,"",{"$f":"IF(J39<>\"\",J39,\"\")","v":""},"",0]
["10",null,null,null,null,"Material fungible - Programa de Alfabetización",null,null,"",{"$f":"IF(J40<>\"\",J40,\"\")","v":""},"",{"$f":"SUM(M57:AA57)","v":0}]
[null,null,null,null,null,null,null,null,null,null,null,{"$f":"SUM(L48:L57)","v":0}]
[]
["403c",null,"403. DETALLE DE CUADERNOS DE TRABAJO, TEXTOS, KITS Y GUÍAS CORRESPONDIENTES A LA DOTACIÓN 2023 POR GRADO - FALTANTE"]
[null,null,null,"BENEFICIARIO",null,"MATERIAL EDUCATIVO",null,null,"¿Recibió los materiales?","Primera\nFecha de Recepción","Última\nFecha de Recepción","CANTIDAD DE MATERIAL FALTANTE"]
[null,null,null,null,null,null,null,null,null,null,null,null,"CEBA",null,null,null,null,"PERIFÉRICO",null,null,null,null,"CÍRCULOS DE APRENDIZAJE"]
[null,null,null,null,null,null,null,null,null,null,null,"TOTAL RECIBIDO","Inicial",null,"Intermedio",null,null,"Inicial",null,"Intermedio",null,null,"Inicial",null,"Intermedio"]
[null,null,null,null,null,null,null,null," SI - NO","Día / Mes / Año","Día / Mes / Año",null,"1º","2º","3º","4º","5º","1º","2º","3º","4º","5º","1º","2º","3º","4º","5º"]
["01",null,null,"ESTUDIANTES",null,"Proyectos de aprendizaje",null,null,{"$f":"IF(I31<>\"\",I31,\"\")","v":""},{"$f":"IF(J31<>\"\",J31,\"\")","v":""},{"$f":"IF(K31<>\"\",K31,\"\")","v":""},{"$f":"SUM(M65:AA65)","v":0}]
["02",null,null,null,null,"Situaciones comunicativas",null,null,{"$f":"IF(I32<>\"\",I32,\"\")","v":""},{"$f":"IF(J32<>\"\",J32,\"\")","v":""},"",{"$f":"SUM(M66:AA66)","v":0}]
["03",null,null,null,null,"Situaciones para construir y resolver",null,null,"",{"$f":"IF(J33<>\"\",J33,\"\")","v":""},"",{"$f":"SUM(M67:AA67)","v":0}]
["04",null,null,null,null,"Situaciones para aprender y construir experiencias",null,null,"",{"$f":"IF(J34<>\"\",J34,\"\")","v":""},"",0]
["05",null,null,null,null,"Material fungible - Programa de Alfabetización",null,null,"",{"$f":"IF(J35<>\"\",J35,\"\")","v":""},"",0]
["06",null,null,"COORDINADOR/\nACOMPAÑANTE/\nFACILITADOR",null,"Proyectos de aprendizaje",null,null,"",{"$f":"IF(J36<>\"\",J36,\"\")","v":""},"",0]
["07",null,null,null,null,"Situaciones comunicativas",null,null,"",{"$f":"IF(J37<>\"\",J37,\"\")","v":""},"",0]
["08",null,null,null,null,"Situaciones para construir y resolver",null,null,"",{"$f":"IF(J38<>\"\",J38,\"\")","v":""},"",0]
["09",null,null,null,null,"Situaciones para aprender y construir experiencias",null,null,"",{"$f":"IF(J39<>\"\",J39,\"\")","v":""},"",0]
["10",null,null,null,null,"Material fungible - Programa de Alfabetización",null,null,"",{"$f":"IF(J40<>\"\",J40,\"\")","v":""},"",{"$f":"SUM(M74:AA74)","v":0}]
[null,null,null,null,null,null,null,null,null,null,null,{"$f":"SUM(L65:L74)","v":0}]

{"sheet":"C500","index":7,"n_rows":130,"n_cols":23,"rows_kept":130,"cut":false,"hidden":false,"merged":[[129,16,129,20],[106,9,106,10],[106,11,106,12],[106,13,106,14],[106,16,106,17],[106,18,106,21],[105,9,105,10],[105,11,105,12],[105,13,105,14],[105,16,105,17],[105,18,105,21],[104,9,104,10],[104,11,104,12],[104,13,104,14],[104,16,104,17],[104,18,104,21],[103,9,103,10],[103,11,103,12],[103,13,103,14],[103,16,103,17],[103,18,103,21],[102,9,102,10],[102,11,102,12],[102,13,102,14],[102,16,102,17],[102,18,102,21],[100,13,100,14],[100,16,100,17],[100,18,100,21],[101,9,101,10],[101,11,101,12],[101,13,101,14],[101,16,101,17],[101,18,101,21],[60,2,62,6],[60,7,61,10],[24,11,24,12],[23,13,23,14],[25,11,25,12],[25,13,25,14],[123,6,123,10],[88,15,88,17],[109,1,109,22],[72,2,74,6],[72,7,73,10],[84,2,86,6],[96,2,98,6],[96,8,99,8],[97,9,99,10],[97,11,99,12],[97,13,99,14],[97,15,99,15],[97,16,99,17],[97,18,99,21],[100,9,100,10],[100,11,100,12],[84,7,85,10],[77,13,79,17],[6,1,6,22],[14,11,14,12],[15,11,15,12],[26,11,26,12],[16,11,16,12],[17,11,17,12],[11,11,12,12],[22,11,22,12],[23,11,23,12],[19,13,19,14],[17,13,17,14],[16,13,16,14],[18,13,18,14],[19,11,19,12],[20,11,20,12],[21,11,21,12],[18,11,18,12],[24,13,24,14],[26,13,26,14],[21,16,21,18],[24,16,24,18],[23,16,23,18],[26,16,26,18],[22,16,22,18],[89,15,89,17],[11,16,12,18],[13,16,13,18],[17,16,17,18],[16,16,16,18],[20,13,20,14],[22,13,22,14],[15,13,15,14],[11,13,13,14],[14,13,14,14],[20,16,20,18],[18,16,18,18],[19,16,19,18],[40,17,40,21],[77,18,77,21],[21,13,21,14],[11,15,13,15],[15,16,15,18],[14,16,14,18],[25,16,25,18]]}
[]
[null,"CENSO EDUCATIVO 2023"]
[null,"MATRÍCULA, DOCENTES Y RECURSOS"]
[]
[]
[]
[null,"500. OTROS RECURSOS DISPONIBLES PARA LA ENSEÑANZA (Para II.EE. Públicas y Privadas)"]
[]
[null,"EQUIPOS Y SERVICIOS QUE DISPONE EL SERVICIO/NIVEL EDUCATIVO"]
[null,"501. EQUIPOS Y SERVICIOS QUE DISPONE EL SERVICIO/NIVEL EDUCATIVO"]
[]
[null,null,null,null,null,null,null,null,null,null,null," Sí - No",null,"¿Cuántos tiene?",null,"¿Cuántos estan operativos?","¿Son utilizados para la enseñanza en interacción con los estudiantes?",null,null,"SI"]
[null,null,null,null,null,null,"EQUIPOS Y SERVICIOS",null,null,null,null,null,null,null,null,null,null,null,null,"NO"]
[null,null,null,null,null,null,null,null,null,null,{"$f":"COUNTIF(L15:L27,\"SI\")+COUNTIF(L15:L27,\"NO\")","v":0},null,null,null,null,null," Sí - No"]
[null,null,null,null,null,"01","Televisor(es)"]
[null,null,null,null,null,"02","Computadoras (PC de escritorio)"]
[null,null,null,null,null,"03","Laptop convencionales"]
[null,null,null,null,null,"04","Laptop XO"]
[null,null,null,null,null,"05","Servidores ( exclusivo del nivel)"]
[null,null,null,null,null,"06","Tablets"]
[null,null,null,null,null,"07","Proyector"]
[null,null,null,null,null,"08","Radiograbadora"]
[null,null,null,null,null,"09","Reproductor de DVD o Blue Ray"]
[null,null,null,null,null,"10","Impresoras"]
[null,null,null,null,null,"11","Pizarras digitales"]
[null,null,null,null,null,"12","Modem"]
[null,null,null,null,null,"13","Servicio de Internet"]
[]
[]
[null,"502. ¿QUÉ CICLOS ATENDIDOS CUENTAN CON BIBLIOTECA DE AULA?",null,null,null,null,null,null,null,null,null,null,"504. ¿QUÉ TIPO DE TALLERES BRINDA EL CEBA?"]
[null,null,"(Marque con una aspa “X” el ciclo correspondiente y anote el",null,null,null,null,null,null,null,null,null,null,"(Marque con un aspa “X” uno o más casilleros)"]
[null,null,"número total de ejemplares, según corresponda)."]
[null,null,null,null,null,null,null,null,null,null,null,null,null,null,null,"Corte y Confección"]
[null,null,null,null,"Inicial",null,null,null,null,null,null,null,null,null,null,"Computación e Informática"]
[null,null,null,null,null,null,null,null,"Nº Total de Ejemplares",null,null,null,null,null,null,"Agroindustria"]
[null,null,null,null,"Intermedio",null,null,null,null,null,null,null,null,null,null,"Mecánica"]
[null,null,null,null,null,null,null,null,null,null,null,null,null,null,null,"Gastronomía"]
[null,null,null,null,"NINGUNO",null,null,null,null,null,null,null,null,null,null,"Carpintería"]
[null,null,null,null,null,null,null,null,null,null,null,null,null,null,null,"Contabilidad"]
[null,"503. ¿EL CEBA CUENTA CON TALLERES?",null,null,null,null,null,null,null,null,null,null,null,null,null,"Electricidad"]
[null,null,null,null,null,null,null,null,null,null,null,null,null,null,null,"Otro"]
[null,null,null,null,"No  ",null,null,null,"Pase a la pregunta 505",null,null,null,null,null,null,"NINGUNO"]
[]
[]
[null,"AULAS Y SERVICIOS HIGIÉNICOS UTILIZADO POR EL NIVEL / SERVICIO EDUCATIVO"]
[null,"505. INDIQUE EL NÚMERO DE AULAS UTILIZADO",null,null,null,null,null,null,null,null,null,null,"506. INDIQUE EL NÚMERO DE SERVICIOS HIGIÉNICOS UTILIZADOS"]
[]
[null,null,"TOTAL AULAS",null,null,null,null,null,null,{"$f":"J50+J52","v":0},null,null,null,"TOTAL SS.HH.",null,null,null,null,null,null,{"$f":"U50+U52","v":0}]
[]
[null,null,"De uso exclusivo :",null,null,null,null,null,null,null,null,null,null,"De uso exclusivo :"]
[]
[null,null,"De uso compartido con otros niveles :",null,null,null,null,null,null,null,null,null,null,"De uso compartido con otros niveles :"]
[]
[]
[]
[null,"INTERNET, SEGURIDAD E IMPLEMENTACION"]
[null,"507. SOBRE EL ACCESO A INTERNET EN LAS INSTALACIONES DONDE",null,null,null,null,null,null,null,null,null,null,"510. SEÑOR(A) DIRECTOR(A) ¿CUAL(ES) DISPOSITIVO(S) INFORMATICO(S)"]
[null,null,"   FUNCIONA EL NIVEL/SERVICIO EDUCATIVO",null,null,null,null,null,null,null,null,null,null,"UTILIZA PRINCIPALMENTE PARA REALIZAR LAS LABORES DE GESTION"]
[null,null," Marque con un aspa “X” según corresponda",null,null,null,null,null,null,null,null,null,null,"DE ESTE NIVEL/SERVICIO EDUCATIVO EN SU HOGAR?"]
[null,null,null,null,null,null,null,null,null,null,null,null,null,"(PC, LAPTOP, TABLET, CELULAR)?"]
[null,null,"ACTOR",null,null,null,null,"¿Tienen acceso a internet en el Servicio Educativo?",null,null,null,null,null,"Marque con una “X”, una o más opciones"]
[null,null,null,null,null,null,null,null,null,null,null,null,null,""]
[null,null,null,null,null,null,null," Sí,"," Sí, la"," Sí,",null,null,null,"",null,"Trabajo con una PC"]
[null,null,null,null,null,null,{"$f":"SUM(G65:G68)","v":0},"Todos","Mayoria","Algunos","Ninguno",null,null,"",null,"Trabajo con una Laptop"]
[null,null,"Los estudiantes",null,null,null,{"$f":"COUNTIF(H65:K65,\"X\")","v":0},null,null,null,null,"01",null,"",null,"Trabajo con una Tablet"]
[null,null,"El personal directivo",null,null,null,{"$f":"COUNTIF(H66:K66,\"X\")","v":0},null,null,null,null,"02",null,null,null,"Trabajo con un Celular"]
[null,null,"El personal docente",null,null,null,{"$f":"COUNTIF(H67:K67,\"X\")","v":0},null,null,null,null,"03",null,null,null,"No, no cuento con ninguno de los anteriores"]
[null,null,"El personal administrativo",null,null,null,{"$f":"COUNTIF(H68:K68,\"X\")","v":0},null,null,null,null,"04"]
[]
[null,"508. SOBRE EL ACCESO A INTERNET EN EL DOMICILIO"]
[null,null," Marque con un aspa “X” según corresponda",null,null,null,null,null,null,null,null,null,"511. CON RESPECTO AL CONCOCIMIENTO Y ELABORACIÓN DE CLASES"]
[null,null,null,null,null,null,null,null,null,null,null,null,null,"  VIRTUALES PARA LOS ESTUDIANTES. ¿CUAL ES EL NIVEL DE USO, LAS"]
[null,null,"ACTOR",null,null,null,null,"¿Tienen acceso a internet en su domicilio?",null,null,null,null,null,"  HERRAMIENTAS O PLATAFORMAS TECNOLOGICAS PARA ESTE FIN ?"]
[]
[null,null,null,null,null,null,null," Sí,"," Sí, la"," Sí,",null,null,null,"Marque con un aspa “X” según corresponda para cada caso"]
[null,null,null,null,null,null,{"$f":"SUM(G77:G80)","v":0},"Todos","Mayoria","Algunos","Ninguno"]
[null,null,"Los estudiantes",null,null,null,{"$f":"COUNTIF(H77:K77,\"X\")","v":0},null,null,null,null,"01"]
[null,null,"El personal directivo",null,null,null,{"$f":"COUNTIF(H78:K78,\"X\")","v":0},null,null,null,null,"02",null,"HERRAMIENTA/PLATAFORMA TECNOLÓGICA PARA LA ELABORACIÓN DE CLASES VIRTUALES",null,null,null,null,"Nivel de uso de los docentes"]
[null,null,"El personal docente",null,null,null,{"$f":"COUNTIF(H79:K79,\"X\")","v":0},null,null,null,null,"03"]
[null,null,"El personal administrativo",null,null,null,{"$f":"COUNTIF(H80:K80,\"X\")","v":0},null,null,null,null,"04",{"$f":"SUM(M81:M90)","v":0},null,null,null,null,null,"Todos","Mayoria","Algunos","Ninguno"]
[null,null,null,null,null,null,null,null,null,null,null,null,{"$f":"COUNTIF(S81:V81,\"X\")","v":0},"Moodle",null,null,null,null,null,null,null,null,"01"]
[null,"509. EN EL PRESENTE AÑO, ¿CUENTAN CON PC O LAPTOP EN SU DOMICILIO?",null,null,null,null,null,null,null,null,null,null,{"$f":"COUNTIF(S82:V82,\"X\")","v":0},"Canvas",null,null,null,null,null,null,null,null,"02"]
[null,null,"Marque con un aspa “X” según corresponda",null,null,null,null,null,null,null,null,null,0,"Zoom",null,null,null,null,null,null,null,null,"03"]
[null,null,null,null,null,null,null,null,null,null,null,null,0,"Meet",null,null,null,null,null,null,null,null,"04"]
[null,null,"ACTOR",null,null,null,null,"¿Cuéntan con Pc o Laptop en su domicilio?",null,null,null,null,0,"Teams",null,null,null,null,null,null,null,null,"05"]
[null,null,null,null,null,null,null,null,null,null,null,null,0,"Whatsapp",null,null,null,null,null,null,null,null,"06"]
[null,null,null,null,null,null,null," Sí,"," Sí, la"," Sí,",null,null,{"$f":"COUNTIF(S87:V87,\"X\")","v":0},"Classroom",null,null,null,null,null,null,null,null,"07"]
[null,null,null,null,null,null,{"$f":"SUM(G89:G92)","v":0},"Todos","Mayoria","Algunos","Ninguno",null,{"$f":"COUNTIF(S88:V88,\"X\")","v":0},"Facebook/Messenger",null,null,null,null,null,null,null,null,"08"]
[null,null,"Los estudiantes",null,null,null,{"$f":"COUNTIF(H89:K89,\"X\")","v":0},null,null,null,null,"01",{"$f":"COUNTIF(S89:V89,\"X\")","v":0},"Otro 1",null,null,null,null,null,null,null,null,"09"]
[null,null,"El personal directivo",null,null,null,{"$f":"COUNTIF(H90:K90,\"X\")","v":0},null,null,null,null,"02",{"$f":"COUNTIF(S90:V90,\"X\")","v":0},"Otro 2",null,null,null,null,null,null,null,null,"10"]
[null,null,"El personal docente",null,null,null,{"$f":"COUNTIF(H91:K91,\"X\")","v":0},null,null,null,null,"03"]
[null,null,"El personal administrativo",null,null,null,{"$f":"COUNTIF(H92:K92,\"X\")","v":0},null,null,null,null,"04"]
[]
[]
[null,"512. DURANTE EL 2022 ESTE SERVICIO/NIVEL EDUCATIVO ¿HA RECIBIDO ALGUNA PLAZA DE PERSONAL ADMINISTRATIVO QUE NO HA LOGRADO CUBRIR?"]
[]
[null,null,"CARGO",null,null,null,null,null,"¿Cuán-tos\nrecibio?","¿Porque no ha logrado cubrir la plaza?"]
[null,null,null,null,null,null,null,"Recibio",null,"a. La IE. no requiere al personal asignado",null,"b. No se presentaron postulantes",null,"c. Postulantes sin experiencia",null,"d. UGEL no brinda mayor información","e. Requiero otro tipo de personal",null,"f. Otro\nEspecificar"]
[]
[null,null,null,null,null,null,{"$f":"COUNTIF(H101:H107,\"SI\")+COUNTIF(H101:H107,\"NO\")","v":0}]
[null,null,"Coordinador Administrativo"]
[null,null,"Secretaria(o)"]
[null,null,"Oficinista"]
[null,null,"Trabajador guardianía y/o vigilancia"]
[null,null,"Trabajador limpieza y mantenimiento"]
[null,null,"Auxiliar de Biblioteca"]
[null,null,"Auxiliar de Laboratorio"]
[]
[]
[null,"600. EDUCACIÓN FÍSICA Y DEPORTE (Para II.EE. Públicas y Privadas)"]
[]
[null,"A. SITUACIÓN DEL DEPORTE ESCOLAR"]
[null,"601. DURANTE EL AÑO 2020, EN ESTE NIVEL/SERVICIO EDUCATIVO, ¿SE FOMENTÓ",null,null,null,null,null,null,null,null,null,null,"602. ¿EL SERVICIO/NIVEL EDUCATIVO CUENTA CON LA ASIGNATURA DE"]
[null,null,"LA REALIZACIÓN DE ACTIVIDADES FÍSICAS O DEPORTE, CON LA FINALIDAD",null,null,null,null,null,null,null,null,null,null,"  EDUCACIÓN FÍSICA?"]
[null,null,"DE PRIORIZAR EL CUIDADO DEL ESTUDIANTE Y SU BIENESTAR INTEGRAL?",null,null,null,null,null,null,null,null,null,null,null,null,null,"¿Cuántas horas a la semana se dictan?"]
[null,null,null,null,null,null,null,null,null,null,null,null,null," Sí"]
[null,null," Sí",null,"No  ",null,null,null,null,null,null,null,null,null,null,null,"¿Cuántos docentes están asignados al "]
[null,null,null,null,null,null,null,null,null,null,null,null,null,null,null,null,"dictado del curso?"]
[null,null,null,null,null,null,null,null,null,null,null,null,null," No"]
[null,null,null,null,"Actividades de movimiento"]
[null,null,null,null,"Actividades de deporte",null,null,null,null,null,null,null,"603. EN EL PRESENTE AÑO 20223 ¿ESTE SERVICIO/NIVEL EDUCATIVO TIENE"]
[null,null,null,null,"Actividades artístico culturales",null,null,null,null,null,null,null,null,"PLANIFICADO LA EJECUCIÓN DE TALLERES COMPLEMENTARIOS?"]
[null,null,null,null,"Actividades complementarias de encuentro con la comunidad educativa"]
[null,null,null,null,"Otras Actividades",null,null,null,null,null,null,null,null," Sí",null,"No  "]
[]
[]
[null,null,null,null,null,null,null,null,null,null,null,null,null,null,null,"Expresarte"]
[null,null,null,null,null,null,null,null,null,null,null,null,null,null,null,"Orquestando"]
[null,null,null,null,null,null,null,null,null,null,null,null,null,null,null,"Talleres deportivos recreativos"]
[null,null,null,null,null,null,null,null,null,null,null,null,null,null,null,"Otro"]

{"sheet":"C700","index":8,"n_rows":296,"n_cols":21,"rows_kept":296,"cut":false,"hidden":false,"merged":[[42,2,45,3],[42,4,43,8],[44,4,45,8],[22,2,23,3],[22,4,23,7],[24,2,29,3],[24,4,25,8],[33,2,34,3],[35,2,41,3],[1,5,1,18],[2,5,2,18],[96,6,96,8],[44,9,45,9],[12,19,13,19],[14,19,15,19],[16,19,17,19],[18,19,19,19],[22,19,24,19],[20,19,21,19],[42,9,43,9],[22,9,23,9],[6,1,6,20],[11,12,11,13],[11,14,11,15],[11,16,11,17],[24,9,25,9],[26,4,27,8],[26,9,27,9],[30,2,32,3],[30,15,30,18],[37,15,37,18],[55,15,55,18],[67,15,67,18],[82,12,84,15],[82,16,84,16],[82,17,83,18],[82,19,83,20],[84,17,85,17],[84,18,85,18],[84,19,85,19],[84,20,85,20],[173,15,173,18],[144,15,144,18],[145,14,145,15],[147,5,147,8],[154,14,154,17],[157,15,157,18],[203,15,203,18],[206,4,206,5],[208,15,209,17],[217,2,221,4],[217,5,218,7],[217,8,218,10],[219,5,221,5],[219,6,222,6],[219,7,221,7],[219,8,221,8],[219,9,221,9],[219,10,221,10],[226,3,226,4],[229,15,229,18],[237,2,240,6],[237,7,238,9],[239,8,240,9],[241,8,241,9],[242,8,242,9],[242,14,243,17],[243,8,243,9],[249,16,249,18],[292,15,292,18],[182,14,183,17],[183,8,183,9],[189,15,189,18],[197,3,200,5],[198,6,200,6],[198,7,200,7],[198,8,200,8],[198,9,200,9],[198,14,199,17],[268,8,268,9],[270,6,270,7],[273,6,273,7],[273,8,273,9],[274,6,274,7],[274,8,274,9]]}
[]
[null,null,null,null,null,"CENSO EDUCATIVO 2023"]
["Si",null,null,null,null,"MATRÍCULA, DOCENTES Y MATERIALES EDUCATIVOS"]
["No"]
[]
[]
[null,"700. FORTALECIMIENTO DE LA GESTIÓN"]
[]
[null,"701. ESTE NIVEL/SERVICIO EDUCATIVO ¿COORDINA ALGUNA ACCIÓN CON EL",null,null,null,null,null,null,null,null,null,"704. SOBRE LA GESTIÓN DEL RIESGO DE DESASTRES Y LA SEGURIDAD EN ESTE NIVEL/ SERVICIO"]
[null,null,"GOBIERNO LOCAL (DISTRITAL O PROVINCIAL) PARA MEJORAR LA",null,null,null,null,null,null,null,null,null,"EDUCATIVO, ATIENDA LAS SIGUIENTES PREGUNTAS:"]
[null,null,"PRESTACIÓN DEL SERVICIO EDUCATIVO?"]
[null,null,null,null,null,null,null,null,null,null,null,{"$f":"SUM(L13:L26)","v":0},null,null,"PREGUNTA",null,null,null,null,"RESPUESTA"]
[null,"1: Siempre","Sí  ",null,null,"No  ",null,null,"Pase a la pregunta 703",null,null,{"$f":"IF(T13<>\"\",1,0)","v":0},"¿Incorpora la Gestión del Riesgo de Desastres en los instrumentos de",null,null,null,null,null,null,null,"01"]
[null,"2: Casi Siempre",null,null,null,null,null,null,null,null,null,null,"Gestión y Planificación Curricular para el desarrollo de una cultura de …"]
[null,"3: A Veces",null,null,null,null,null,null,null,null,null,{"$f":"IF(T15<>\"\",1,0)","v":0},"¿El Plan de Gestión de Riesgo de Desastres contiene acciones con",null,null,null,null,null,null,null,"02"]
[null,"4: Casi Nunca",null,null,"Con Municipalidad Distrital",null,null,null,null,null,null,null,"enfásis en la contingencia ante la emergencia sanitaria por Covid19?"]
[null,"5: Nunca",null,null,"Con Municipalidad Provincial",null,null,null,null,null,null,{"$f":"IF(T17<>\"\",1,0)","v":0},"Las zonas seguras para el desplazamiento de los miembros de la comu-",null,null,null,null,null,null,null,"03"]
[null,null,null,null,"Con ambas",null,null,null,null,null,null,null,"nidad educativa y las rutas de evacuación ¿se encuentran señalizadas?"]
[null,null,null,null,null,null,null,null,null,null,null,{"$f":"IF(T19<>\"\",1,0)","v":0},"¿Se cuenta con el mínimo de dispositivos de seguridad",null,null,null,null,null,null,null,"04"]
[null,"702. FRECUENCIA DE LA ACCION QUE AYUDA EL GOBIERNO LOCAL PARA",null,null,null,null,null,null,null,null,null,null,"para situaciones de emergencia y desastres?"]
[null,null,"MEJORAR LA PRESTACIÓN DEL SERVICIO",null,null,null,null,null,null,null,null,{"$f":"IF(T21<>\"\",1,0)","v":0},"¿Fomenta la participación, compromiso y responsabilidad",null,null,null,null,null,null,null,"05"]
[null,null,null,null,null,null,null,null,null,null,null,null,"sobre la Gestión del Riesgo de Desastres en la comunidad educativa?"]
[null,null,"COMPONENTE",null,"ACCIÓN",null,null,null,null,"FRECUENCIA",null,{"$f":"IF(T23<>\"\",1,0)","v":0},"¿Desarrolla actividades de soporte socioemcional como el autocuidado,",null,null,null,null,null,null,null,"06"]
[null,{"$f":"SUM(B25:B46)","v":0},null,null,null,null,null,null,null,null,null,null,"la autoprotección y la resilencia en la comunidad educativa como"]
["01",{"$f":"IF(J25<>\"\",1,0)","v":0},"Infraestructura",null,"Proyecto de inversión pública para el mejoramiento o ampliación del local escolar",null,null,null,null,null,null,null,"respuesta ante situaciones de emergencias y desastres?"]
[null,null,null,null,null,null,null,null,null,null,null,null,null,null,null,null,null,null,null,{"$f":"COUNTIF(T13:T25,\"SI\")+COUNTIF(T13:T25,\"NO\")","v":0}]
["02",{"$f":"IF(J27<>\"\",1,0)","v":0},null,null,"Apoyo y asistencia técnica para el uso de recursos de mantenimiento preventivo"]
[null,null,null,null,null,null,null,null,null,null,null,"705. ¿CUÁL ES LA PRIMERA PALABRA QUE SE LE VIENE A LA MENTE CUANDO"]
["03",{"$f":"IF(J29<>\"\",1,0)","v":0},null,null,"Gestiones para el acceso a servicios básicos de IIEE",null,null,null,null,null,null,null,"PIENSA O ESCUCHA ‘’MINISTERIO DE EDUCACIÓN’’"]
["04",0,null,null,"Adquisición de mobiliario y equipamiento para la IIEE"]
["05",0,"Aprendizajes",null,"Proyecto de inversión pública para la mejora de los aprendizajes",null,null,null,null,null,null,null,"Escriba solo una palabra"]
["06",0,null,null,"Programas de reforzamiento escolar"]
["07",0,null,null,"Apoyo con material educativo",null,null,null,null,null,null,"706. ¿CON CUÁL DE LOS SIGUIENTES LEMAS O FRASES ASOCIA AL MINEDU?"]
["08",0,"Docentes",null,"Contratación de docentes",null,null,null,null,null,null,null,null,"Marque con una “X”, una opción"]
["09",0,null,null,"Talleres o cursos de capacitación",null,null,null,null,null,null,null,null,null,"Mejor educación, mejores peruanos"]
["10",0,"Gestión",null,"Articulación local con actores públicos y privados a nivel local",null,null,null,null,null,null,null,null,null,"La educación no para"]
["11",0,null,null,"Atención de casos en DEMUNA",null,null,null,null,null,null,null,null,null,"No asocio un lema específico al Minedu"]
["12",0,null,null,"Articulación con UGEL y DRE de su ámbito",null,null,null,null,null,null,null,null,null,"Otro"]
["13",0,null,null,"Gestiones para la instalación de servicios básicos de conectividad"]
["14",0,null,null,"Apoyo con alimentación para estudiantes",null,null,null,null,null,null,"707. ¿CON QUÉ EMOCIONES ASOCIA CON EL MINEDU?"]
["15",0,null,null,"Vivienda y alimentación para docentes (zonas rurales, fronteras, etc)",null,null,null,null,null,null,null,null,"Marque con una “X”, una opción"]
["16",0,null,null,"Apoyo con movilidad local para estudiantes y docentes",null,null,null,null,null,null,null,null,null,"Positivas"]
["17",0,"Recuperación",null,"Promoción de acciones comunitarias para identificación de estudiantes que interrumpen estudios",null,null,null,null,null,null,null,null,null,"Neutra"]
[null,null,null,null,null,null,null,null,null,null,null,null,null,null,"Negativas"]
["18",{"$f":"IF(J45<>\"\",1,0)","v":0},null,null,"Impulso del registro nominal de estudiantes en Alerta Escuela por parte de directores de II.EE"]
[null,null,null,null,null,null,null,null,null,null,null,"708. ¿QUÉ CANAL DE COMUNICACIÓN UTILIZA PARA INFORMARSE SOBRE LAS"]
[null,null,null,null,null,null,null,null,null,null,null,null,"LAS NOVEDADES DEL MINEDU?"]
[null,null,null,null,null,null,null,null,null,null,null,null,null,"Marque con una “X”, una o más opciones"]
[null,"703. ¿iNCORPORA LA SEGURIDAD Y DEFENSA NACIONAL EN LOS INSTRUMENTOS",null,null,null,null,null,null,null,null,null,null,null,null,"SIAGIE"]
[null,null,"DE GESTIÓN Y PLANIFICACIÓN CURRICULAR PARA EL DESARROLLO DE UNA",null,null,null,null,null,null,null,null,null,null,null,"Redes sociales"]
[null,null,"CULTURA DE PAZ, Y FORTALECIMIENTO DE LA IDENTIDAD NACIONAL?",null,null,null,null,null,null,null,null,null,null,null,"Portales del Minedu"]
[null,null,null,null,null,null,null,null,null,null,null,null,null,null,"Programas televisivos"]
[null,null,"Sí  ",null,null,"No  ",null,null,null,null,null,null,null,null,"Programas radiales"]
[null,null,null,null,null,null,null,null,null,null,null,null,null,null,"Mensajes de texto"]
[null,null,null,null,null,null,null,null,null,null,null,null,null,null,"Correo electrónico"]
[null,null,null,null,null,null,null,null,null,null,null,null,null,null,"Otro"]
[]
[]
[null,"709. ¿CUÁLES SON LOS PRINCIPALES TEMAS QUE REQUIERE COMO CAPACITACIÓN PARA",null,null,null,null,null,null,null,null,null,"713. SEÑOR(A) DIRECTOR(A), DURANTE EL 2022, ¿EL PERSONAL AUXILIAR DE EDUCACIÓN DESEMPEÑÓ"]
[null,null,"MEJORAR SU DESEMPEÑO  COMO DIRECTOR(A)?",null,null,null,null,null,null,null,null,null,"O DESEMPEÑA OTRAS LABORES ADICIONALES A SU ROL COMO AUXILIAR DE EDUCACIÓN?"]
[]
[null,null,null,"Marque con una “X”, hasta 4 opciones",null,null,null,null,null,null,null,null,null,"Marque con una “X”, una o más opciones"]
[null,null,null,null,"Estrategias y didáctica de las áreas de aprendizaje"]
[null,null,null,null,"Evaluación de aprendizajes",null,null,null,null,null,null,null,null,null,"No realizó/realiza otras labores adicionales en la IE"]
[null,null,null,null,"Manejo de herramientas TIC y ofimáticas",null,null,null,null,null,null,null,null,null,"Trabaja como docente"]
[null,null,null,null,"Gestión del duelo y del bienestar socioemocional",null,null,null,null,null,null,null,null,null,"Trabaja como personal administrativo en la IE"]
[null,null,null,null,"Habilidades blandas para la gestión del equipo de docentes",null,null,null,null,null,null,null,null,null,"Trabaja en otra IE"]
[null,null,null,null,"Relacionamiento institucional y gestión de alianzas",null,null,null,null,null,null,null,null,null,"Otro"]
[null,null,null,null,"Participación estudiantil",null,null,null,null,null,null,null,null,null,"No cuento con personal auxiliar de educación"]
[]
[null,"710. ¿DURANTE EL 2022 Y HASTA LA FECHA DEL CENSO 2023, ¿HA REALIZADO ACCIONES EN"]
[null,null,"FAVOR DEL BIENESTAR SOCIOEMOCIONAL DE LOS ESTUDIANTES Y/O DE LOS DOCENTES",null,null,null,null,null,null,null,null,"714. SEÑOR(A) DIRECTOR(A), ¿ESTE SERVICIO/NIVEL EDUCATIVO QUE USTED DIRIGE CUENTA CON"]
[null,null,"Y/O FAMILIAS?",null,null,null,null,null,null,null,null,null,"PERSONAL ADMINISTRATIVO?"]
[]
[null,null,"Sí  ",null,null,"No  ",null,null,null,null,null,null,"Sí",null,null," No",null,null,"Pase a la pregunta 719"]
[]
[]
[null,null,null,"¿Qué acciones realizo?",null,null,null,null,null,null,null,"715. SOBRE EL PERSONAL ADMINISTRATIVO QUE LABORA EN ESTE SERVICIO/NIVEL EDUCATIVO, "]
[null,null,null,"Marque con una “X”, una o más opciones",null,null,null,null,null,null,null,null,"COMPLETA PARA CADA CARGO/PUESTO LOS SIGUIENTES DATOS."]
[null,null,null,null,"Elaborar un diagnóstico del estado del bienestar socioemocional de estudiantes"]
[null,null,null,null,"Elaborar un diagnóstico del estado del bienestar socioemocional de docentes",null,null,null,null,null,null,null,"Seleccikone “Sí” o “No” para cada pregunta y consigna las cantidades donde corresponda"]
[null,null,null,null,"Ejecutar acciones en la IE para trabajar específicamente gestión de emociones"]
[null,null,null,null,"Generar espacios de diálogo en la comunidad educat. con docentes y/o familias",null,null,null,null,null,null,null,"Puestos Administrativos",null,null,null,"¿Cuenta con este tipo de personal?","¿Ha sido capacitado\ndurante el 2022?",null,"La cantidad de personal que tiene ¿es suﬁciente?"]
[null,null,null,null,"Promover espacios específicamente para abordar gestión de emociones con familias"]
[null,null,null,null,"Ejecutar acciones en el marco de la Tutoría y Orientación Educativa (TOE)",null,null,null,null,null,null,null,null,null,null,null,null,"Si  / No","¿Cuántas veces?","Si  / No","¿Qué cantidad seria suficiente?"]
[null,null,null,null,null,null,null,null,null,null,null,null,null,null,null,{"$f":"COUNTIF(Q87:Q93,\"SI\")","v":0},"Si  / No"]
[null,"711. SEÑOR(A) DIRECTOR(A), DURANTE EL 2022 Y HASTA LA FECHA DEL CENSO 2023,",null,null,null,null,null,null,null,null,null,"01","a. Coordinador / Administrativo"]
[null,null,"¿A TRAVÉS DE QUÉ MEDIO RECIBIÓ LA CAPACITACIÓN EL PERSONAL AUXILIAR DE",null,null,null,null,null,null,null,null,"02","b. Secretaria(o)"]
[null,null,"EDUCACIÓN?",null,null,null,null,null,null,null,null,"03","c. Oficinista"]
[null,null,null,null,null,null,null,null,null,null,null,"04","d. Trabajador guardianía y/o vigilancia"]
[null,null,null,"Marque con una “X”, una o más opciones",null,null,null,null,null,null,null,"05","e. Trabajador limpieza y mantenimiento"]
[null,null,null,null,"Perueduca, cursos para la comunidad educativa",null,null,null,null,null,null,"06","f. Auxiliar de biblioteca"]
[null,null,null,null,"Mi Institución Educativa",null,null,null,null,null,null,"07","g. Auxiliar de laboratorio"]
[null,null,null,null,"Mi UGEL",null,null,null,null,null,null,null,null,null,null,null,{"$f":"COUNTIF(Q87:Q93,\"SI\")+COUNTIF(Q87:Q93,\"NO\")","v":0}]
[null,null,null,null,"Otra UGEL"]
[null,null,null,null,"DRE"]
[null,null,null,null,"Otras instituciones",null,null,null,null,null,null,"716. ¿CUÁL DE LAS SIGUIENTES COMPETENCIAS CONSIDERA USTED COMO LA MÁS RELEVANTE EN EL EQUIPO "]
[null,null,null,null,"No cuento con personal auxiliar de educación",null,null,null,null,null,null,null,"DE PERSONAL  ADMINISTRATIVO DE ESTE SERVICIO NIVEL EDUCATIVO?"]
[null,null,null,null,"El personal auxiliar de educación no recibió capacitación"]
[null,null,null,null,null,null,null,null,null,null,null,null,null,"Marque con una “X”, una opción"]
[null,"712. SEÑOR(A) DIRECTOR(A), ¿CUÁL CONSIDERA USTED COMO PRINCIPAL TEMA QUE"]
[null,null,"REQUIERE COMO CAPACITACIÓN EL PERSONAL AUXILIAR DE EDUCACIÓN,  PARA MEJORAR",null,null,null,null,null,null,null,null,null,null,null,"Trabajo en equipo"]
[null,null,"SU DESEMPEÑO?",null,null,null,null,null,null,null,null,null,null,null,"Atención a usuarios"]
[null,null,null,"Marque con una “X”, una o más opciones",null,null,null,null,null,null,null,null,null,null,"Comunicación asertiva"]
[null,null,null,null,null,null,null,null,null,null,null,null,null,null,"Orientación a resultados"]
[null,null,null,null,"Habilidades blandas (intelig. emocional, comunic. asertiva, manejo de conflictos, etc)",null,null,null,null,null,null,null,null,null,"Orden y planificación estratégica"]
[null,null,null,null,"Habilidades duras (TICs, primeros aux., uso y peligros de internet, etc.)",null,null,null,null,null,null,null,null,null,"Orientación al servicio"]
[null,null,null,null,"Relación con los estudiantes (el juego, soporte socioem., prevención de la violencia …",null,null,null,null,null,null,null,null,null,"Proactividad"]
[null,null,null,null,"No cuento con personal auxiliar de educación"]
[]
[]
[null,"717. ¿CUÁLES SON LAS DOS PRINCIPALES TEMÁTICAS QUE CONSIDERA USTED QUE EL",null,null,null,null,null,null,null,null,null,"723. ¿QUÉ CONTENIDOS NORMATIVOS ESPERARÍA ENCONTRAR EN EL PORTAL WEB PARA "]
[null,null,"PERSONAL ADMINISTRATIVO DE ESTE SERVICIO/NIVEL EDUCATIVO PODRÍA SER",null,null,null,null,null,null,null,null,"          DIRECTIVO DE IE DEL MINEDU?",null,null,null,null,"Marque con una “X”, hasta dos opciones"]
[null,null,"CAPACITADO?"]
[null,null,null,"Marque con una “X”, solamente dos opciones",null,null,null,null,null,null,null,null,{"$f":"COUNTIF(N115:N118,\"X\")","v":0},null,"Sobre sus funciones"]
[null,null,null,null,null,null,null,null,null,null,null,null,null,null,"Sobre los documentos de gestión de debe elaborar"]
[null,null,{"$f":"COUNTIF(D117:D124,\"X\")","v":0},null,"Seguridad de control de accesos y de control interno de la IE.",null,null,null,null,null,null,null,null,null,"Sobre su rol de líder pedagógico"]
[null,null,null,null,"Gestión del mantenimiento de la IE (materiales, ambientes y equipos)",null,null,null,null,null,null,null,null,null,"Sobre las faltas en las podría incurrir de incumplir sus funciones"]
[null,null,null,null,"Manejo de habilidades interpersonales (atención de usuarios)"]
[null,null,null,null,"Técnicas de archivo y despacho de documentos",null,null,null,null,null,null,"724. DESDE EL 2019 A LA FECHA DE APLICACIÓN DEL CENSO 2022, ¿CONOCE LAS NORMAS"]
[null,null,null,null,"Manejo de los sistemas informáticos del Minedu",null,null,null,null,null,null,"         QUE REGULAN SUS FUNCIONES COMO DIRECTOR?"]
[null,null,null,null,"Administración y control de recursos propios (financieros)"]
[null,null,null,null,"Manejo de herramientas TIC y ofimática",null,null,null,null,null,null,null,"Sí",null,null,"No"]
[null,null,null,null,"Prevención y atención de situaciones de riesgo"]
[null,null,null,null,null,null,null,null,null,null,null,"725. SEÑOR(A) DIRECTOR(A), DURANTE EL 2022 Y A LA LLEGADA DEL CENSO 2023"]
[null,"718. CON RESPECTO A LAS LABORES DEL PERSONAL ADMINISTRATIVO DURANTE EL",null,null,null,null,null,null,null,null,null,null,"  ¿HA PARTICIPADO DE ALGUNA DE LAS SIGUIENTES ACCIONES FORMATIVAS?"]
[null,null,"AÑO 2022, ¿EN QUÉ ÁMBITO(S) IDENTIFICÓ MAYOR CARGA DE ACTIVIDADES"]
[null,null,"OPERATIVAS?",null,null,null,null,null,null,null,null,null,"Sí",null,null,"No",null,null,"Pase a la pregunta 727"]
[]
[null,null,null,"Marque con una “X”, una o más opciones",null,null,null,null,null,null,null,null,null,null,"Marque con una “X”, una o más opciones"]
[null,null,null,null,null,null,null,null,null,null,null,null,null,null,"Cursos en didáctica o pedagogía"]
[null,null,null,null,"Gestión de recursos financieros, bienes, servicios e infraestructura ",null,null,null,null,null,null,null,null,null,"Congresos o seminarios vinculados a su cargo y funciones"]
[null,null,null,null,"Gestión de información de la IE (registro en sistemas administrativos y trámite doc.)"]
[null,null,null,null,"Gestión y seguimiento del uso de los recursos educativos. ",null,null,null,null,null,null,"726. ¿QUÉ ASPECTOS DE SU FORMACIÓN EN LIDERAZGO PEDAGÓGICO REQUIERE"]
[null,null,null,null,"Limpieza y mantenimiento ",null,null,null,null,null,null,null,"  FORTALECER PARA MEJORAR LA GESTIÓN ESCOLAR EN SU SERVICIO/NIVEL EDUCATIVO?"]
[null,null,null,null,"Prevención y atención de situaciones de riesgo",null,null,null,null,null,null,null,"Marque con una “X”, hasta 3 opciones"]
[null,null,null,null,"Vigilancia y guardianía",null,null,null,null,null,null,null,null,null,"Habilidades en organización e interpretación de la planificación en la IE"]
[null,null,null,null,null,null,null,null,null,null,null,null,null,null,"Habilidades para resolución de problemas en la IE"]
[null,"719. ¿QUÉ INFORMACIÓN LE GUSTARÍA ENCONTRAR EN EL PORTAL WEB PARA",null,null,null,null,null,null,null,null,null,null,null,null,"Habilidades para apoyar a los docentes"]
[null,null,"DIRECTIVO DE I.E. DEL MINEDU?",null,null,null,null,null,null,null,null,null,null,null,"Habilidades para el fortalecimiento docente"]
[null,null,null,"Marque con una “X”, una o más opciones",null,null,null,null,null,null,null,null,null,null,"Habilidades para establecer el orden"]
[null,null,null,null,null,null,null,null,null,null,null,null,null,null,"Habilidades para influenciar"]
[null,null,null,null,"Lecturas, infografías y materiales diversos sobre las funciones como directivo",null,null,null,null,null,null,null,null,null,"Habilidades para prevenir el conflicto"]
[null,null,null,null,"Videos tutoriales sobre las labores como directivos",null,null,null,null,null,null,null,null,null,"Habilidades para monitorear la contribución de la IE con la política educativa"]
[null,null,null,null,"Material diverso sobre habilidades blandas necesarias para el cargo",null,null,null,null,null,null,null,null,null,"Otros"]
[null,null,null,null,"Buenas prácticas para la gestión directiva"]
[null,null,null,null,"Información sobre las normativas sobre la gestión escolar"]
[null,null,null,null,"Otros",null,null,null,null,null,null,"727. EN EL AÑO 2023, ¿ESTE SERVICIO/NIVEL EDUCATIVO HA REALIZADO O"]
[null,null,null,null,null,null,null,null,null,null,null,null,"PARTICIPADO EN ACCIONES DE SEGURIDAD Y DEFENSA NACIONAL?"]
[null,"720. SEÑOR(A) DIRECTOR(A), DESDE QUE EMPEZASTE TU CARRERA COMO DOCENTE, "]
[null,null,"¿CUÁNTOS AÑOS DE EXPERIENCIA TIENES COMO?",null,null,null,null,null,null,null,null,null,"Sí",null,null,"No"]
[]
[null,null,null,"Marque con una “X”, una opcion",null,null,null,null,null,null,null,null,null,null,"Marque con una “X”, una o más opciones"]
[]
[null,null,null,null,"Directivo encargado    --          Cantidad de años:",null,null,null,null,null,null,null,null,null,"Actividad",null,null,null,null,"Marcar con \"X\"  "]
[null,null,null,null,"Directivo designado    --          Cantidad de años:",null,null,null,null,null,null,null,null,null,"Capacitaciones"]
[null,null,null,null,null,null,null,null,null,null,null,null,null,null,"Utilizado una estrategía comunicacional"]
[null,"721. ¿CON QUÉ FRECUENCIA VISITA EL PORTAL WEB PARA DIRECTIVO DE IE DEL MINEDU",null,null,null,null,null,null,null,null,null,null,null,null,"Otros"]
[null,null,"https://directivos.minedu.gob.pe/ ?"]
[]
[null,null,null,"Marque con una “X”, una opcion",null,null,null,null,null,null,null,"728. EN EL AÑO 2023, ¿ESTE SERVICIO/NIVEL EDUCATIVO HA INCORPORADO"]
[null,null,null,null,null,null,null,null,null,null,null,null,"ACCIONES DE GESTIÓN DEL RIESGO DE EMERGENCIAS Y DESASTRES EN SUS"]
[null,null,null,null,"Frecuentemente",null,null,null,null,null,null,null,"INSTRUMENTOS DE GESTIÓN VIGENTES?"]
[null,null,null,null,"Poca frecuencia"]
[null,null,null,null,"Casi nunca",null,null,null,null,null,null,null,"Sí",null,null,"No"]
[null,null,null,null,"No visito el portal web",null,null,null,"Pase a la pregunta 724"]
[null,null,null,null,null,null,null,null,null,null,null,null,null,null,"Precise los documentos de gestión"]
[null,"722. ¿CONSIDERAS QUE LA INFORMACIÓN QUE ENCUENTRAS EN EL PORTAL WEB\n"]
[null,null,"DE DIRECTIVOS ES ÚTIL?",null,null,null,null,null,null,null,null,null,null,"Documentos de Gestión",null,null,null,null,null,"Marcar con \"X\"  "]
[null,null,null,"Marque con una “X”, una opcion",null,null,null,null,null,null,null,null,null,"Proyecto Educativo Institucional (PEI)"]
[null,null,null,null,null,null,null,null,null,null,null,null,null,"Plan Anual de Trabajo (PAT)"]
[null,null,null,null,"Muy útil",null,null,null,null,null,null,null,null,"Proyecto Currícular Institucional (PCI)"]
[null,null,null,null,"Útil",null,null,null,null,null,null,null,null,"Reglamento Interno (RI)"]
[null,null,null,null,"Poco útil",null,null,null,null,null,null,null,null,"Otros"]
[null,null,null,null,"Nada útil"]
[null,null,null,null,"No visito el portal web"]
[]
[]
[null,"729. EN EL AÑO 2023, ¿ESTE SERVICIO/NIVEL EDUCATIVO CUENTA CON SU PLAN DE ",null,null,null,null,null,null,null,null,null,null,"732. EN EL AÑO 2023 ¿CUÁLES SON LOS EQUIPOS Y SERVICIOS INFORMÁTICOS QUE"]
[null,null,"GESTIÓN DEL RIESGO DE DESASTRES VIGENTE?",null,null,null,null,null,null,null,null,null,"CUENTA ESTE SERVICIO/NIVEL EDUCATIVO PARA REPORTAR LAS EMERGENCIAS, "]
[null,null,null,null,null,null,null,null,null,null,null,null,"DESASTRES Y/O PELIGRO INMINENTE?"]
[null,null,"Sí    ",null,null,"No  "]
[null,null,null,null,null,null,null,null,null,null,null,null,null,null,"Equipos",null,null,null,null,"Marcar "]
[null,null,null,null,"Documento de aprobación N°",null,null,null,null,null,null,null,null,null,null,null,null,null,null,"con \"X\""]
[null,null,null,null,null,null,null,null,null,null,null,null,null,null,"PC"]
[null,null,null,null,null,null,null,null,null,null,null,null,null,null,"Tablet"]
[null,null,null,null,"Fecha de aprobación",null,null,"Día","Mes","Año",null,null,null,null,"Equipos Móviles"]
[null,null,null,null,null,null,null,null,null,null,null,null,null,null,"Internet"]
[null,null,null,null,null,null,null,null,null,null,null,null,null,null,"No se cuenta"]
[null,null,null,null,null,null,null,null,null,null,null,null,null,null,"Otros"]
[null,"730. EN EL AÑO 2023 ¿LOS MIEMBROS DE ESTE SERVICIO/NIVEL EDUCATIVO HAN"]
[null,null,"SIDO CAPACITADOS EN MATERIA DE GESTIÓN INTEGRAL DEL RIESGO DE ",null,null,null,null,null,null,null,null,null,"733. EN EL AÑO 2023, ANTE LA DETECCIÓN DEL PELIGRO INMINENTE, EMERGENCIA"]
[null,null,"EMERGENCIAS Y DESASTRES?",null,null,null,null,null,null,null,null,null,"O DESASTRE ¿ESTE SERVICIO/NIVEL EDUCATIVO REALIZA LA ALERTA AL ESPACIO"]
[null,null,null,null,null,null,null,null,null,null,null,null,"DE MONITOREO Y SEGUIMIENTO SECTORIAL (EMSS) DE LA UGEL?"]
[null,null,"Sí    ",null,null,"No  "]
[null,null,null,null,null,null,null,null,null,null,null,null,"Sí    ",null,null,"No  "]
[null,null,null,null,null,null,null,null,null,null,null,null,null,null,null,null,null,"¿Por qué?"]
[null,null,null,"Tipo de Capacitación",null,null,"Cantidad de personas capacitadas"]
[null,null,null,null,null,null,"N° de Direc- tores","N° de Docentes","N° de Adminis- trativos","N° de capacitados CEA y GRD",null,null,null,null,"Items",null,null,null,null,"Marcar "]
[null,null,null,null,null,null,null,null,null,null,null,null,null,null,null,null,null,null,null,"con \"X\""]
[null,null,null,null,null,null,null,null,null,null,null,null,null,null,"No se tuvo emergencia en territorio"]
[null,null,"01","Curso",null,null,null,null,null,null,{"$f":"SUM(G202:J202)","v":0},null,null,null,"No se cuenta con los instrumentos y/o herramientas"]
[null,null,"02","Taller",null,null,null,null,null,null,{"$f":"SUM(G203:J203)","v":0},null,null,null,"No se conoce el procedimiento"]
[null,null,"03","Charla",null,null,null,null,null,null,0,null,null,null,"Otros"]
[null,null,"04","Seminario",null,null,null,null,null,null,0]
[null,null,"05","Webinar",null,null,null,null,null,null,0,null,"734. EN EL AÑO 2023, ¿ESTE SERVICIO/NIVEL EDUCATIVO PARTICIPÓ EN LOS "]
[null,null,"06","Otro",null,null,null,null,null,null,0,null,"SIMULACROS CONVOCADOS POR MINEDU Y/O INDECI?"]
[null,null,null,null,null,null,null,null,null,{"$f":"SUM(G202:J207)","v":0}]
[null,"731. ESTE SERVICIO/NIVEL EDUCATIVO ¿CUENTA CON ALGUNA EXPERIENCIA EXITOSA",null,null,null,null,null,null,null,null,null,null,"Sí    ",null,null,"Items",null,null,null,"Marcar"]
[null,null,"O BUENA PRÁCTIVA DOCENTE Y/O GESTIÓN ESCOLAR ENMARCADAS EN ALGUNA",null,null,null,null,null,null,null,null,null,null,null,null,null,null,null,null,"con \"X\""]
[null,null,"DE LAS LÍNEAS ESTRATÉGICAS?",null,null,null,null,null,null,null,null,null,null,null,null,"Primer simulacro"]
[null,null,null,null,null,null,null,null,null,null,null,null,"No  ",null,null,"Segundo simulacro"]
[null,null,"Sí    ",null,null,"No  ",null,null,null,null,null,null,null,null,null,"Tercer simulacro"]
[null,null,null,null,null,null,null,null,null,null,null,null,null,null,null,"Cuarto simulacro"]
[null,null,null,null,"Complete la tabla"]
[null,null,"Marque con una “X” en “Sí” o “No” para cada línea estratégica e ingrese los años según corresponda",null,null,null,null,null,null,null,null,null,"735. ¿ESTE SERVICIO/NIVEL EDUCATIVO, ¿HA RECIBIDO POR PARTE DE LA UGEL"]
[null,null,null,null,null,null,null,null,null,null,null,null,"ACCIONES DE COMUNICACIÓN PRESENCIAL O VIRTUAL PARA SENSIBILIZAR"]
[null,null,"Línea Estratégica",null,null,"Experiencia exitosa",null,null,"Buena práctica docente y/o \nGestión escolar",null,null,null,"A LA COMUNIDAD EDUCATIVA EN TEMAS DE GESTIÓN DEL RIESGO DE DESASTRES,"]
[null,null,null,null,null,null,null,null,null,null,null,null,"CAMBIO CLIMÁTICO Y/O SEGURIDAD Y DEFENSA NACIONAL ?"]
[null,null,null,null,null,"¿Cuenta con experiencia exitosa?","Año de la experien cia exitosa","Se socializó con otras entidades","Cuenta con buena práctica?","Año de la buena práctica","Se socializó con otras entidades"]
[null,null,null,null,null,null,null,null,null,null,null,null,"Sí    ",null,null,"No  "]
[]
[null,null,null,null,null,"Sí - No",null,"Sí - No","Sí - No",null,"Sí - No",null,null,null,"Indique, ¿qué acciones implementó o recibió?"]
[null,"01","a. Gestión del Riesgo de Desastres"]
[null,"02","b. Adaptación al cambio climático",null,null,null,null,null,null,null,null,null,null,null,"Documentos de Gestión",null,null,null,null,"Marcar con \"X\""]
[null,"03","c. Seguridad y Defensa Nacional",null,null,null,null,null,null,null,null,null,null,null,"Afiches y/o díptico y/o tríptico"]
[null,"04","d. Otro",null,null,null,null,null,null,null,null,null,null,null,"Carteles o murales"]
[null,null,null,null,null,{"$f":"COUNTIF(F224:F227,\"SI\") + COUNTIF(F224:F227,\"NO\")","v":0},null,null,{"$f":"COUNTIF(I224:I227,\"SI\") + COUNTIF(I224:I227,\"NO\")","v":0},null,null,null,null,null,"Ferias estudiantiles"]
[null,null,null,null,null,null,null,null,null,null,null,null,null,null,"Radionovela y/o audios y/o radioteatro y/o videos …"]
[null,null,null,null,null,null,null,null,null,null,null,null,null,null,"Otros"]
[]
[]
[null,"736. ¿ESTE SERVICIO/NIVEL EDUCATIVO, ¿CUENTA CON EL APOYO DE ALIADOS ESTRATÉGICOS DE SU",null,null,null,null,null,null,null,null,null,null,"741. DURANTE EL ÚLTIMO MES, EN PROMEDIO, ¿CUÁNTAS HORAS SEMANALES, "]
[null,null,"LOCALIDAD PARA ATENDER ALGUNO DE LOS SIGUIENTES TEMAS?",null,null,null,null,null,null,null,null,null,"ADICIONALES A SU JORNADA LABORAL, USTED CONSIDERA QUE HA DESTINADO"]
[null,null,null,null,null,null,null,null,null,null,null,null,"PARA REALIZAR ACTIVIDADES RELACIONADAS A SU TRABAJO COMO DIRECTOR?"]
[null,null,"Seleccione “Si” o “No” para cada caso y detalle al principal aliado estratégico según corresponda"]
[null,null,null,null,null,null,null,null,null,null,null,null,null,null,"Horas Semanales adicionales"]
[null,null,"Temas por atender",null,null,null,null,"¿Cuenta con el apoyo de aliados estratégicos de su localidad?"]
[]
[null,null,null,null,null,null,null,null,"Mencione al principa aliado en cada caso",null,null,null,"742. ¿CUÁLES SON LOS INSTRUMENTOS DE GESTIÓN ESCOLAR QUE SE HAN"]
[null,null,null,null,null,null,null,"Si / No",null,null,null,null,"IMPLEMENTADO EN ESTE SERVICIO/NIVEL EDUCATIVO?"]
[null,null,"Gestión integral del riesgo de emergencias y desastres"]
[null,null,"Adaptación al cambio climático",null,null,null,null,null,null,null,null,null,null,null,"Documentos de Gestión",null,null,null,null,"Marcar"]
[null,null,"Seguridad y defensa nacional",null,null,null,null,null,null,null,null,null,null,null,null,null,null,null,null,"con X"]
[null,null,null,null,null,null,null,{"$f":"COUNTIF(H242:H244,\"SI\") + COUNTIF(H242:H244,\"NO\")","v":0},null,null,null,null,null,null,"Proyecto Educativo Institucional (PEI)"]
[null,"737. ¿QUÉ COMITÉS DE GESTIÓN ESCOLAR HA IMPLEMENTADO EN ESTE SERVICIO/NIVEL EDUCATIVO?",null,null,null,null,null,null,null,null,null,null,null,null,"Proyecto Currícular Institucional (PCI)"]
[null,null,null,null,null,null,null,null,null,null,null,null,null,null,"Reglamento Interno (RI)"]
[null,null,null,"I. Comité de Gestión de Condiciones Operativas",null,null,null,null,null,null,null,null,null,null,"Plan Anual de Trabajo (PAT)"]
[null,null,null,"II. Comité de Gestión Pedagógica",null,null,null,null,null,null,null,null,null,null,"Documento de Gestión (DG)"]
[null,null,null,"III. Comité de Gestión del Bienestar",null,null,null,null,null,null,null,null,null,null,"Otros - especifique"]
[]
[null,null,null,null,"Solo I"]
[null,null,null,null,"Solo II",null,null,null,null,null,null,null,"743. POSTERIOR AL MONITOREO, ¿QUÉ TIPO DE RETROALIMENTACIÓN BRINDA A "]
[null,null,null,null,"Solo III",null,null,null,null,null,null,null,"CADA DOCENTE?"]
[null,null,null,null,"I y II"]
[null,null,null,null,"I y III",null,null,null,null,null,null,null,null,"Marque con una \"X\", una opción"]
[null,null,null,null,"II y III",null,null,null,null,null,null,null,null,null,"Descriptiva"]
[null,null,null,null,"Todos",null,null,null,null,null,null,null,null,null,"Elemental"]
[null,null,null,null,"Ninguno",null,null,null,null,null,null,null,null,null,"Reflexiva o por descubrimiento"]
[null,null,null,null,null,null,null,null,null,null,null,null,null,null,"No brinda retroalimentación por falta de tiempo"]
[null,"738. EL SERVICIO/NIVEL EDUCATIVO, ¿CUENTA CON LA BRIGADA DE EDUCACIÓN"]
[null,null,"AMBIENTAL Y GESTIÓN DE RIESGO DE DESASTRES?"]
[null,null,null,null,null,null,null,null,null,null,null,null,"744. ¿CONOCE LOS PERFILES DE CARGOS DE DIRECTOR Y SUBDIRECTOR DE IE "]
[null,null,"Sí",null,null,"No",null,null,"Pase a la pregunta 740",null,null,null,"PUBLICADOS EN EL AÑO 2021 EN EL CLASIFICADOR DE CARGOS (RVM N° 223-2021-MINEDU)?"]
[]
[]
[null,null,null,"Documento",null,null,null,null,null,null,null,null,"Sí",null,null,"No"]
[null,null,null,"que lo aprueba",null,null,null,"Resolución"]
[null,null,null,null,null,null,null,"Otro"]
[null,null,null,null,null,null,null,null,null,null,null,null,"¿Considera que los perfiles de cargo de director y subdirector de IE brindan claridad"]
[null,null,null,"Número del Documento",null,null,null,null,null,null,null,null," para el desarrollo de las funciones del equipo directivo?"]
[]
[null,null,null,null,null,null,"Desde :",null,"Hasta :",null,null,null,"Sí",null,null,"No"]
[null,null,null,"Vigencia de la brigada",null,null,"DD/MM/AAAA",null,"DD/MM/AAAA"]
[]
[null,null,null,null,null,null,null,null,null,null,null,null,"745. ESTE SERVICIO/NIVEL EDUCATIVO QUE DIRIGE, ¿DURANTE EL PRESENTE AÑO"]
[null,"739. EN ESTE SERVICIO/NIVEL EDUCATIVO, ¿LOS INTEGRANTES DE LA BRIGADA DE EDUCACIÓN AMBIENTAL",null,null,null,null,null,null,null,null,null,null,"HA RECIBIDO O VIENE RECIBIENDO APOYO DE ALGUNA EMPRESA PRIVADA O"]
[null,null,"Y GESTIÓN DE RIESGO DE DESASTRES HAN SIDO CAPACITADOS ANTE SITUACIONES DE EMERGENCIA O",null,null,null,null,null,null,null,null,null,"DE ALGUNA ONG EN TEMAS DE MEJORA DE INFRAESTRUCTURA, MOBILIARIO"]
[null,null,"DESASTRE?",null,null,null,null,null,null,null,null,null,"Y EQUIPAMIENTO O CAPACITACIÓN DE PERSONAL DOCENTE?"]
[]
[null,null,"Sí",null,null,"No",null,null,null,null,null,null,"Sí",null,null,"No",null,null,"Pase a la pregunta 800"]
[]
[null,null,null,null,"N° de integrantes que conforma la brigada"]
[null,null,null,null,"N° de integrantes capacitados de dicha brigada:",null,null,null,null,null,null,null,"746. INDIQUE EL TIPO DE APOYO QUE HA RECIBIDO DE LA EMPRESA PRIVADA U "]
[null,null,null,null,"Entidad que capacitó:",null,null,null,null,null,null,null,"ONG MENCIONADA EN SU RESPUESTA ANTERIOR"]
[null,null,null,null,null,null,null,"DRE/GRE"]
[null,null,null,null,null,null,null,"UGEL",null,null,null,null,null,"Marque con una “X” una o más opciones"]
[]
[null,"740. EN ESTE SERVICIO/NIVEL EDUCATIVO, ¿EL RESPONSABLE DE GESTIÓN DE",null,null,null,null,null,null,null,null,null,null,null,null,"Infraestructura"]
[null,null,"RIESGO DE DESASTRES HA SIDO CAPACITADO PARA EL DESARROLLO DE SUS ROLES?",null,null,null,null,null,null,null,null,null,null,null,"Mobiliario"]
[null,null,null,"",null,null,null,null,null,null,null,null,null,null,"Equipamiento"]
[null,null,"Sí",null,null,"No",null,null,null,null,null,null,null,null,"Capacitación de personal docente"]
[null,null,null,null,null,null,null,null,null,null,null,null,null,null,"Otro"]
[null,null,null,null,"Entidad que capacitó:"]
[null,null,null,null,null,null,null,"DRE/GRE"]
[null,null,null,null,null,null,null,"UGEL"]

{"sheet":"C800","index":9,"n_rows":115,"n_cols":17,"rows_kept":115,"cut":false,"hidden":false,"merged":[[71,2,71,6],[71,7,71,9],[71,10,71,14],[71,15,71,17],[70,2,70,6],[70,7,70,9],[70,10,70,14],[70,15,70,17],[69,2,69,6],[69,7,69,9],[69,10,69,14],[69,15,69,17],[63,3,63,17],[68,3,68,5],[68,7,68,9],[68,10,68,14],[68,15,68,17],[40,16,40,18],[47,4,47,7],[48,14,48,17],[6,1,6,18],[58,4,58,7],[58,14,58,17],[17,14,17,17],[27,4,27,7],[37,4,37,7]]}
[]
[null,null,null,null,null,"CENSO EDUCATIVO 2023"]
[null,null,null,null,null,"MATRÍCULA, DOCENTES Y RECURSOS"]
[]
[]
[]
[null,"800. APRENDO EN CASA - MULTICANALES"]
[]
[null,"801. ¿EL DOCENTE HACE USO DE LOS RECURSOS QUE SE ENCUENTRAN ALOJADOS",null,null,null,null,null,null,null,null,"807. SEGÚN LOS DOCENTES Y/O PEC DE SU SERVICIO EDUCATIVO ¿QUÉ TIPO DE"]
[null,null,"EN LAS PLATAFORMAS DE MINEDU? (Perueduca - Aprendo en Casa)",null,null,null,null,null,null,null,null,"MATERIALES CONSIDERAN NECESARIOS INCLUIR EN LA PLATAFORMA DE"]
[null,null,null,null,null,null,null,null,null,null,null,"APRENDO EN CASA 2023?"]
[null,null,null," Sí  ",null,"No  ",null,null,null,null,""]
[null,null,null,null,null,null,null,null,null,null,"","Marque con una \"X\", una o más opciones"]
[null,"802. EN SU SERVICIO EDUCATIVO, ¿HAN USADO LOS RECURSOS Y MATERIALES",null,null,null,null,null,null,null,null,"",null,null,"Libros digitales"]
[null,null,"EDUCATIVOS DE LA PLATAFORMA APRENDO EN CASA 2023?",null,null,null,null,null,null,null,null,null,null,"Audio cuentos"]
[null,null,null,null,null,null,null,null,"  Pase a la",null,null,null,null,"Juegos educativos"]
[null,null,null," Sí  ",null,"No  ",null,null,"  pregunta 809",null,null,null,null,"Interactivos"]
[null,null,null,null,null,null,null,null,null,null,null,null,null,"Otro"]
[null,"803. ¿CUÁL O CUÁLES SON LOS ACTORES DE SU SERVICIO EDUCATIVO QUE HAN"]
[null,null,"USADO LOS RECURSOS Y MATERIALES EDUCATIVOS DE LA PLATAFORMA",null,null,null,null,null,null,null,"808. ¿QUÉ TAN SATISFECHOS SE ENCUENTRAN LOS DOCENTES Y/O PROMOTORAS"]
[null,null,"APRENDO EN CASA 2023?",null,null,null,null,null,null,null,null,"DE SU SERVICIO EDUCATIVO CON RESPECTO A LOS MATERIALES Y RECURSOS"]
[null,null,null,null,null,null,null,null,null,null,null,"PROPORCIONADOS EN LA PLATAFORMA APRENDO EN CASA 2023?"]
[null,null,"Marque con una \"X\", una o más opciones"]
[null,null,null,"Docentes",null,null,null,null,null,null,null,"Marque con una \"X\", una opción"]
[null,null,null,"Familias",null,null,null,null,null,null,null,null,null,"Satisfecho"]
[null,null,null,"Estudiantes",null,null,null,null,null,null,null,null,null,"Poco satisfecho"]
[null,null,null,"Directivos",null,null,null,null,null,null,null,null,null,"Insatisfecho"]
[null,null,null,"Otro",null,null,null,null,null,null,null,null,null,"No aplica"]
[]
[null,"804. LOS DOCENTES Y/O PEC DE SU SERVICIO EDUCATIVO HAN USADO LOS",null,null,null,null,null,null,null,null,"809. ¿LOS ESTUDIANTES HACEN USO DE LAS TABLETAS?"]
[null,null,"MATERIALES Y RECURSOS DE LA PLATAFORMA APRENDO EN CASA 2023 PARA:"]
[null,null,null,null,null,null,null,null,null,null,null," Sí  ",null,"No  ",null,null,"Pase a completar datos del"]
[null,null,"Marque con una \"X\", una o más opciones",null,null,null,null,null,null,null,null,null,null,null,null,null,"director y/o responsable"]
[null,null,null,"Reforzar los aprendizajes de los estudiantes"]
[null,null,null,"Complementar los aprendizajes de sus estudiantes",null,null,null,null,null,null,null,null,null,null,"¿Por qué no hacen uso de las tabletas?"]
[null,null,null,"Generar el interés de sus estudiantes",null,null,"",null,null,null,null,null,null,null,"Marque con una \"X\", una o más opciones"]
[null,null,null,"Reforzar mensajes a las familias"]
[null,null,null,"Otro",null,null,null,null,null,null,null,null,null,null,null,"Por miedo/temor a dañarlas"]
[null,null,null,null,null,null,null,null,null,null,null,null,null,null,null,"Porque no saben cómo usarla"]
[null,"805. LOS ESTUDIANTES HAN USADO LOS RECURSOS Y MATERIALES EDUCATIVOS",null,null,null,null,null,null,null,null,null,null,null,null,null,"Porque no funcionan"]
[null,null,"DE LA PLATAFORMA APRENDO EN CASA 2023 PARA:",null,null,null,null,null,null,null,null,null,null,null,null,"Otros"]
[]
[null,null,"Marque con una \"X\", una o más opciones",null,null,null,null,null,null,null,"810. SUS ESTUDIANTES, ¿QUÉ ACCIONES REALIZAN CON AYUDA DE LAS TABLETAS?"]
[]
[null,null,null,"Fortalecer sus aprendizajes",null,null,null,null,null,null,null,"Marque con una \"X\", una o más opciones"]
[null,null,null,"Complementar sus aprendizajes",null,null,null,null,null,null,null,null,null,"Buscar información"]
[null,null,null,"Resolver dudas",null,null,null,null,null,null,null,null,null,"Elaborar sus productos"]
[null,null,null,"Otro",null,null,null,null,null,null,null,null,null,"Organizar sus actividades"]
[null,null,null,null,null,null,null,null,null,null,null,null,null,"Otros"]
[null,"806. ¿CUÁL ES EL FORMATO DE LOS RECURSOS Y MATERIALES EDUCATIVOS DE LA"]
[null,null,"PLATAFORMA APRENDO EN CASA 2023 PREFERIDO POR LOS ACTORES DE SU"]
[null,null,"SERVICIO EDUCATIVO?",null,null,null,null,null,null,null,"811. ¿QUÉ APLICACIONES O UTILITARIOS DE LAS TABLET SON LOS MÁS INTEGRADOS/"]
[null,null,null,null,null,null,null,null,null,null,null,"USADOS POR LOS DOCENTES EN EL PROCESO DE ENSEÑANZA Y APRENDIZAJE?"]
[null,null,"Marque con una \"X\", una opción",null,null,null,null,"1: Siempre"]
[null,null,null,"PDF",null,null,null,"2: Casi Siempre",null,null,null,"Marque con una \"X\", una o más opciones"]
[null,null,null,"Interactivo",null,null,null,"3: A Veces",null,null,null,null,null,"Aplicaciones para crear objetos virtuales"]
[null,null,null,"Audio",null,null,null,"4: Casi Nunca",null,null,null,null,null,"Aplicaciones que brindan información"]
[null,null,null,"Vídeo",null,null,null,"5: Nunca",null,null,null,null,null,"Utilitarios, como lector y editor PDF, AnyDesk, etc."]
[null,null,null,"Otro",null,null,null,null,null,null,null,null,null,"Otros"]
[]
[]
[null,"ANOTACIONES COMPLEMENTARIAS QUE CONSIDERE NECESARIO AGREGAR"]
[]
[]
[]
[]
[null,"DATOS DEL DIRECTOR(A) / RESPONSABLE DEL LLENADO DE LA CÉDULA"]
[]
[null,null,null,"NOMBRES Y APELLIDOS",null,null,null,"CARGO",null,null,"CORREO ELECTRÓNICO",null,null,null,null,"TELÉFONO"]
[]
[]
[]
[]
[]
[]
[]
["DIRECTOR(A)"]
["SUB DIRECTOR(A)"]
["DOCENTE"]
["COORDINADOR(A)"]
["ASESOR"]
["ADMINISTRATIVO"]
["ASISTENTE"]
["AUXILIAR"]
["SECRETARIA(O)"]
["ESTADÍSTICO"]
["ESPECIALISTA"]
["BIBLIOTECARIO"]
["CARE"]
["COMANDANTE PNP"]
["CONTADOR"]
["DAIP"]
["DIGITADOR(A)"]
["GERENTE"]
["JEFE ACADÉMICO"]
["JEFE ADMINISTRATIVO"]
["JEFE DE ÁREA"]
["JEFE DE LABORATORIO"]
["JEFE DE PERSONAL"]
["JEFE DE SEDE"]
["JEFE DE UNIDAD"]
["OFICINISTA"]
["OPERADOR DE SISTEMAS"]
["PERSONAL DE SERVICIO"]
["PROGRAMADOR"]
["PROMOTOR(A)"]
["PSICOLOGO"]
["REGISTRADOR(A)"]
["REPRESENTANTE LEGAL"]
["SOPORTE TECNOLOGICO"]
["TÉCNICO ADMINISTRATIVO"]
["TESORERO(A)"]
["TRABAJADOR SOCIAL"]
["TUTOR"]
["OTROS"]

{"sheet":"Enviar","index":10,"n_rows":9,"n_cols":4,"rows_kept":9,"cut":false,"hidden":false,"merged":[[0,1,0,4],[1,1,1,4]]}
[null,"CENSO EDUCATIVO 2023"]
[null,"MATRÍCULA, DOCENTES Y RECURSOS"]
[]
[]
[null,null,"Paso 1:","Realice el ENVÍO con su clave EOL."]
[]
[null,null,"Paso 2:","Una vez realizado el ENVÍO,  Revise su constancia de envio."]
[]
[null,null,"  ADVERTENCIA","ASEGÚRESE DE REGISTRAR TODA LA INFORMACIÓN DEL NIVEL INFORMANTE"]